{"text_format":"1","workbook":"xlsx","n_sheets":20,"sheets":["Proposal Cover Page","IDF","IDF (Partner 1)","IDF (Partner 2)","A. Project Overview ","B. SOW","C. WP (S)","C. WP (C)","D. Budget","E. Budget Narrative","F. Payments Schedule","Grant Agreement","G. Standard TCs ","H. Bioethics compliance","I. Bioethics compliance_DNA ","J. Equipment Compliance","K. Financial Reporting","L. Other Terms and Conditions","M. Special Terms and Conditions","Tecnical"],"not_rendered":{"charts":0,"images":5,"macros":1,"external_links":0,"defined_names":20,"comments":0,"pivot_tables":0},"unopened":[],"bounds":{"document_bytes":16777216,"sheet_cells":100000,"rows_first":2000,"rows_last":500,"rows_between":2000,"halvings":0,"cell_chars":16384,"cell_head_chars":4096},"cells_cut":0,"cells_raw":0,"read":"row_number_cap","date_system":"1900"}

{"sheet":"Proposal Cover Page","index":0,"n_rows":47,"n_cols":18,"rows_kept":47,"cut":false,"hidden":false,"merged":[[0,0,0,8],[2,0,30,8]]}
["PROPOSAL COVER LETTER"]
[]
["\n\nProposal Cover Letter\n\nRe: [Insert Project title]\n\nI, [Institution's Authorized Signatory Name], hereby acknowledge that I have submitted a proposal to [title of RFP] on behalf of [insert Institution's full name].  \n\nIf awarded a grant, I confirm that [insert name of the Principal Investigator] will be representing [insert Institution's full name] during implementation of the Project titled [Insert Project title].\n\nI attest that the information contained in submitted proposal package which consists of\n(1) Institutional Data Form,\n(2) Project Overview,\n(3) Scope of Work,\n(4) Workplan,\n(5) Budget,\n(6) Budget Narrative,\n(7) Payment Schedule, \n\nis truthful and that it has been prepared with the full knowledge and consent of [insert Institution's full name].  \n\nI affirm that I have read and understand CRDF Global’s policies and standards outlined within the [title of RFP], including CRDF Global’s General Terms and Conditions.  \n\n\nAuthorized Signatory: [Insert Authorized Signatory's Name and Title]\n\n[Signature]\n\n[Date]\n\nPrincipal Investigator: [Insert Principal Investigator's Name and Title]\n\n[Signature]\n\n[Date]"]
[]
[]
[]
[]
[null,null,null,null,null,null,null,null,null,null,null,null,null,null,null,null,null,{"$f":"B8","v":0}]
[]
[]
[null,null,null,null,null,null,null,null,null,null,null,null,null,null,null,null,null,{"$f":"D11","v":0}]
[null,null,null,null,null,null,null,null,null,null,null,null,null,null,null,null,null,{"$f":"D12","v":0}]
[null,null,null,null,null,null,null,null,null,null,null,null,null,null,null,null,null,{"$f":"D13","v":0}]
[null,null,null,null,null,null,null,null,null,null,null,null,null,null,null,null,null,{"$f":"D14","v":0}]
[null,null,null,null,null,null,null,null,null,null,null,null,null,null,null,null,null,0]
[null,null,null,null,null,null,null,null,null,null,null,null,null,null,null,null,null,0]
[]
[]
[null,null,null,null,null,null,null,null,null,null,null,null,null,null,null,null,null,{"$f":"B19","v":0}]
[]
[]
[null,null,null,null,null,null,null,null,null,null,null,null,null,null,null,null,null,{"$f":"B22","v":0}]
[]
[]
[]
[null,null,null,null,null,null,null,null,null,null,null,null,null,null,null,null,null,{"$f":"B26","v":0}]
[]
[]
[]
[]
[]
[]
[]
[null,null,null,null,null,null,null,null,null,null,null,null,null,null,null,null,null,{"$f":"E34","v":0}]
[null,null,null,null,null,null,null,null,null,null,null,null,null,null,null,null,null,{"$f":"E35","v":0}]
[]
[]
[null,null,null,null,null,null,null,null,null,null,null,null,null,null,null,null,null,0]
[null,null,null,null,null,null,null,null,null,null,null,null,null,null,null,null,null,0]
[null,null,null,null,null,null,null,null,null,null,null,null,null,null,null,null,null,0]
[null,null,null,null,null,null,null,null,null,null,null,null,null,null,null,null,null,0]
[null,null,null,null,null,null,null,null,null,null,null,null,null,null,null,null,null,{"$f":"D41","v":0}]
[]
[null,null,null,null,null,null,null,null,null,null,null,null,null,null,null,null,null,0]
[null,null,null,null,null,null,null,null,null,null,null,null,null,null,null,null,null,0]
[null,null,null,null,null,null,null,null,null,null,null,null,null,null,null,null,null,0]
[null,null,null,null,null,null,null,null,null,null,null,null,null,null,null,null,null,0]

{"sheet":"IDF","index":1,"n_rows":100,"n_cols":20,"rows_kept":100,"cut":false,"hidden":false,"merged":[[36,1,36,3],[36,4,36,7],[61,1,61,5],[61,6,61,7],[62,1,62,5],[62,6,62,7],[46,1,46,2],[46,3,46,7],[59,1,59,7],[48,1,48,2],[48,3,48,7],[51,1,51,7],[52,1,52,7],[53,1,53,5],[54,1,54,5],[55,1,55,5],[57,1,57,5],[56,1,56,5],[53,6,53,7],[54,6,54,7],[55,6,55,7],[56,6,56,7],[57,6,57,7],[75,1,75,5],[75,6,75,7],[71,1,71,5],[71,6,71,7],[63,1,63,5],[63,6,63,7],[64,1,64,5],[64,6,64,7],[72,1,72,5],[72,6,72,7],[73,1,73,5],[73,6,73,7],[67,1,67,5],[67,6,67,7],[68,1,68,5],[68,6,68,7],[69,1,69,5],[69,6,69,7],[65,1,65,5],[65,6,65,7],[66,1,66,5],[66,6,66,7],[0,0,0,8],[29,1,29,5],[29,6,29,7],[18,1,18,7],[21,1,21,7],[24,1,24,7],[14,3,14,7],[11,3,11,7],[12,3,12,7],[15,3,15,7],[17,1,17,7],[20,1,20,7],[6,1,6,7],[9,1,9,7],[7,1,7,7],[13,3,13,7],[26,1,26,7],[12,1,12,2],[13,1,13,2],[23,1,23,7],[14,1,14,2],[15,1,15,2],[10,3,10,7],[28,1,28,7],[33,1,33,7],[34,1,34,3],[38,1,38,7],[27,1,27,7],[39,1,39,2],[47,1,47,2],[47,3,47,7],[40,1,40,2],[40,3,40,7],[41,1,41,2],[45,1,45,2],[45,3,45,7],[41,3,41,7],[42,1,42,2],[42,3,42,7],[35,4,35,7],[44,1,44,7],[34,4,34,7],[35,1,35,3],[39,3,39,7],[30,6,30,7],[30,1,30,3],[30,4,30,5],[31,1,31,7],[77,1,77,5],[77,6,77,7],[79,1,79,5],[79,6,79,7],[81,1,81,5],[81,6,81,7],[83,1,83,5],[83,6,83,7],[85,1,85,5],[85,6,85,7],[97,1,97,5],[97,6,97,7],[99,1,99,5],[99,6,99,7],[87,1,87,5],[87,6,87,7],[89,1,89,5],[89,6,89,7],[91,1,91,5],[91,6,91,7],[93,1,93,5],[93,6,93,7],[95,1,95,5],[95,6,95,7]],"read":"row_number_cap"}
["INSTITUTIONAL DATA FORM (IDF)"]
[]
[]
[]
[]
[]
[null,"1. Grantee Name"]
[null,null,null,null,null,null,null,null,null,null,null,null,null,null,null,null,null,{"$f":"B8","v":0}]
[]
[null,"2. Grantee Address"]
[null,"Address Line 1",null,null,null,null,null,null,null,null,null,null,null,null,null,null,null,{"$f":"D11","v":0}]
[null,"Address Line 2",null,null,null,null,null,null,null,null,null,null,null,null,null,null,null,{"$f":"D12","v":0}]
[null,"City",null,null,null,null,null,null,null,null,null,null,null,null,null,null,null,{"$f":"D13","v":0}]
[null,"State",null,null,null,null,null,null,null,null,null,null,null,null,null,null,null,{"$f":"D14","v":0}]
[null,"Postal Code",null,null,null,null,null,null,null,null,null,null,null,null,null,null,null,0]
[null,"Grantee Country",null,null,null,null,null,null,null,null,null,null,null,null,null,null,null,0]
[]
[null,"3. Grantee Phone"]
[null,null,null,null,null,null,null,null,null,null,null,null,null,null,null,null,null,{"$f":"B19","v":0}]
[]
[null,"4. Grantee E-mail"]
[null,null,null,null,null,null,null,null,null,null,null,null,null,null,null,null,null,{"$f":"B22","v":0}]
[]
[null,"5. Grantee Website"]
[null,null,null,null,null,null,null,null,null,null,null,null,null,null,null,null,null,{"$f":"B25","v":0}]
[]
[null,"6. Institution Type"]
[null,"Select an option"]
[null,"Select for US Orgs only"]
[null,"Is your organization registered as a charitable/non-profit entity?",null,null,null,null,"Select an option"]
[null,"Is your organization single-audited?"]
[null,"If yes, please provide CRDF Global with a copy of the most recent single audit report."]
[]
[null,"7. Grantee's Unique Entity ID (UEID)"]
[null,"UEID",null,null,null,null,null,null,null,null,null,null,null,null,null,null,null,{"$f":"E35","v":0}]
[null,"Local registration number",null,null,null,null,null,null,null,null,null,null,null,null,null,null,null,{"$f":"E36","v":0}]
[null,"TIN/EIN (US Tax Liability Only) "]
[]
[null,"8. Principal Investigator"]
[null,"Name",null,null,null,null,null,null,null,null,null,null,null,null,null,null,null,0]
[null,"Position",null,null,null,null,null,null,null,null,null,null,null,null,null,null,null,0]
[null,"Phone Number",null,null,null,null,null,null,null,null,null,null,null,null,null,null,null,0]
[null,"E-mail",null,null,null,null,null,null,null,null,null,null,null,null,null,null,null,0]
[null,null,null,null,null,null,null,null,null,null,null,null,null,null,null,null,null,{"$f":"D43","v":0}]
[null,"9. Authorized Institutional Representative holding signatory Authority "]
[null,"Name",null,null,null,null,null,null,null,null,null,null,null,null,null,null,null,{"$f":"D46","v":0}]
[null,"Position",null,null,null,null,null,null,null,null,null,null,null,null,null,null,null,{"$f":"D47","v":0}]
[null,"Phone Number",null,null,null,null,null,null,null,null,null,null,null,null,null,null,null,0]
[null,"E-mail",null,null,null,null,null,null,null,null,null,null,null,null,null,null,null,0]
[]
[]
[null,"10. Executive /Management Reporting Requirements  "]
[null,"CRDF Global may be required to publicly report the names and total compensation of the five most highly compensated individuals at the awardees’ institution. If you meet any of the criteria below, you are exempt from this requirement. Please find and check any applicable exemption:"]
[null,"1. In the previous tax year, institutional gross income from all sources was LESS than $300,000.",null,null,null,null,"Exempt"]
[null,"2. The institution received LESS than 80 percent of its annual gross revenues in U.S. federal funding (Contracts, Grants, Subgrants, Subcontracts or Loans).",null,null,null,null,"Exempt"]
[null,"3. The institution received LESS than $25,000,0000 in annual gross revenues from U.S. federal funding sources (Contracts, Grants, Subgrants, Subcontracts or Loans).",null,null,null,null,"Exempt"]
[null,"4. Executive compensation is publicly reported under section 13(a) or 15(d) of the Security Exchange Act or section 6104 of the Internal Revenue Code.",null,null,null,null,"Exempt"]
[null,"I do not meet any of the exemptions above.  I will provide the names and total compensation of the five most highly compensated executives. ",null,null,null,null,"Not Exempt"]
[]
[null,"11.  Future Grantee Questionnaire"]
[]
[1,"Did your organization expend more than US $750,000.00 in U.S. Government Federal awards (Grants, Cooperative Agreements, Assistance Awards) in the previous fiscal year? If yes, please provide CRDF Global with a copy of the most recent single audit report.",null,null,null,null,"Select an option"]
[null,null,null,null,null,null,null,null,null,null,null,null,null,null,null,null,null,null,{"$f":"SUM(S64:S74)","v":{"$error":"#N/A"}}]
[2,"Over the past three years, has your institution previously received or currently receives U.S. Federal financial assistance funds? ",null,null,null,null,"Select an option",null,null,null,null,null,null,null,null,null,null,null,{"$f":"_xlfn.IFS(G64=\"NO\",0,G64=\"YES\",1)","v":{"$error":"#N/A"}}]
[]
[3,"Over the past three years, has your institution previously received or currently receives funds from any other international funders?",null,null,null,null,"Select an option",null,null,null,null,null,null,null,null,null,null,null,{"$f":"_xlfn.IFS(G66=\"NO\",0,G66=\"YES\",1)","v":{"$error":"#N/A"}}]
[]
[4,"Over the past three years, has your institution previously received or currently receives a grant from CRDF Global? ",null,null,null,null,"Select an option",null,null,null,null,null,null,null,null,null,null,null,{"$f":"_xlfn.IFS(G68=\"NO\",0,G68=\"YES\",1)","v":{"$error":"#N/A"}}]
[]
[5,"Has your organization implemented projects/grants similar to the scope of work proposed in this application?",null,null,null,null,"Select an option",null,null,null,null,null,null,null,null,null,null,null,{"$f":"_xlfn.IFS(G70=\"NO\",0,G70=\"YES\",1)","v":{"$error":"#N/A"}}]
[]
[6,"Were all project goals and objectives met and all activities fully implemented in previously implemented grants?",null,null,null,null,"Select an option",null,null,null,null,null,null,null,null,null,null,null,{"$f":"_xlfn.IFS(G72=\"NO\",0,G72=\"YES\",1)","v":{"$error":"#N/A"}}]
[]
[7,"Has your organization ever had a grant or contract terminated for cause?",null,null,null,null,"Select an option",null,null,null,null,null,null,null,null,null,null,null,{"$f":"_xlfn.IFS(G74=\"NO\",0,G74=\"YES\",1)","v":{"$error":"#N/A"}}]
[]
[8,"Does the proposed grant funds comprise more than 10% of grantee’s operational funds?",null,null,null,null,"Select an option",null,null,null,null,null,null,null,null,null,null,null,{"$f":"_xlfn.IFS(G76=\"NO\",0,G76=\"YES\",1)","v":{"$error":"#N/A"}},{"$f":"SUM(S76:S90)","v":{"$error":"#N/A"}}]
[]
[9,"What was the maximum budget of a single-grant previously managed by your organization over the last three years?",null,null,null,null,0,null,null,null,null,null,null,null,null,null,null,null,{"$f":"_xlfn.IFS(G78>=150000,1,G78<150000,0)","v":0}]
[]
[10,"Is there a dedicated department or position responsible for entering grant financial data into the accounting system?",null,null,null,null,"Select an option",null,null,null,null,null,null,null,null,null,null,null,{"$f":"_xlfn.IFS(G80=\"NO\",0,G80=\"YES\",1)","v":{"$error":"#N/A"}}]
[]
[11,"Does your organization utilize a timekeeping system to track time spent against individual grants?",null,null,null,null,"Select an option",null,null,null,null,null,null,null,null,null,null,null,{"$f":"_xlfn.IFS(G82=\"NO\",0,G82=\"YES\",1)","v":{"$error":"#N/A"}}]
[]
[12,"Is there a dedicated department or position responsible for contractual management of the grant agreement?",null,null,null,null,"Select an option",null,null,null,null,null,null,null,null,null,null,null,{"$f":"_xlfn.IFS(G84=\"NO\",0,G84=\"YES\",1)","v":{"$error":"#N/A"}}]
[]
[13,"Does you organization have employees to comprise project team and implement the grant agreement? (no – if these employees need to be hired for this project specifically)",null,null,null,null,"Select an option",null,null,null,null,null,null,null,null,null,null,null,{"$f":"_xlfn.IFS(G86=\"NO\",0,G86=\"YES\",1)","v":{"$error":"#N/A"}}]
[]
[14,"Does your organization’s authorized signatory have relevant power of attorney or any equivalent document or authority proving such signing authority? ",null,null,null,null,"Select an option",null,null,null,null,null,null,null,null,null,null,null,{"$f":"_xlfn.IFS(G88=\"NO\",0,G88=\"YES\",1)","v":{"$error":"#N/A"}}]
[]
[15,"Does your organization have an ethics policy?",null,null,null,null,"Select an option",null,null,null,null,null,null,null,null,null,null,null,{"$f":"_xlfn.IFS(G90=\"NO\",0,G90=\"YES\",1)","v":{"$error":"#N/A"}}]
[]
[16,"Does the institute have an accounting or financial manual to outline the procedures for authorizing expenses?",null,null,null,null,"Select an option",null,null,null,null,null,null,null,null,null,null,null,{"$f":"_xlfn.IFS(G92=\"NO\",0,G92=\"YES\",1)","v":{"$error":"#N/A"}},{"$f":"SUM(S92:S100)","v":{"$error":"#N/A"}}]
[]
[17,"Does the institute utilize an accounting system to separately track donor funds and expenses?",null,null,null,null,"Select an option",null,null,null,null,null,null,null,null,null,null,null,{"$f":"_xlfn.IFS(G94=\"NO\",0,G94=\"YES\",1)","v":{"$error":"#N/A"}}]
[]
[18,"Does you organization have any experience receiving grant funding to organization’s bank account from oversees? ",null,null,null,null,"Select an option",null,null,null,null,null,null,null,null,null,null,null,{"$f":"_xlfn.IFS(G96=\"NO\",0,G96=\"YES\",1)","v":{"$error":"#N/A"}}]
[]
[19,"Can your organization provide excerpts from general ledger to prove expenses incurred under a grant agreement?",null,null,null,null,"Select an option",null,null,null,null,null,null,null,null,null,null,null,{"$f":"_xlfn.IFS(G98=\"NO\",0,G98=\"YES\",1)","v":{"$error":"#N/A"}}]
[]
[20,"Has your organization been audited in the past 3 years? If yes, please provide CRDF Global with a copy of the most recent audit report.",null,null,null,null,"Select an option",null,null,null,null,null,null,null,null,null,null,null,{"$f":"_xlfn.IFS(G100=\"NO\",0,G100=\"YES\",1)","v":{"$error":"#N/A"}}]

{"sheet":"IDF (Partner 1)","index":2,"n_rows":100,"n_cols":20,"rows_kept":100,"cut":false,"hidden":false,"merged":[[0,0,0,8],[6,1,6,7],[7,1,7,7],[9,1,9,7],[10,3,10,7],[11,3,11,7],[15,1,15,2],[15,3,15,7],[17,1,17,7],[18,1,18,7],[20,1,20,7],[21,1,21,7],[12,1,12,2],[12,3,12,7],[13,1,13,2],[13,3,13,7],[14,1,14,2],[14,3,14,7],[30,1,30,3],[30,4,30,5],[30,6,30,7],[31,1,31,7],[33,1,33,7],[34,1,34,3],[34,4,34,7],[23,1,23,7],[24,1,24,7],[26,1,26,7],[27,1,27,7],[28,1,28,7],[29,1,29,5],[29,6,29,7],[40,1,40,2],[40,3,40,7],[41,1,41,2],[41,3,41,7],[42,1,42,2],[42,3,42,7],[35,1,35,3],[35,4,35,7],[36,1,36,3],[36,4,36,7],[38,1,38,7],[39,1,39,2],[39,3,39,7],[48,1,48,2],[48,3,48,7],[51,1,51,7],[52,1,52,7],[53,1,53,5],[53,6,53,7],[44,1,44,7],[45,1,45,2],[45,3,45,7],[46,1,46,2],[46,3,46,7],[47,1,47,2],[47,3,47,7],[57,1,57,5],[57,6,57,7],[59,1,59,7],[61,1,61,5],[61,6,61,7],[62,1,62,5],[62,6,62,7],[54,1,54,5],[54,6,54,7],[55,1,55,5],[55,6,55,7],[56,1,56,5],[56,6,56,7],[66,1,66,5],[66,6,66,7],[67,1,67,5],[67,6,67,7],[68,1,68,5],[68,6,68,7],[63,1,63,5],[63,6,63,7],[64,1,64,5],[64,6,64,7],[65,1,65,5],[65,6,65,7],[73,1,73,5],[73,6,73,7],[75,1,75,5],[75,6,75,7],[77,1,77,5],[77,6,77,7],[69,1,69,5],[69,6,69,7],[71,1,71,5],[71,6,71,7],[72,1,72,5],[72,6,72,7],[85,1,85,5],[85,6,85,7],[87,1,87,5],[87,6,87,7],[89,1,89,5],[89,6,89,7],[79,1,79,5],[79,6,79,7],[81,1,81,5],[81,6,81,7],[83,1,83,5],[83,6,83,7],[97,1,97,5],[97,6,97,7],[99,1,99,5],[99,6,99,7],[91,1,91,5],[91,6,91,7],[93,1,93,5],[93,6,93,7],[95,1,95,5],[95,6,95,7]],"read":"row_number_cap"}
["INSTITUTIONAL DATA FORM (IDF)"]
[]
[]
[]
[]
[]
[null,"1. Grantee Name"]
[null,null,null,null,null,null,null,null,null,null,null,null,null,null,null,null,null,{"$f":"B8","v":0}]
[]
[null,"2. Grantee Address"]
[null,"Address Line 1",null,null,null,null,null,null,null,null,null,null,null,null,null,null,null,{"$f":"D11","v":0}]
[null,"Address Line 2",null,null,null,null,null,null,null,null,null,null,null,null,null,null,null,{"$f":"D12","v":0}]
[null,"City",null,null,null,null,null,null,null,null,null,null,null,null,null,null,null,{"$f":"D13","v":0}]
[null,"State",null,null,null,null,null,null,null,null,null,null,null,null,null,null,null,{"$f":"D14","v":0}]
[null,"Postal Code",null,null,null,null,null,null,null,null,null,null,null,null,null,null,null,0]
[null,"Grantee Country",null,null,null,null,null,null,null,null,null,null,null,null,null,null,null,0]
[]
[null,"3. Grantee Phone"]
[null,null,null,null,null,null,null,null,null,null,null,null,null,null,null,null,null,{"$f":"B19","v":0}]
[]
[null,"4. Grantee E-mail"]
[null,null,null,null,null,null,null,null,null,null,null,null,null,null,null,null,null,{"$f":"B22","v":0}]
[]
[null,"5. Grantee Website"]
[null,null,null,null,null,null,null,null,null,null,null,null,null,null,null,null,null,{"$f":"B25","v":0}]
[]
[null,"6. Institution Type"]
[null,"Select an option"]
[null,"Select for US Orgs only"]
[null,"Is your organization registered as a charitable/non-profit entity?",null,null,null,null,"Select an option"]
[null,"Is your organization single-audited?"]
[null,"If yes, please provide CRDF Global with a copy of the most recent single audit report."]
[]
[null,"7. Grantee's Unique Entity ID (UEID)"]
[null,"UEID",null,null,null,null,null,null,null,null,null,null,null,null,null,null,null,{"$f":"E35","v":0}]
[null,"Local registration number",null,null,null,null,null,null,null,null,null,null,null,null,null,null,null,{"$f":"E36","v":0}]
[null,"TIN/EIN (US Tax Liability Only) "]
[]
[null,"8. Principal Investigator"]
[null,"Name",null,null,null,null,null,null,null,null,null,null,null,null,null,null,null,0]
[null,"Position",null,null,null,null,null,null,null,null,null,null,null,null,null,null,null,0]
[null,"Phone Number",null,null,null,null,null,null,null,null,null,null,null,null,null,null,null,0]
[null,"E-mail",null,null,null,null,null,null,null,null,null,null,null,null,null,null,null,0]
[null,null,null,null,null,null,null,null,null,null,null,null,null,null,null,null,null,{"$f":"D43","v":0}]
[null,"9. Authorized Institutional Representative holding signatory Authority "]
[null,"Name",null,null,null,null,null,null,null,null,null,null,null,null,null,null,null,{"$f":"D46","v":0}]
[null,"Position",null,null,null,null,null,null,null,null,null,null,null,null,null,null,null,{"$f":"D47","v":0}]
[null,"Phone Number",null,null,null,null,null,null,null,null,null,null,null,null,null,null,null,0]
[null,"E-mail",null,null,null,null,null,null,null,null,null,null,null,null,null,null,null,0]
[]
[]
[null,"10. Executive /Management Reporting Requirements  "]
[null,"CRDF Global may be required to publicly report the names and total compensation of the five most highly compensated individuals at the awardees’ institution. If you meet any of the criteria below, you are exempt from this requirement. Please find and check any applicable exemption:"]
[null,"1. In the previous tax year, institutional gross income from all sources was LESS than $300,000.",null,null,null,null,"Exempt"]
[null,"2. The institution received LESS than 80 percent of its annual gross revenues in U.S. federal funding (Contracts, Grants, Subgrants, Subcontracts or Loans).",null,null,null,null,"Exempt"]
[null,"3. The institution received LESS than $25,000,0000 in annual gross revenues from U.S. federal funding sources (Contracts, Grants, Subgrants, Subcontracts or Loans).",null,null,null,null,"Exempt"]
[null,"4. Executive compensation is publicly reported under section 13(a) or 15(d) of the Security Exchange Act or section 6104 of the Internal Revenue Code.",null,null,null,null,"Exempt"]
[null,"I do not meet any of the exemptions above.  I will provide the names and total compensation of the five most highly compensated executives. ",null,null,null,null,"Not Exempt"]
[]
[null,"11.  Future Grantee Questionnaire"]
[]
[1,"Did your organization expend more than US $750,000.00 in U.S. Government Federal awards (Grants, Cooperative Agreements, Assistance Awards) in the previous fiscal year? If yes, please provide CRDF Global with a copy of the most recent single audit report.",null,null,null,null,"Select an option"]
[null,null,null,null,null,null,null,null,null,null,null,null,null,null,null,null,null,null,{"$f":"SUM(S64:S74)","v":{"$error":"#N/A"}}]
[2,"Over the past three years, has your institution previously received or currently receives U.S. Federal financial assistance funds? ",null,null,null,null,"Select an option",null,null,null,null,null,null,null,null,null,null,null,{"$f":"_xlfn.IFS(G64=\"NO\",0,G64=\"YES\",1)","v":{"$error":"#N/A"}}]
[]
[3,"Over the past three years, has your institution previously received or currently receives funds from any other international funders?",null,null,null,null,"Select an option",null,null,null,null,null,null,null,null,null,null,null,{"$f":"_xlfn.IFS(G66=\"NO\",0,G66=\"YES\",1)","v":{"$error":"#N/A"}}]
[]
[4,"Over the past three years, has your institution previously received or currently receives a grant from CRDF Global? ",null,null,null,null,"Select an option",null,null,null,null,null,null,null,null,null,null,null,{"$f":"_xlfn.IFS(G68=\"NO\",0,G68=\"YES\",1)","v":{"$error":"#N/A"}}]
[]
[5,"Has your organization implemented projects/grants similar to the scope of work proposed in this application?",null,null,null,null,"Select an option",null,null,null,null,null,null,null,null,null,null,null,{"$f":"_xlfn.IFS(G70=\"NO\",0,G70=\"YES\",1)","v":{"$error":"#N/A"}}]
[]
[6,"Were all project goals and objectives met and all activities fully implemented in previously implemented grants?",null,null,null,null,"Select an option",null,null,null,null,null,null,null,null,null,null,null,{"$f":"_xlfn.IFS(G72=\"NO\",0,G72=\"YES\",1)","v":{"$error":"#N/A"}}]
[]
[7,"Has your organization ever had a grant or contract terminated for cause?",null,null,null,null,"Select an option",null,null,null,null,null,null,null,null,null,null,null,{"$f":"_xlfn.IFS(G74=\"NO\",0,G74=\"YES\",1)","v":{"$error":"#N/A"}}]
[]
[8,"Does the proposed grant funds comprise more than 10% of grantee’s operational funds?",null,null,null,null,"Select an option",null,null,null,null,null,null,null,null,null,null,null,{"$f":"_xlfn.IFS(G76=\"NO\",0,G76=\"YES\",1)","v":{"$error":"#N/A"}},{"$f":"SUM(S76:S90)","v":{"$error":"#N/A"}}]
[]
[9,"What was the maximum budget of a single-grant previously managed by your organization over the last three years?",null,null,null,null,0,null,null,null,null,null,null,null,null,null,null,null,{"$f":"_xlfn.IFS(G78>=150000,1,G78<150000,0)","v":0}]
[]
[10,"Is there a dedicated department or position responsible for entering grant financial data into the accounting system?",null,null,null,null,"Select an option",null,null,null,null,null,null,null,null,null,null,null,{"$f":"_xlfn.IFS(G80=\"NO\",0,G80=\"YES\",1)","v":{"$error":"#N/A"}}]
[]
[11,"Does your organization utilize a timekeeping system to track time spent against individual grants?",null,null,null,null,"Select an option",null,null,null,null,null,null,null,null,null,null,null,{"$f":"_xlfn.IFS(G82=\"NO\",0,G82=\"YES\",1)","v":{"$error":"#N/A"}}]
[]
[12,"Is there a dedicated department or position responsible for contractual management of the grant agreement?",null,null,null,null,"Select an option",null,null,null,null,null,null,null,null,null,null,null,{"$f":"_xlfn.IFS(G84=\"NO\",0,G84=\"YES\",1)","v":{"$error":"#N/A"}}]
[]
[13,"Does you organization have employees to comprise project team and implement the grant agreement? (no – if these employees need to be hired for this project specifically)",null,null,null,null,"Select an option",null,null,null,null,null,null,null,null,null,null,null,{"$f":"_xlfn.IFS(G86=\"NO\",0,G86=\"YES\",1)","v":{"$error":"#N/A"}}]
[]
[14,"Does your organization’s authorized signatory have relevant power of attorney or any equivalent document or authority proving such signing authority? ",null,null,null,null,"Select an option",null,null,null,null,null,null,null,null,null,null,null,{"$f":"_xlfn.IFS(G88=\"NO\",0,G88=\"YES\",1)","v":{"$error":"#N/A"}}]
[]
[15,"Does your organization have an ethics policy?",null,null,null,null,"Select an option",null,null,null,null,null,null,null,null,null,null,null,{"$f":"_xlfn.IFS(G90=\"NO\",0,G90=\"YES\",1)","v":{"$error":"#N/A"}}]
[]
[16,"Does the institute have an accounting or financial manual to outline the procedures for authorizing expenses?",null,null,null,null,"Select an option",null,null,null,null,null,null,null,null,null,null,null,{"$f":"_xlfn.IFS(G92=\"NO\",0,G92=\"YES\",1)","v":{"$error":"#N/A"}},{"$f":"SUM(S92:S100)","v":{"$error":"#N/A"}}]
[]
[17,"Does the institute utilize an accounting system to separately track donor funds and expenses?",null,null,null,null,"Select an option",null,null,null,null,null,null,null,null,null,null,null,{"$f":"_xlfn.IFS(G94=\"NO\",0,G94=\"YES\",1)","v":{"$error":"#N/A"}}]
[]
[18,"Does you organization have any experience receiving grant funding to organization’s bank account from oversees? ",null,null,null,null,"Select an option",null,null,null,null,null,null,null,null,null,null,null,{"$f":"_xlfn.IFS(G96=\"NO\",0,G96=\"YES\",1)","v":{"$error":"#N/A"}}]
[]
[19,"Can your organization provide excerpts from general ledger to prove expenses incurred under a grant agreement?",null,null,null,null,"Select an option",null,null,null,null,null,null,null,null,null,null,null,{"$f":"_xlfn.IFS(G98=\"NO\",0,G98=\"YES\",1)","v":{"$error":"#N/A"}}]
[]
[20,"Has your organization been audited in the past 3 years? If yes, please provide CRDF Global with a copy of the most recent audit report.",null,null,null,null,"Select an option",null,null,null,null,null,null,null,null,null,null,null,{"$f":"_xlfn.IFS(G100=\"NO\",0,G100=\"YES\",1)","v":{"$error":"#N/A"}}]

{"sheet":"IDF (Partner 2)","index":3,"n_rows":100,"n_cols":20,"rows_kept":100,"cut":false,"hidden":false,"merged":[[0,0,0,8],[6,1,6,7],[7,1,7,7],[9,1,9,7],[10,3,10,7],[11,3,11,7],[15,1,15,2],[15,3,15,7],[17,1,17,7],[18,1,18,7],[20,1,20,7],[21,1,21,7],[12,1,12,2],[12,3,12,7],[13,1,13,2],[13,3,13,7],[14,1,14,2],[14,3,14,7],[30,1,30,3],[30,4,30,5],[30,6,30,7],[31,1,31,7],[33,1,33,7],[34,1,34,3],[34,4,34,7],[23,1,23,7],[24,1,24,7],[26,1,26,7],[27,1,27,7],[28,1,28,7],[29,1,29,5],[29,6,29,7],[40,1,40,2],[40,3,40,7],[41,1,41,2],[41,3,41,7],[42,1,42,2],[42,3,42,7],[35,1,35,3],[35,4,35,7],[36,1,36,3],[36,4,36,7],[38,1,38,7],[39,1,39,2],[39,3,39,7],[48,1,48,2],[48,3,48,7],[51,1,51,7],[52,1,52,7],[53,1,53,5],[53,6,53,7],[44,1,44,7],[45,1,45,2],[45,3,45,7],[46,1,46,2],[46,3,46,7],[47,1,47,2],[47,3,47,7],[57,1,57,5],[57,6,57,7],[59,1,59,7],[61,1,61,5],[61,6,61,7],[62,1,62,5],[62,6,62,7],[54,1,54,5],[54,6,54,7],[55,1,55,5],[55,6,55,7],[56,1,56,5],[56,6,56,7],[66,1,66,5],[66,6,66,7],[67,1,67,5],[67,6,67,7],[68,1,68,5],[68,6,68,7],[63,1,63,5],[63,6,63,7],[64,1,64,5],[64,6,64,7],[65,1,65,5],[65,6,65,7],[73,1,73,5],[73,6,73,7],[75,1,75,5],[75,6,75,7],[77,1,77,5],[77,6,77,7],[69,1,69,5],[69,6,69,7],[71,1,71,5],[71,6,71,7],[72,1,72,5],[72,6,72,7],[85,1,85,5],[85,6,85,7],[87,1,87,5],[87,6,87,7],[89,1,89,5],[89,6,89,7],[79,1,79,5],[79,6,79,7],[81,1,81,5],[81,6,81,7],[83,1,83,5],[83,6,83,7],[97,1,97,5],[97,6,97,7],[99,1,99,5],[99,6,99,7],[91,1,91,5],[91,6,91,7],[93,1,93,5],[93,6,93,7],[95,1,95,5],[95,6,95,7]],"read":"row_number_cap"}
["INSTITUTIONAL DATA FORM (IDF)"]
[]
[]
[]
[]
[]
[null,"1. Grantee Name"]
[null,null,null,null,null,null,null,null,null,null,null,null,null,null,null,null,null,{"$f":"B8","v":0}]
[]
[null,"2. Grantee Address"]
[null,"Address Line 1",null,null,null,null,null,null,null,null,null,null,null,null,null,null,null,{"$f":"D11","v":0}]
[null,"Address Line 2",null,null,null,null,null,null,null,null,null,null,null,null,null,null,null,{"$f":"D12","v":0}]
[null,"City",null,null,null,null,null,null,null,null,null,null,null,null,null,null,null,{"$f":"D13","v":0}]
[null,"State",null,null,null,null,null,null,null,null,null,null,null,null,null,null,null,{"$f":"D14","v":0}]
[null,"Postal Code",null,null,null,null,null,null,null,null,null,null,null,null,null,null,null,0]
[null,"Grantee Country",null,null,null,null,null,null,null,null,null,null,null,null,null,null,null,0]
[]
[null,"3. Grantee Phone"]
[null,null,null,null,null,null,null,null,null,null,null,null,null,null,null,null,null,{"$f":"B19","v":0}]
[]
[null,"4. Grantee E-mail"]
[null,null,null,null,null,null,null,null,null,null,null,null,null,null,null,null,null,{"$f":"B22","v":0}]
[]
[null,"5. Grantee Website"]
[null,null,null,null,null,null,null,null,null,null,null,null,null,null,null,null,null,{"$f":"B25","v":0}]
[]
[null,"6. Institution Type"]
[null,"Select an option"]
[null,"Select for US Orgs only"]
[null,"Is your organization registered as a charitable/non-profit entity?",null,null,null,null,"Select an option"]
[null,"Is your organization single-audited?"]
[null,"If yes, please provide CRDF Global with a copy of the most recent single audit report."]
[]
[null,"7. Grantee's Unique Entity ID (UEID)"]
[null,"UEID",null,null,null,null,null,null,null,null,null,null,null,null,null,null,null,{"$f":"E35","v":0}]
[null,"Local registration number",null,null,null,null,null,null,null,null,null,null,null,null,null,null,null,{"$f":"E36","v":0}]
[null,"TIN/EIN (US Tax Liability Only) "]
[]
[null,"8. Principal Investigator"]
[null,"Name",null,null,null,null,null,null,null,null,null,null,null,null,null,null,null,0]
[null,"Position",null,null,null,null,null,null,null,null,null,null,null,null,null,null,null,0]
[null,"Phone Number",null,null,null,null,null,null,null,null,null,null,null,null,null,null,null,0]
[null,"E-mail",null,null,null,null,null,null,null,null,null,null,null,null,null,null,null,0]
[null,null,null,null,null,null,null,null,null,null,null,null,null,null,null,null,null,{"$f":"D43","v":0}]
[null,"9. Authorized Institutional Representative holding signatory Authority "]
[null,"Name",null,null,null,null,null,null,null,null,null,null,null,null,null,null,null,{"$f":"D46","v":0}]
[null,"Position",null,null,null,null,null,null,null,null,null,null,null,null,null,null,null,{"$f":"D47","v":0}]
[null,"Phone Number",null,null,null,null,null,null,null,null,null,null,null,null,null,null,null,0]
[null,"E-mail",null,null,null,null,null,null,null,null,null,null,null,null,null,null,null,0]
[]
[]
[null,"10. Executive /Management Reporting Requirements  "]
[null,"CRDF Global may be required to publicly report the names and total compensation of the five most highly compensated individuals at the awardees’ institution. If you meet any of the criteria below, you are exempt from this requirement. Please find and check any applicable exemption:"]
[null,"1. In the previous tax year, institutional gross income from all sources was LESS than $300,000.",null,null,null,null,"Exempt"]
[null,"2. The institution received LESS than 80 percent of its annual gross revenues in U.S. federal funding (Contracts, Grants, Subgrants, Subcontracts or Loans).",null,null,null,null,"Exempt"]
[null,"3. The institution received LESS than $25,000,0000 in annual gross revenues from U.S. federal funding sources (Contracts, Grants, Subgrants, Subcontracts or Loans).",null,null,null,null,"Exempt"]
[null,"4. Executive compensation is publicly reported under section 13(a) or 15(d) of the Security Exchange Act or section 6104 of the Internal Revenue Code.",null,null,null,null,"Exempt"]
[null,"I do not meet any of the exemptions above.  I will provide the names and total compensation of the five most highly compensated executives. ",null,null,null,null,"Not Exempt"]
[]
[null,"11.  Future Grantee Questionnaire"]
[]
[1,"Did your organization expend more than US $750,000.00 in U.S. Government Federal awards (Grants, Cooperative Agreements, Assistance Awards) in the previous fiscal year? If yes, please provide CRDF Global with a copy of the most recent single audit report.",null,null,null,null,"Select an option"]
[null,null,null,null,null,null,null,null,null,null,null,null,null,null,null,null,null,null,{"$f":"SUM(S64:S74)","v":{"$error":"#N/A"}}]
[2,"Over the past three years, has your institution previously received or currently receives U.S. Federal financial assistance funds? ",null,null,null,null,"Select an option",null,null,null,null,null,null,null,null,null,null,null,{"$f":"_xlfn.IFS(G64=\"NO\",0,G64=\"YES\",1)","v":{"$error":"#N/A"}}]
[]
[3,"Over the past three years, has your institution previously received or currently receives funds from any other international funders?",null,null,null,null,"Select an option",null,null,null,null,null,null,null,null,null,null,null,{"$f":"_xlfn.IFS(G66=\"NO\",0,G66=\"YES\",1)","v":{"$error":"#N/A"}}]
[]
[4,"Over the past three years, has your institution previously received or currently receives a grant from CRDF Global? ",null,null,null,null,"Select an option",null,null,null,null,null,null,null,null,null,null,null,{"$f":"_xlfn.IFS(G68=\"NO\",0,G68=\"YES\",1)","v":{"$error":"#N/A"}}]
[]
[5,"Has your organization implemented projects/grants similar to the scope of work proposed in this application?",null,null,null,null,"Select an option",null,null,null,null,null,null,null,null,null,null,null,{"$f":"_xlfn.IFS(G70=\"NO\",0,G70=\"YES\",1)","v":{"$error":"#N/A"}}]
[]
[6,"Were all project goals and objectives met and all activities fully implemented in previously implemented grants?",null,null,null,null,"Select an option",null,null,null,null,null,null,null,null,null,null,null,{"$f":"_xlfn.IFS(G72=\"NO\",0,G72=\"YES\",1)","v":{"$error":"#N/A"}}]
[]
[7,"Has your organization ever had a grant or contract terminated for cause?",null,null,null,null,"Select an option",null,null,null,null,null,null,null,null,null,null,null,{"$f":"_xlfn.IFS(G74=\"NO\",0,G74=\"YES\",1)","v":{"$error":"#N/A"}}]
[]
[8,"Does the proposed grant funds comprise more than 10% of grantee’s operational funds?",null,null,null,null,"Select an option",null,null,null,null,null,null,null,null,null,null,null,{"$f":"_xlfn.IFS(G76=\"NO\",0,G76=\"YES\",1)","v":{"$error":"#N/A"}},{"$f":"SUM(S76:S90)","v":{"$error":"#N/A"}}]
[]
[9,"What was the maximum budget of a single-grant previously managed by your organization over the last three years?",null,null,null,null,0,null,null,null,null,null,null,null,null,null,null,null,{"$f":"_xlfn.IFS(G78>=150000,1,G78<150000,0)","v":0}]
[]
[10,"Is there a dedicated department or position responsible for entering grant financial data into the accounting system?",null,null,null,null,"Select an option",null,null,null,null,null,null,null,null,null,null,null,{"$f":"_xlfn.IFS(G80=\"NO\",0,G80=\"YES\",1)","v":{"$error":"#N/A"}}]
[]
[11,"Does your organization utilize a timekeeping system to track time spent against individual grants?",null,null,null,null,"Select an option",null,null,null,null,null,null,null,null,null,null,null,{"$f":"_xlfn.IFS(G82=\"NO\",0,G82=\"YES\",1)","v":{"$error":"#N/A"}}]
[]
[12,"Is there a dedicated department or position responsible for contractual management of the grant agreement?",null,null,null,null,"Select an option",null,null,null,null,null,null,null,null,null,null,null,{"$f":"_xlfn.IFS(G84=\"NO\",0,G84=\"YES\",1)","v":{"$error":"#N/A"}}]
[]
[13,"Does you organization have employees to comprise project team and implement the grant agreement? (no – if these employees need to be hired for this project specifically)",null,null,null,null,"Select an option",null,null,null,null,null,null,null,null,null,null,null,{"$f":"_xlfn.IFS(G86=\"NO\",0,G86=\"YES\",1)","v":{"$error":"#N/A"}}]
[]
[14,"Does your organization’s authorized signatory have relevant power of attorney or any equivalent document or authority proving such signing authority? ",null,null,null,null,"Select an option",null,null,null,null,null,null,null,null,null,null,null,{"$f":"_xlfn.IFS(G88=\"NO\",0,G88=\"YES\",1)","v":{"$error":"#N/A"}}]
[]
[15,"Does your organization have an ethics policy?",null,null,null,null,"Select an option",null,null,null,null,null,null,null,null,null,null,null,{"$f":"_xlfn.IFS(G90=\"NO\",0,G90=\"YES\",1)","v":{"$error":"#N/A"}}]
[]
[16,"Does the institute have an accounting or financial manual to outline the procedures for authorizing expenses?",null,null,null,null,"Select an option",null,null,null,null,null,null,null,null,null,null,null,{"$f":"_xlfn.IFS(G92=\"NO\",0,G92=\"YES\",1)","v":{"$error":"#N/A"}},{"$f":"SUM(S92:S100)","v":{"$error":"#N/A"}}]
[]
[17,"Does the institute utilize an accounting system to separately track donor funds and expenses?",null,null,null,null,"Select an option",null,null,null,null,null,null,null,null,null,null,null,{"$f":"_xlfn.IFS(G94=\"NO\",0,G94=\"YES\",1)","v":{"$error":"#N/A"}}]
[]
[18,"Does you organization have any experience receiving grant funding to organization’s bank account from oversees? ",null,null,null,null,"Select an option",null,null,null,null,null,null,null,null,null,null,null,{"$f":"_xlfn.IFS(G96=\"NO\",0,G96=\"YES\",1)","v":{"$error":"#N/A"}}]
[]
[19,"Can your organization provide excerpts from general ledger to prove expenses incurred under a grant agreement?",null,null,null,null,"Select an option",null,null,null,null,null,null,null,null,null,null,null,{"$f":"_xlfn.IFS(G98=\"NO\",0,G98=\"YES\",1)","v":{"$error":"#N/A"}}]
[]
[20,"Has your organization been audited in the past 3 years? If yes, please provide CRDF Global with a copy of the most recent audit report.",null,null,null,null,"Select an option",null,null,null,null,null,null,null,null,null,null,null,{"$f":"_xlfn.IFS(G100=\"NO\",0,G100=\"YES\",1)","v":{"$error":"#N/A"}}]

{"sheet":"A. Project Overview ","index":4,"n_rows":42,"n_cols":21,"rows_kept":42,"cut":false,"hidden":false,"merged":[[38,0,38,8],[39,0,39,8],[41,0,41,8],[29,0,29,8],[31,0,31,8],[33,0,33,8],[34,0,34,8],[36,0,36,8],[28,0,28,8],[22,0,24,1],[22,2,22,8],[23,2,23,8],[24,2,24,8],[18,0,18,8],[20,0,20,1],[20,2,20,8],[0,3,0,5],[1,0,1,8],[3,0,3,1],[3,2,3,8],[5,0,5,1],[5,2,5,8],[7,0,8,1],[12,0,12,8],[13,0,13,8],[15,0,15,8],[10,0,10,1]]}
[null,null,null,"ATTACHMENT A"]
["PROJECT OVERVIEW"]
[]
["Project title:",null,"[enter here]",null,null,null,null,null,null,null,null,null,null,null,null,null,null,null,null,null,{"$f":"C4","v":"[enter here]"}]
[]
["Project duration:",null,"[enter here]",null,null,null,null,null,null,null,null,null,null,null,null,null,null,null,null,null,{"$f":"C6","v":"[enter here]"}]
[]
["Bioethics",null,null,"Human Subjects",null,null,"Animal Subjects "]
[null,null,null,"Recombinant DNA",null,null,"Clinical trials"]
[]
["Project Narrative is incorporated by reference",null,null,"Yes",null,"No"]
[]
["1. Project Description (Abstract)"]
["Please add a short narrative description of the project that summarizes why the work is being done, what the project aims to accomplish, and any general information about planned activities and anticipated results. "]
[]
["[enter here]"]
[]
[]
["2. Project Goal and Objectives"]
[]
["Project Goal:",null,"[enter here]"]
[]
["Project\n Objectives:",null,"1) [enter here]"]
[null,null,"2) [enter here]"]
[null,null,"3) [enter here]"]
[]
["For Grant Officers: if more fields are needed, please unhide rows 28-43. If not, delete this message. "]
[]
["Partner Information"]
["Include information for at least two and up to five in-country partners. "]
[]
["[enter here]"]
[]
["Applicant and Partner Interest"]
["Explain what you hope to gain by developing a local network and why participation in the cross-alliance network will strengthen uptake of evidence into program and policy as it relates to HIV. Each partner must describe the role they will play and what they hope to gain by participating in the alliance. Be sure to include partners’ expertise as it relates to implementation science and HIV. (no more than one page)"]
[]
["[enter here]"]
[]
["Local Alliance Priority"]
["Explain the HIV priority areas the local alliance will address and why/how this was chosen. Please provide context specific to the country or local area you are applying from. (no more than half a page)"]
[]
["[enter here]"]

{"sheet":"B. SOW","index":5,"n_rows":410,"n_cols":19,"rows_kept":410,"cut":false,"hidden":false,"merged":[[407,0,407,8],[389,0,389,8],[380,0,380,8],[381,0,381,8],[404,0,404,8],[401,0,401,8],[402,0,402,8],[403,0,403,8],[396,0,396,8],[397,0,397,8],[398,0,398,8],[399,0,399,8],[400,0,400,8],[391,0,391,8],[392,0,392,8],[384,0,384,8],[409,0,409,8],[411,0,411,8],[413,0,413,8],[415,0,415,8],[41,0,41,8],[74,0,74,8],[75,0,75,8],[42,0,42,8],[107,0,107,8],[108,0,108,8],[140,0,140,8],[173,0,173,8],[174,0,174,8],[405,0,405,8],[207,0,207,8],[385,0,385,8],[386,0,386,8],[387,0,387,8],[388,0,388,8],[393,0,393,8],[394,0,394,8],[395,0,395,8],[382,0,382,8],[383,0,383,8],[379,0,379,8],[368,0,368,8],[369,0,369,8],[370,0,370,8],[373,0,373,1],[373,2,373,8],[371,0,371,8],[372,0,372,8],[363,0,363,8],[364,0,364,8],[365,0,365,8],[366,0,366,8],[367,0,367,8],[374,0,374,8],[376,0,376,8],[377,0,377,8],[378,0,378,8],[358,0,358,8],[359,0,359,8],[360,0,360,8],[361,0,361,8],[362,0,362,8],[352,0,352,8],[353,0,353,8],[354,0,354,8],[355,0,355,8],[356,0,356,8],[347,0,347,8],[348,0,348,8],[349,0,349,8],[350,0,350,8],[351,0,351,8],[341,0,341,8],[343,0,343,8],[344,0,344,8],[345,0,345,8],[346,0,346,8],[335,0,335,8],[336,0,336,8],[337,0,337,8],[340,0,340,1],[340,2,340,8],[338,0,338,8],[339,0,339,8],[330,0,330,8],[331,0,331,8],[332,0,332,8],[333,0,333,8],[334,0,334,8],[325,0,325,8],[326,0,326,8],[327,0,327,8],[328,0,328,8],[329,0,329,8],[319,0,319,8],[320,0,320,8],[321,0,321,8],[322,0,322,8],[323,0,323,8],[314,0,314,8],[315,0,315,8],[316,0,316,8],[317,0,317,8],[318,0,318,8],[308,0,308,8],[310,0,310,8],[311,0,311,8],[312,0,312,8],[313,0,313,8],[302,0,302,8],[303,0,303,8],[304,0,304,8],[307,0,307,1],[307,2,307,8],[305,0,305,8],[306,0,306,8],[297,0,297,8],[298,0,298,8],[299,0,299,8],[300,0,300,8],[301,0,301,8],[292,0,292,8],[293,0,293,8],[294,0,294,8],[295,0,295,8],[296,0,296,8],[286,0,286,8],[287,0,287,8],[288,0,288,8],[289,0,289,8],[290,0,290,8],[281,0,281,8],[282,0,282,8],[283,0,283,8],[284,0,284,8],[285,0,285,8],[275,0,275,8],[277,0,277,8],[278,0,278,8],[279,0,279,8],[280,0,280,8],[269,0,269,8],[270,0,270,8],[271,0,271,8],[274,0,274,1],[274,2,274,8],[272,0,272,8],[273,0,273,8],[264,0,264,8],[265,0,265,8],[266,0,266,8],[267,0,267,8],[268,0,268,8],[259,0,259,8],[260,0,260,8],[261,0,261,8],[262,0,262,8],[263,0,263,8],[253,0,253,8],[254,0,254,8],[255,0,255,8],[256,0,256,8],[257,0,257,8],[248,0,248,8],[249,0,249,8],[250,0,250,8],[251,0,251,8],[252,0,252,8],[242,0,242,8],[244,0,244,8],[245,0,245,8],[246,0,246,8],[247,0,247,8],[236,0,236,8],[237,0,237,8],[238,0,238,8],[241,0,241,1],[241,2,241,8],[239,0,239,8],[240,0,240,8],[231,0,231,8],[232,0,232,8],[233,0,233,8],[234,0,234,8],[235,0,235,8],[226,0,226,8],[227,0,227,8],[228,0,228,8],[229,0,229,8],[230,0,230,8],[220,0,220,8],[221,0,221,8],[222,0,222,8],[223,0,223,8],[224,0,224,8],[215,0,215,8],[216,0,216,8],[217,0,217,8],[218,0,218,8],[219,0,219,8],[209,0,209,8],[211,0,211,8],[212,0,212,8],[213,0,213,8],[214,0,214,8],[203,0,203,8],[204,0,204,8],[205,0,205,8],[208,0,208,1],[208,2,208,8],[198,0,198,8],[199,0,199,8],[200,0,200,8],[201,0,201,8],[202,0,202,8],[193,0,193,8],[194,0,194,8],[195,0,195,8],[196,0,196,8],[197,0,197,8],[187,0,187,8],[188,0,188,8],[189,0,189,8],[190,0,190,8],[191,0,191,8],[182,0,182,8],[183,0,183,8],[184,0,184,8],[185,0,185,8],[186,0,186,8],[176,0,176,8],[178,0,178,8],[179,0,179,8],[180,0,180,8],[181,0,181,8],[170,0,170,8],[171,0,171,8],[172,0,172,8],[175,0,175,1],[175,2,175,8],[165,0,165,8],[166,0,166,8],[167,0,167,8],[168,0,168,8],[169,0,169,8],[160,0,160,8],[161,0,161,8],[162,0,162,8],[163,0,163,8],[164,0,164,8],[154,0,154,8],[155,0,155,8],[156,0,156,8],[157,0,157,8],[158,0,158,8],[149,0,149,8],[150,0,150,8],[151,0,151,8],[152,0,152,8],[153,0,153,8],[143,0,143,8],[145,0,145,8],[146,0,146,8],[147,0,147,8],[148,0,148,8],[137,0,137,8],[138,0,138,8],[139,0,139,8],[142,0,142,1],[142,2,142,8],[132,0,132,8],[133,0,133,8],[134,0,134,8],[135,0,135,8],[136,0,136,8],[127,0,127,8],[128,0,128,8],[129,0,129,8],[130,0,130,8],[131,0,131,8],[121,0,121,8],[122,0,122,8],[123,0,123,8],[124,0,124,8],[125,0,125,8],[116,0,116,8],[117,0,117,8],[118,0,118,8],[119,0,119,8],[120,0,120,8],[110,0,110,8],[112,0,112,8],[113,0,113,8],[114,0,114,8],[115,0,115,8],[104,0,104,8],[105,0,105,8],[106,0,106,8],[109,0,109,1],[109,2,109,8],[99,0,99,8],[100,0,100,8],[101,0,101,8],[102,0,102,8],[103,0,103,8],[95,0,95,8],[96,0,96,8],[97,0,97,8],[98,0,98,8],[88,0,88,8],[89,0,89,8],[90,0,90,8],[91,0,91,8],[92,0,92,8],[85,0,85,8],[86,0,86,8],[87,0,87,8],[77,0,77,8],[79,0,79,8],[80,0,80,8],[81,0,81,8],[82,0,82,8],[94,0,94,8],[73,0,73,8],[76,0,76,1],[76,2,76,8],[67,0,67,8],[68,0,68,8],[69,0,69,8],[70,0,70,8],[83,0,83,8],[84,0,84,8],[63,0,63,8],[64,0,64,8],[65,0,65,8],[55,0,55,8],[57,0,57,8],[58,0,58,8],[59,0,59,8],[71,0,71,8],[72,0,72,8],[56,0,56,8],[66,0,66,8],[61,0,61,8],[62,0,62,8],[40,0,40,8],[33,0,33,8],[34,0,34,8],[35,0,35,8],[36,0,36,8],[37,0,37,8],[38,0,38,8],[39,0,39,8],[23,0,23,8],[31,0,31,8],[32,0,32,8],[28,0,28,8],[26,0,26,8],[24,0,24,8],[25,0,25,8],[48,0,48,8],[50,0,50,8],[52,0,52,8],[54,0,54,8],[43,0,43,1],[43,2,43,8],[44,0,44,8],[46,0,46,8],[47,0,47,8],[49,0,49,8],[51,0,51,8],[53,0,53,8],[11,0,11,8],[13,0,13,8],[14,0,14,8],[29,0,29,8],[30,0,30,8],[15,0,15,8],[16,0,16,8],[17,0,17,8],[18,0,18,8],[19,0,19,8],[20,0,20,8],[21,0,21,8],[22,0,22,8],[8,0,8,8],[10,0,10,1],[10,2,10,8],[0,3,0,5],[1,0,1,8],[3,0,3,1],[5,0,5,1],[5,2,5,8],[2,0,2,8],[3,2,3,8]]}
[null,null,null,"ATTACHMENT B"]
["SCOPE OF WORK (SOW)"]
[]
["Project title:",null,{"$f":"'A. Project Overview '!U4","v":"[enter here]"},null,null,null,null,null,null,null,null,null,null,null,null,null,null,null,{"$f":"C4","v":"[enter here]"}]
[]
["Project duration:",null,{"$f":"'A. Project Overview '!U6","v":"[enter here]"},null,null,null,null,null,null,null,null,null,null,null,null,null,null,null,{"$f":"C6","v":"[enter here]"}]
[]
[]
["Project Activities and Deliverables"]
[]
["Milestone 1",null,"First Reporting Period Anticipated Duration:",null,null,null,null,null,null,null,null,null,null,null,null,null,null,null,{"$f":"C11","v":"First Reporting Period Anticipated Duration:"}]
[]
["Activities:"]
[]
["1) ",null,null,null,null,null,null,null,null,null,null,null,null,null,null,null,null,null,{"$f":"A15","v":"1) "}]
["2) ",null,null,null,null,null,null,null,null,null,null,null,null,null,null,null,null,null,{"$f":"A16","v":"2) "}]
["3) ",null,null,null,null,null,null,null,null,null,null,null,null,null,null,null,null,null,"3) "]
["4) ",null,null,null,null,null,null,null,null,null,null,null,null,null,null,null,null,null,"4) "]
["5) ",null,null,null,null,null,null,null,null,null,null,null,null,null,null,null,null,null,"5) "]
["6) ",null,null,null,null,null,null,null,null,null,null,null,null,null,null,null,null,null,"6) "]
["7) ",null,null,null,null,null,null,null,null,null,null,null,null,null,null,null,null,null,"7) "]
["8) ",null,null,null,null,null,null,null,null,null,null,null,null,null,null,null,null,null,"8) "]
["9) ",null,null,null,null,null,null,null,null,null,null,null,null,null,null,null,null,null,"9) "]
["10) ",null,null,null,null,null,null,null,null,null,null,null,null,null,null,null,null,null,"10) "]
["11) ",null,null,null,null,null,null,null,null,null,null,null,null,null,null,null,null,null,"11) "]
["12) ",null,null,null,null,null,null,null,null,null,null,null,null,null,null,null,null,null,"12) "]
[]
["Deliverables:"]
[]
["1) ",null,null,null,null,null,null,null,null,null,null,null,null,null,null,null,null,null,{"$f":"A30","v":"1) "}]
["2) ",null,null,null,null,null,null,null,null,null,null,null,null,null,null,null,null,null,{"$f":"A31","v":"2) "}]
["3) ",null,null,null,null,null,null,null,null,null,null,null,null,null,null,null,null,null,"3) "]
["4) ",null,null,null,null,null,null,null,null,null,null,null,null,null,null,null,null,null,"4) "]
["5) ",null,null,null,null,null,null,null,null,null,null,null,null,null,null,null,null,null,"5) "]
["6) ",null,null,null,null,null,null,null,null,null,null,null,null,null,null,null,null,null,"6) "]
["7) ",null,null,null,null,null,null,null,null,null,null,null,null,null,null,null,null,null,"7) "]
["8) ",null,null,null,null,null,null,null,null,null,null,null,null,null,null,null,null,null,"8) "]
["9) ",null,null,null,null,null,null,null,null,null,null,null,null,null,null,null,null,null,"9) "]
["10) ",null,null,null,null,null,null,null,null,null,null,null,null,null,null,null,null,null,"10) "]
["11) ",null,null,null,null,null,null,null,null,null,null,null,null,null,null,null,null,null,"11) "]
["12) ",null,null,null,null,null,null,null,null,null,null,null,null,null,null,null,null,null,"12) "]
[]
[]
["Milestone 2",null,"Second Reporting Period Anticipated Duration:",null,null,null,null,null,null,null,null,null,null,null,null,null,null,null,{"$f":"C44","v":"Second Reporting Period Anticipated Duration:"}]
[]
["Activities:"]
[]
["1) ",null,null,null,null,null,null,null,null,null,null,null,null,null,null,null,null,null,{"$f":"A48","v":"1) "}]
["2) ",null,null,null,null,null,null,null,null,null,null,null,null,null,null,null,null,null,{"$f":"A49","v":"2) "}]
["3) ",null,null,null,null,null,null,null,null,null,null,null,null,null,null,null,null,null,"3) "]
["4) ",null,null,null,null,null,null,null,null,null,null,null,null,null,null,null,null,null,"4) "]
["5) ",null,null,null,null,null,null,null,null,null,null,null,null,null,null,null,null,null,"5) "]
["6) ",null,null,null,null,null,null,null,null,null,null,null,null,null,null,null,null,null,"6) "]
["7) ",null,null,null,null,null,null,null,null,null,null,null,null,null,null,null,null,null,"7) "]
["8) ",null,null,null,null,null,null,null,null,null,null,null,null,null,null,null,null,null,"8) "]
["9) ",null,null,null,null,null,null,null,null,null,null,null,null,null,null,null,null,null,"9) "]
["10) ",null,null,null,null,null,null,null,null,null,null,null,null,null,null,null,null,null,"10) "]
["11) ",null,null,null,null,null,null,null,null,null,null,null,null,null,null,null,null,null,"11) "]
["12) ",null,null,null,null,null,null,null,null,null,null,null,null,null,null,null,null,null,"12) "]
[]
["Deliverables:"]
[]
["1) ",null,null,null,null,null,null,null,null,null,null,null,null,null,null,null,null,null,{"$f":"A63","v":"1) "}]
[null,null,null,null,null,null,null,null,null,null,null,null,null,null,null,null,null,null,{"$f":"A64","v":0}]
["3) ",null,null,null,null,null,null,null,null,null,null,null,null,null,null,null,null,null,"3) "]
["4) ",null,null,null,null,null,null,null,null,null,null,null,null,null,null,null,null,null,"4) "]
["5) ",null,null,null,null,null,null,null,null,null,null,null,null,null,null,null,null,null,"5) "]
["6) ",null,null,null,null,null,null,null,null,null,null,null,null,null,null,null,null,null,"6) "]
["7) ",null,null,null,null,null,null,null,null,null,null,null,null,null,null,null,null,null,"7) "]
["8) ",null,null,null,null,null,null,null,null,null,null,null,null,null,null,null,null,null,"8) "]
["9) ",null,null,null,null,null,null,null,null,null,null,null,null,null,null,null,null,null,"9) "]
["10) ",null,null,null,null,null,null,null,null,null,null,null,null,null,null,null,null,null,"10) "]
["11) ",null,null,null,null,null,null,null,null,null,null,null,null,null,null,null,null,null,"11) "]
["12) ",null,null,null,null,null,null,null,null,null,null,null,null,null,null,null,null,null,"12) "]
[]
[]
["Milestone 3",null,"Third Reporting Period Anticipated Duration:",null,null,null,null,null,null,null,null,null,null,null,null,null,null,null,{"$f":"C77","v":"Third Reporting Period Anticipated Duration:"}]
[]
["Activities:"]
[]
["1) ",null,null,null,null,null,null,null,null,null,null,null,null,null,null,null,null,null,{"$f":"A81","v":"1) "}]
["2) ",null,null,null,null,null,null,null,null,null,null,null,null,null,null,null,null,null,{"$f":"A82","v":"2) "}]
["3) ",null,null,null,null,null,null,null,null,null,null,null,null,null,null,null,null,null,"3) "]
["4) ",null,null,null,null,null,null,null,null,null,null,null,null,null,null,null,null,null,"4) "]
["5) ",null,null,null,null,null,null,null,null,null,null,null,null,null,null,null,null,null,"5) "]
["6) ",null,null,null,null,null,null,null,null,null,null,null,null,null,null,null,null,null,"6) "]
["7) ",null,null,null,null,null,null,null,null,null,null,null,null,null,null,null,null,null,"7) "]
["8) ",null,null,null,null,null,null,null,null,null,null,null,null,null,null,null,null,null,"8) "]
["9) ",null,null,null,null,null,null,null,null,null,null,null,null,null,null,null,null,null,"9) "]
["10) ",null,null,null,null,null,null,null,null,null,null,null,null,null,null,null,null,null,"10) "]
["11) ",null,null,null,null,null,null,null,null,null,null,null,null,null,null,null,null,null,"11) "]
["12) ",null,null,null,null,null,null,null,null,null,null,null,null,null,null,null,null,null,"12) "]
[]
["Deliverables:"]
[]
["1) ",null,null,null,null,null,null,null,null,null,null,null,null,null,null,null,null,null,{"$f":"A96","v":"1) "}]
["2) ",null,null,null,null,null,null,null,null,null,null,null,null,null,null,null,null,null,{"$f":"A97","v":"2) "}]
["3) ",null,null,null,null,null,null,null,null,null,null,null,null,null,null,null,null,null,"3) "]
["4) ",null,null,null,null,null,null,null,null,null,null,null,null,null,null,null,null,null,"4) "]
["5) ",null,null,null,null,null,null,null,null,null,null,null,null,null,null,null,null,null,"5) "]
["6) ",null,null,null,null,null,null,null,null,null,null,null,null,null,null,null,null,null,"6) "]
["7) ",null,null,null,null,null,null,null,null,null,null,null,null,null,null,null,null,null,"7) "]
["8) ",null,null,null,null,null,null,null,null,null,null,null,null,null,null,null,null,null,"8) "]
["9) ",null,null,null,null,null,null,null,null,null,null,null,null,null,null,null,null,null,"9) "]
["10) ",null,null,null,null,null,null,null,null,null,null,null,null,null,null,null,null,null,"10) "]
["11) ",null,null,null,null,null,null,null,null,null,null,null,null,null,null,null,null,null,"11) "]
["12) ",null,null,null,null,null,null,null,null,null,null,null,null,null,null,null,null,null,"12) "]
[]
[]
["Milestone 4",null,"Fourth Reporting Period",null,null,null,null,null,null,null,null,null,null,null,null,null,null,null,{"$f":"C110","v":"Fourth Reporting Period"}]
[]
["Activities:"]
[]
["1) ",null,null,null,null,null,null,null,null,null,null,null,null,null,null,null,null,null,{"$f":"A114","v":"1) "}]
["2) ",null,null,null,null,null,null,null,null,null,null,null,null,null,null,null,null,null,{"$f":"A115","v":"2) "}]
["3) ",null,null,null,null,null,null,null,null,null,null,null,null,null,null,null,null,null,"3) "]
["4) ",null,null,null,null,null,null,null,null,null,null,null,null,null,null,null,null,null,"4) "]
["5) ",null,null,null,null,null,null,null,null,null,null,null,null,null,null,null,null,null,"5) "]
["6) ",null,null,null,null,null,null,null,null,null,null,null,null,null,null,null,null,null,"6) "]
["7) ",null,null,null,null,null,null,null,null,null,null,null,null,null,null,null,null,null,"7) "]
["8) ",null,null,null,null,null,null,null,null,null,null,null,null,null,null,null,null,null,"8) "]
["9) ",null,null,null,null,null,null,null,null,null,null,null,null,null,null,null,null,null,"9) "]
["10) ",null,null,null,null,null,null,null,null,null,null,null,null,null,null,null,null,null,"10) "]
["11) ",null,null,null,null,null,null,null,null,null,null,null,null,null,null,null,null,null,"11) "]
["12) ",null,null,null,null,null,null,null,null,null,null,null,null,null,null,null,null,null,"12) "]
[]
["Deliverables:"]
[]
["1) ",null,null,null,null,null,null,null,null,null,null,null,null,null,null,null,null,null,{"$f":"A129","v":"1) "}]
["2) ",null,null,null,null,null,null,null,null,null,null,null,null,null,null,null,null,null,{"$f":"A130","v":"2) "}]
["3) ",null,null,null,null,null,null,null,null,null,null,null,null,null,null,null,null,null,"3) "]
["4) ",null,null,null,null,null,null,null,null,null,null,null,null,null,null,null,null,null,"4) "]
["5) ",null,null,null,null,null,null,null,null,null,null,null,null,null,null,null,null,null,"5) "]
["6) ",null,null,null,null,null,null,null,null,null,null,null,null,null,null,null,null,null,"6) "]
["7) ",null,null,null,null,null,null,null,null,null,null,null,null,null,null,null,null,null,"7) "]
["8) ",null,null,null,null,null,null,null,null,null,null,null,null,null,null,null,null,null,"8) "]
["9) ",null,null,null,null,null,null,null,null,null,null,null,null,null,null,null,null,null,"9) "]
["10) ",null,null,null,null,null,null,null,null,null,null,null,null,null,null,null,null,null,"10) "]
["11) ",null,null,null,null,null,null,null,null,null,null,null,null,null,null,null,null,null,"11) "]
["12) ",null,null,null,null,null,null,null,null,null,null,null,null,null,null,null,null,null,"12) "]
[]
[]
["Milestone 5",null,"Fifth Reporting Period",null,null,null,null,null,null,null,null,null,null,null,null,null,null,null,{"$f":"C143","v":"Fifth Reporting Period"}]
[]
["Activities:"]
[]
["1) ",null,null,null,null,null,null,null,null,null,null,null,null,null,null,null,null,null,{"$f":"A147","v":"1) "}]
["2) ",null,null,null,null,null,null,null,null,null,null,null,null,null,null,null,null,null,{"$f":"A148","v":"2) "}]
["3) ",null,null,null,null,null,null,null,null,null,null,null,null,null,null,null,null,null,"3) "]
["4) ",null,null,null,null,null,null,null,null,null,null,null,null,null,null,null,null,null,"4) "]
["5) ",null,null,null,null,null,null,null,null,null,null,null,null,null,null,null,null,null,"5) "]
["6) ",null,null,null,null,null,null,null,null,null,null,null,null,null,null,null,null,null,"6) "]
["7) ",null,null,null,null,null,null,null,null,null,null,null,null,null,null,null,null,null,"7) "]
["8) ",null,null,null,null,null,null,null,null,null,null,null,null,null,null,null,null,null,"8) "]
["9) ",null,null,null,null,null,null,null,null,null,null,null,null,null,null,null,null,null,"9) "]
["10) ",null,null,null,null,null,null,null,null,null,null,null,null,null,null,null,null,null,"10) "]
["11) ",null,null,null,null,null,null,null,null,null,null,null,null,null,null,null,null,null,"11) "]
["12) ",null,null,null,null,null,null,null,null,null,null,null,null,null,null,null,null,null,"12) "]
[]
["Deliverables:"]
[]
["1) ",null,null,null,null,null,null,null,null,null,null,null,null,null,null,null,null,null,{"$f":"A162","v":"1) "}]
["2) ",null,null,null,null,null,null,null,null,null,null,null,null,null,null,null,null,null,{"$f":"A163","v":"2) "}]
["3) ",null,null,null,null,null,null,null,null,null,null,null,null,null,null,null,null,null,"3) "]
["4) ",null,null,null,null,null,null,null,null,null,null,null,null,null,null,null,null,null,"4) "]
["5) ",null,null,null,null,null,null,null,null,null,null,null,null,null,null,null,null,null,"5) "]
["6) ",null,null,null,null,null,null,null,null,null,null,null,null,null,null,null,null,null,"6) "]
["7) ",null,null,null,null,null,null,null,null,null,null,null,null,null,null,null,null,null,"7) "]
["8) ",null,null,null,null,null,null,null,null,null,null,null,null,null,null,null,null,null,"8) "]
["9) ",null,null,null,null,null,null,null,null,null,null,null,null,null,null,null,null,null,"9) "]
["10) ",null,null,null,null,null,null,null,null,null,null,null,null,null,null,null,null,null,"10) "]
["11) ",null,null,null,null,null,null,null,null,null,null,null,null,null,null,null,null,null,"11) "]
["12) ",null,null,null,null,null,null,null,null,null,null,null,null,null,null,null,null,null,"12) "]
[]
[]
["Milestone 6",null,"Sixth Reporting Period",null,null,null,null,null,null,null,null,null,null,null,null,null,null,null,{"$f":"C176","v":"Sixth Reporting Period"}]
[]
["Activities:"]
[]
["1) ",null,null,null,null,null,null,null,null,null,null,null,null,null,null,null,null,null,{"$f":"A180","v":"1) "}]
["2) ",null,null,null,null,null,null,null,null,null,null,null,null,null,null,null,null,null,{"$f":"A181","v":"2) "}]
["3) ",null,null,null,null,null,null,null,null,null,null,null,null,null,null,null,null,null,"3) "]
["4) ",null,null,null,null,null,null,null,null,null,null,null,null,null,null,null,null,null,"4) "]
["5) ",null,null,null,null,null,null,null,null,null,null,null,null,null,null,null,null,null,"5) "]
["6) ",null,null,null,null,null,null,null,null,null,null,null,null,null,null,null,null,null,"6) "]
["7) ",null,null,null,null,null,null,null,null,null,null,null,null,null,null,null,null,null,"7) "]
["8) ",null,null,null,null,null,null,null,null,null,null,null,null,null,null,null,null,null,"8) "]
["9) ",null,null,null,null,null,null,null,null,null,null,null,null,null,null,null,null,null,"9) "]
["10) ",null,null,null,null,null,null,null,null,null,null,null,null,null,null,null,null,null,"10) "]
["11) ",null,null,null,null,null,null,null,null,null,null,null,null,null,null,null,null,null,"11) "]
["12) ",null,null,null,null,null,null,null,null,null,null,null,null,null,null,null,null,null,"12) "]
[]
["Deliverables:"]
[]
["1) ",null,null,null,null,null,null,null,null,null,null,null,null,null,null,null,null,null,{"$f":"A195","v":"1) "}]
["2) ",null,null,null,null,null,null,null,null,null,null,null,null,null,null,null,null,null,{"$f":"A196","v":"2) "}]
["3) ",null,null,null,null,null,null,null,null,null,null,null,null,null,null,null,null,null,"3) "]
["4) ",null,null,null,null,null,null,null,null,null,null,null,null,null,null,null,null,null,"4) "]
["5) ",null,null,null,null,null,null,null,null,null,null,null,null,null,null,null,null,null,"5) "]
["6) ",null,null,null,null,null,null,null,null,null,null,null,null,null,null,null,null,null,"6) "]
["7) ",null,null,null,null,null,null,null,null,null,null,null,null,null,null,null,null,null,"7) "]
["8) ",null,null,null,null,null,null,null,null,null,null,null,null,null,null,null,null,null,"8) "]
["9) ",null,null,null,null,null,null,null,null,null,null,null,null,null,null,null,null,null,"9) "]
["10) ",null,null,null,null,null,null,null,null,null,null,null,null,null,null,null,null,null,"10) "]
["11) ",null,null,null,null,null,null,null,null,null,null,null,null,null,null,null,null,null,"11) "]
["12) ",null,null,null,null,null,null,null,null,null,null,null,null,null,null,null,null,null,"12) "]
[]
[]
["Milestone 7",null,"Seventh Reporting Period",null,null,null,null,null,null,null,null,null,null,null,null,null,null,null,{"$f":"C209","v":"Seventh Reporting Period"}]
[]
["Activities:"]
[]
["1) "]
["2) ",null,null,null,null,null,null,null,null,null,null,null,null,null,null,null,null,null,{"$f":"A213","v":"1) "}]
["3) ",null,null,null,null,null,null,null,null,null,null,null,null,null,null,null,null,null,{"$f":"A214","v":"2) "}]
["4) ",null,null,null,null,null,null,null,null,null,null,null,null,null,null,null,null,null,"3) "]
["5) ",null,null,null,null,null,null,null,null,null,null,null,null,null,null,null,null,null,"4) "]
["6) ",null,null,null,null,null,null,null,null,null,null,null,null,null,null,null,null,null,"5) "]
["7) ",null,null,null,null,null,null,null,null,null,null,null,null,null,null,null,null,null,"6) "]
["8) ",null,null,null,null,null,null,null,null,null,null,null,null,null,null,null,null,null,"7) "]
["9) ",null,null,null,null,null,null,null,null,null,null,null,null,null,null,null,null,null,"8) "]
["10) ",null,null,null,null,null,null,null,null,null,null,null,null,null,null,null,null,null,"9) "]
["11) ",null,null,null,null,null,null,null,null,null,null,null,null,null,null,null,null,null,"10) "]
["12) ",null,null,null,null,null,null,null,null,null,null,null,null,null,null,null,null,null,{"$f":"A223","v":"11) "}]
[null,null,null,null,null,null,null,null,null,null,null,null,null,null,null,null,null,null,"12) "]
["Deliverables:"]
[]
["1) ",null,null,null,null,null,null,null,null,null,null,null,null,null,null,null,null,null,{"$f":"A228","v":"1) "}]
["2) ",null,null,null,null,null,null,null,null,null,null,null,null,null,null,null,null,null,{"$f":"A229","v":"2) "}]
["3) ",null,null,null,null,null,null,null,null,null,null,null,null,null,null,null,null,null,"3) "]
["4) ",null,null,null,null,null,null,null,null,null,null,null,null,null,null,null,null,null,"4) "]
["5) ",null,null,null,null,null,null,null,null,null,null,null,null,null,null,null,null,null,"5) "]
["6) ",null,null,null,null,null,null,null,null,null,null,null,null,null,null,null,null,null,"6) "]
["7) ",null,null,null,null,null,null,null,null,null,null,null,null,null,null,null,null,null,"7) "]
["8) ",null,null,null,null,null,null,null,null,null,null,null,null,null,null,null,null,null,"8) "]
["9) ",null,null,null,null,null,null,null,null,null,null,null,null,null,null,null,null,null,"9) "]
["10) ",null,null,null,null,null,null,null,null,null,null,null,null,null,null,null,null,null,"10) "]
["11) ",null,null,null,null,null,null,null,null,null,null,null,null,null,null,null,null,null,"11) "]
["12) ",null,null,null,null,null,null,null,null,null,null,null,null,null,null,null,null,null,"12) "]
[]
[]
["Milestone 8",null,"Eighth Reporting Period",null,null,null,null,null,null,null,null,null,null,null,null,null,null,null,{"$f":"C242","v":"Eighth Reporting Period"}]
[]
["Activities:"]
[]
["1) ",null,null,null,null,null,null,null,null,null,null,null,null,null,null,null,null,null,{"$f":"A246","v":"1) "}]
["2) ",null,null,null,null,null,null,null,null,null,null,null,null,null,null,null,null,null,{"$f":"A247","v":"2) "}]
["3) ",null,null,null,null,null,null,null,null,null,null,null,null,null,null,null,null,null,"3) "]
["4) ",null,null,null,null,null,null,null,null,null,null,null,null,null,null,null,null,null,"4) "]
["5) ",null,null,null,null,null,null,null,null,null,null,null,null,null,null,null,null,null,"5) "]
["6) ",null,null,null,null,null,null,null,null,null,null,null,null,null,null,null,null,null,"6) "]
["7) ",null,null,null,null,null,null,null,null,null,null,null,null,null,null,null,null,null,"7) "]
["8) ",null,null,null,null,null,null,null,null,null,null,null,null,null,null,null,null,null,"8) "]
["9) ",null,null,null,null,null,null,null,null,null,null,null,null,null,null,null,null,null,"9) "]
["10) ",null,null,null,null,null,null,null,null,null,null,null,null,null,null,null,null,null,"10) "]
["11) ",null,null,null,null,null,null,null,null,null,null,null,null,null,null,null,null,null,"11) "]
["12) ",null,null,null,null,null,null,null,null,null,null,null,null,null,null,null,null,null,"12) "]
[]
["Deliverables:"]
[]
["1) ",null,null,null,null,null,null,null,null,null,null,null,null,null,null,null,null,null,{"$f":"A261","v":"1) "}]
["2) ",null,null,null,null,null,null,null,null,null,null,null,null,null,null,null,null,null,{"$f":"A262","v":"2) "}]
["3) ",null,null,null,null,null,null,null,null,null,null,null,null,null,null,null,null,null,"3) "]
["4) ",null,null,null,null,null,null,null,null,null,null,null,null,null,null,null,null,null,"4) "]
["5) ",null,null,null,null,null,null,null,null,null,null,null,null,null,null,null,null,null,"5) "]
["6) ",null,null,null,null,null,null,null,null,null,null,null,null,null,null,null,null,null,"6) "]
["7) ",null,null,null,null,null,null,null,null,null,null,null,null,null,null,null,null,null,"7) "]
["8) ",null,null,null,null,null,null,null,null,null,null,null,null,null,null,null,null,null,"8) "]
["9) ",null,null,null,null,null,null,null,null,null,null,null,null,null,null,null,null,null,"9) "]
["10) ",null,null,null,null,null,null,null,null,null,null,null,null,null,null,null,null,null,"10) "]
["11) ",null,null,null,null,null,null,null,null,null,null,null,null,null,null,null,null,null,"11) "]
["12) ",null,null,null,null,null,null,null,null,null,null,null,null,null,null,null,null,null,"12) "]
[]
[]
["Milestone 9",null,"Nineth Reporting Period",null,null,null,null,null,null,null,null,null,null,null,null,null,null,null,{"$f":"C275","v":"Nineth Reporting Period"}]
[]
["Activities:"]
[]
["1) "]
["2) "]
["3) "]
["4) "]
["5) "]
["6) "]
["7) "]
["8) "]
["9) "]
["10) "]
["11) "]
["12) "]
[]
["Deliverables:"]
[]
["1) "]
["2) "]
["3) "]
["4) "]
["5) "]
["6) "]
["7) "]
["8) "]
["9) "]
["10) "]
["11) "]
["12) "]
[]
[]
["Milestone 10",null,"Tenth Reporting Period",null,null,null,null,null,null,null,null,null,null,null,null,null,null,null,{"$f":"C308","v":"Tenth Reporting Period"}]
[]
["Activities:"]
[]
["1) "]
["2) "]
["3) "]
["4) "]
["5) "]
["6) "]
["7) "]
["8) "]
["9) "]
["10) "]
["11) "]
["12) "]
[]
["Deliverables:"]
[]
["1) "]
["2) "]
["3) "]
["4) "]
["5) "]
["6) "]
["7) "]
["8) "]
["9) "]
["10) "]
["11) "]
["12) "]
[]
[]
["Milestone 11",null,"Eleventh Reporting Period",null,null,null,null,null,null,null,null,null,null,null,null,null,null,null,{"$f":"C341","v":"Eleventh Reporting Period"}]
[]
["Activities:"]
[]
["1) "]
["2) "]
["3) "]
["4) "]
["5) "]
["6) "]
["7) "]
["8) "]
["9) "]
["10) "]
["11) "]
["12) "]
[]
["Deliverables:"]
[]
["1) "]
["2) "]
["3) "]
["4) "]
["5) "]
["6) "]
["7) "]
["8) "]
["9) "]
["10) "]
["11) "]
["12) "]
[]
[]
["Milestone 12",null,"Twelfth Reporting Period",null,null,null,null,null,null,null,null,null,null,null,null,null,null,null,{"$f":"C374","v":"Twelfth Reporting Period"}]
[]
["Activities:"]
[]
["1) "]
["2) "]
["3) "]
["4) "]
["5) "]
["6) "]
["7) "]
["8) "]
["9) "]
["10) "]
["11) "]
["12) "]
[]
["Deliverables:"]
[]
["1) "]
["2) "]
["3) "]
["4) "]
["5) "]
["6) "]
["7) "]
["8) "]
["9) "]
["10) "]
["11) "]
["12) "]
[]
[]
[]
[" Other Relevant Information "]
[]
["[please add any other information relevant to the project]"]

{"sheet":"C. WP (S)","index":6,"n_rows":480,"n_cols":18,"rows_kept":480,"cut":false,"hidden":false,"merged":[[0,0,0,17],[2,0,2,17],[185,1,185,5],[186,1,186,5],[187,1,187,5],[188,1,188,5],[189,1,189,5],[180,1,180,5],[181,1,181,5],[182,1,182,5],[183,1,183,5],[184,1,184,5],[173,1,173,5],[174,1,174,5],[175,1,175,5],[138,1,138,5],[151,1,151,5],[176,1,176,5],[179,1,179,5],[168,1,168,5],[169,1,169,5],[170,1,170,5],[171,1,171,5],[99,1,99,5],[112,1,112,5],[125,1,125,5],[1,0,1,17],[8,1,8,5],[21,1,21,5],[34,1,34,5],[47,1,47,5],[60,1,60,5],[73,1,73,5],[86,1,86,5],[9,0,20,0],[9,1,9,5],[10,1,10,5],[16,1,16,5],[17,1,17,5],[18,1,18,5],[19,1,19,5],[20,1,20,5],[11,1,11,5],[12,1,12,5],[13,1,13,5],[14,1,14,5],[15,1,15,5],[22,0,33,0],[22,1,22,5],[23,1,23,5],[24,1,24,5],[25,1,25,5],[26,1,26,5],[27,1,27,5],[28,1,28,5],[29,1,29,5],[30,1,30,5],[31,1,31,5],[32,1,32,5],[33,1,33,5],[35,0,46,0],[35,1,35,5],[36,1,36,5],[37,1,37,5],[38,1,38,5],[39,1,39,5],[40,1,40,5],[41,1,41,5],[42,1,42,5],[43,1,43,5],[44,1,44,5],[45,1,45,5],[46,1,46,5],[48,0,59,0],[48,1,48,5],[49,1,49,5],[50,1,50,5],[51,1,51,5],[52,1,52,5],[53,1,53,5],[54,1,54,5],[55,1,55,5],[56,1,56,5],[57,1,57,5],[58,1,58,5],[59,1,59,5],[61,0,72,0],[61,1,61,5],[62,1,62,5],[63,1,63,5],[64,1,64,5],[65,1,65,5],[66,1,66,5],[67,1,67,5],[68,1,68,5],[69,1,69,5],[70,1,70,5],[71,1,71,5],[72,1,72,5],[74,0,85,0],[74,1,74,5],[75,1,75,5],[76,1,76,5],[77,1,77,5],[78,1,78,5],[79,1,79,5],[80,1,80,5],[81,1,81,5],[82,1,82,5],[83,1,83,5],[84,1,84,5],[85,1,85,5],[87,0,98,0],[87,1,87,5],[88,1,88,5],[89,1,89,5],[90,1,90,5],[91,1,91,5],[92,1,92,5],[93,1,93,5],[94,1,94,5],[95,1,95,5],[96,1,96,5],[97,1,97,5],[98,1,98,5],[100,0,111,0],[100,1,100,5],[101,1,101,5],[102,1,102,5],[103,1,103,5],[104,1,104,5],[105,1,105,5],[106,1,106,5],[107,1,107,5],[108,1,108,5],[109,1,109,5],[110,1,110,5],[111,1,111,5],[113,0,124,0],[113,1,113,5],[114,1,114,5],[115,1,115,5],[116,1,116,5],[117,1,117,5],[118,1,118,5],[119,1,119,5],[120,1,120,5],[121,1,121,5],[122,1,122,5],[123,1,123,5],[124,1,124,5],[126,0,137,0],[126,1,126,5],[127,1,127,5],[128,1,128,5],[129,1,129,5],[130,1,130,5],[131,1,131,5],[132,1,132,5],[133,1,133,5],[134,1,134,5],[135,1,135,5],[136,1,136,5],[137,1,137,5],[139,0,150,0],[139,1,139,5],[140,1,140,5],[141,1,141,5],[142,1,142,5],[143,1,143,5],[144,1,144,5],[145,1,145,5],[146,1,146,5],[147,1,147,5],[148,1,148,5],[149,1,149,5],[150,1,150,5],[166,1,166,5],[167,0,178,0],[167,1,167,5],[177,1,177,5],[178,1,178,5],[152,0,163,0],[152,1,152,5],[153,1,153,5],[154,1,154,5],[155,1,155,5],[156,1,156,5],[157,1,157,5],[158,1,158,5],[159,1,159,5],[160,1,160,5],[161,1,161,5],[162,1,162,5],[163,1,163,5],[172,1,172,5],[180,0,191,0],[191,1,191,5],[192,1,192,5],[193,0,204,0],[193,1,193,5],[194,1,194,5],[195,1,195,5],[196,1,196,5],[197,1,197,5],[198,1,198,5],[199,1,199,5],[200,1,200,5],[201,1,201,5],[202,1,202,5],[203,1,203,5],[204,1,204,5],[190,1,190,5],[205,1,205,5],[206,0,217,0],[206,1,206,5],[207,1,207,5],[208,1,208,5],[209,1,209,5],[210,1,210,5],[211,1,211,5],[212,1,212,5],[213,1,213,5],[214,1,214,5],[215,1,215,5],[216,1,216,5],[217,1,217,5],[218,1,218,5],[219,0,230,0],[219,1,219,5],[220,1,220,5],[221,1,221,5],[222,1,222,5],[223,1,223,5],[224,1,224,5],[225,1,225,5],[226,1,226,5],[227,1,227,5],[228,1,228,5],[229,1,229,5],[230,1,230,5],[231,1,231,5],[232,0,243,0],[232,1,232,5],[233,1,233,5],[234,1,234,5],[235,1,235,5],[236,1,236,5],[237,1,237,5],[238,1,238,5],[239,1,239,5],[240,1,240,5],[241,1,241,5],[242,1,242,5],[243,1,243,5],[244,1,244,5],[245,0,256,0],[245,1,245,5],[246,1,246,5],[247,1,247,5],[248,1,248,5],[249,1,249,5],[250,1,250,5],[251,1,251,5],[252,1,252,5],[253,1,253,5],[254,1,254,5],[255,1,255,5],[256,1,256,5],[257,1,257,5],[258,0,269,0],[258,1,258,5],[259,1,259,5],[260,1,260,5],[261,1,261,5],[262,1,262,5],[263,1,263,5],[264,1,264,5],[265,1,265,5],[266,1,266,5],[267,1,267,5],[268,1,268,5],[269,1,269,5],[270,1,270,5],[271,0,282,0],[271,1,271,5],[272,1,272,5],[273,1,273,5],[274,1,274,5],[275,1,275,5],[276,1,276,5],[277,1,277,5],[278,1,278,5],[279,1,279,5],[280,1,280,5],[281,1,281,5],[282,1,282,5],[283,1,283,5],[284,0,295,0],[284,1,284,5],[285,1,285,5],[286,1,286,5],[287,1,287,5],[288,1,288,5],[289,1,289,5],[290,1,290,5],[291,1,291,5],[292,1,292,5],[293,1,293,5],[294,1,294,5],[295,1,295,5],[296,1,296,5],[297,0,308,0],[297,1,297,5],[298,1,298,5],[299,1,299,5],[300,1,300,5],[301,1,301,5],[302,1,302,5],[303,1,303,5],[304,1,304,5],[305,1,305,5],[306,1,306,5],[307,1,307,5],[308,1,308,5],[309,1,309,5],[310,0,321,0],[310,1,310,5],[311,1,311,5],[312,1,312,5],[313,1,313,5],[314,1,314,5],[315,1,315,5],[316,1,316,5],[317,1,317,5],[318,1,318,5],[319,1,319,5],[320,1,320,5],[321,1,321,5],[324,1,324,5],[325,0,336,0],[325,1,325,5],[326,1,326,5],[327,1,327,5],[328,1,328,5],[329,1,329,5],[330,1,330,5],[331,1,331,5],[332,1,332,5],[333,1,333,5],[334,1,334,5],[335,1,335,5],[336,1,336,5],[337,1,337,5],[338,0,349,0],[338,1,338,5],[339,1,339,5],[340,1,340,5],[341,1,341,5],[342,1,342,5],[343,1,343,5],[344,1,344,5],[345,1,345,5],[346,1,346,5],[347,1,347,5],[348,1,348,5],[349,1,349,5],[350,1,350,5],[351,0,362,0],[351,1,351,5],[352,1,352,5],[353,1,353,5],[354,1,354,5],[355,1,355,5],[356,1,356,5],[357,1,357,5],[358,1,358,5],[359,1,359,5],[360,1,360,5],[361,1,361,5],[362,1,362,5],[363,1,363,5],[364,0,375,0],[364,1,364,5],[365,1,365,5],[366,1,366,5],[367,1,367,5],[368,1,368,5],[369,1,369,5],[370,1,370,5],[371,1,371,5],[372,1,372,5],[373,1,373,5],[374,1,374,5],[375,1,375,5],[376,1,376,5],[377,0,388,0],[377,1,377,5],[378,1,378,5],[379,1,379,5],[380,1,380,5],[381,1,381,5],[382,1,382,5],[383,1,383,5],[384,1,384,5],[385,1,385,5],[386,1,386,5],[387,1,387,5],[388,1,388,5],[389,1,389,5],[390,0,401,0],[390,1,390,5],[391,1,391,5],[392,1,392,5],[393,1,393,5],[394,1,394,5],[395,1,395,5],[396,1,396,5],[397,1,397,5],[398,1,398,5],[399,1,399,5],[400,1,400,5],[401,1,401,5],[402,1,402,5],[403,0,414,0],[403,1,403,5],[404,1,404,5],[405,1,405,5],[406,1,406,5],[407,1,407,5],[408,1,408,5],[409,1,409,5],[410,1,410,5],[411,1,411,5],[412,1,412,5],[413,1,413,5],[414,1,414,5],[415,1,415,5],[416,0,427,0],[416,1,416,5],[417,1,417,5],[418,1,418,5],[419,1,419,5],[420,1,420,5],[421,1,421,5],[422,1,422,5],[423,1,423,5],[424,1,424,5],[425,1,425,5],[426,1,426,5],[427,1,427,5],[428,1,428,5],[429,0,440,0],[429,1,429,5],[430,1,430,5],[431,1,431,5],[432,1,432,5],[433,1,433,5],[434,1,434,5],[435,1,435,5],[436,1,436,5],[437,1,437,5],[438,1,438,5],[439,1,439,5],[440,1,440,5],[442,0,453,0],[442,1,442,5],[443,1,443,5],[444,1,444,5],[445,1,445,5],[446,1,446,5],[447,1,447,5],[448,1,448,5],[449,1,449,5],[450,1,450,5],[451,1,451,5],[452,1,452,5],[453,1,453,5],[459,1,459,5],[460,1,460,5],[461,1,461,5],[462,1,462,5],[463,1,463,5],[464,1,464,5],[465,1,465,5],[466,1,466,5],[441,1,441,5],[3,0,3,1],[3,2,3,8],[5,0,5,1],[5,2,5,8],[467,1,467,5],[468,0,479,0],[468,1,468,5],[469,1,469,5],[470,1,470,5],[471,1,471,5],[472,1,472,5],[473,1,473,5],[474,1,474,5],[475,1,475,5],[476,1,476,5],[477,1,477,5],[478,1,478,5],[479,1,479,5],[454,1,454,5],[455,0,466,0],[455,1,455,5],[456,1,456,5],[457,1,457,5],[458,1,458,5]]}
["ATTACHMENT C"]
["WORKPLAN (WP)"]
[]
["Grantee Name",null,"[enter here]"]
[]
["Principal Investigator",null,"[enter Principal Investigators here]"]
[]
[null,null,null,null,null,null,1,2,3,4,5,6,7,8,9,10,11,12]
["Milestone 1",{"$f":"'B. SOW'!S11","v":"First Reporting Period Anticipated Duration:"}]
["Deliverables",{"$f":"'B. SOW'!A30","v":"1) "}]
[null,{"$f":"'B. SOW'!A31","v":"2) "}]
[null,{"$f":"'B. SOW'!A32","v":"3) "}]
[null,{"$f":"'B. SOW'!A33","v":"4) "}]
[null,{"$f":"'B. SOW'!A34","v":"5) "}]
[null,{"$f":"'B. SOW'!A35","v":"6) "}]
[null,{"$f":"'B. SOW'!A36","v":"7) "}]
[null,{"$f":"'B. SOW'!A37","v":"8) "}]
[null,{"$f":"'B. SOW'!A38","v":"9) "}]
[null,{"$f":"'B. SOW'!A39","v":"10) "}]
[null,{"$f":"'B. SOW'!A40","v":"11) "}]
[null,{"$f":"'B. SOW'!A41","v":"12) "}]
["Milestone 2",{"$f":"'B. SOW'!S44","v":"Second Reporting Period Anticipated Duration:"}]
["Deliverables",{"$f":"'B. SOW'!A63","v":"1) "}]
[null,{"$f":"'B. SOW'!A64","v":0}]
[null,{"$f":"'B. SOW'!A65","v":"3) "}]
[null,{"$f":"'B. SOW'!A66","v":"4) "}]
[null,{"$f":"'B. SOW'!A67","v":"5) "}]
[null,{"$f":"'B. SOW'!A68","v":"6) "}]
[null,{"$f":"'B. SOW'!A69","v":"7) "}]
[null,{"$f":"'B. SOW'!A70","v":"8) "}]
[null,{"$f":"'B. SOW'!A71","v":"9) "}]
[null,{"$f":"'B. SOW'!A72","v":"10) "}]
[null,{"$f":"'B. SOW'!A73","v":"11) "}]
[null,{"$f":"'B. SOW'!A74","v":"12) "}]
["Milestone 3",{"$f":"'B. SOW'!S77","v":"Third Reporting Period Anticipated Duration:"}]
["Deliverables",{"$f":"'B. SOW'!A96","v":"1) "}]
[null,{"$f":"'B. SOW'!A97","v":"2) "}]
[null,{"$f":"'B. SOW'!A98","v":"3) "}]
[null,{"$f":"'B. SOW'!A99","v":"4) "}]
[null,{"$f":"'B. SOW'!A100","v":"5) "}]
[null,{"$f":"'B. SOW'!A101","v":"6) "}]
[null,{"$f":"'B. SOW'!A102","v":"7) "}]
[null,{"$f":"'B. SOW'!A103","v":"8) "}]
[null,{"$f":"'B. SOW'!A104","v":"9) "}]
[null,{"$f":"'B. SOW'!A105","v":"10) "}]
[null,{"$f":"'B. SOW'!A106","v":"11) "}]
[null,{"$f":"'B. SOW'!A107","v":"12) "}]
["Milestone 4",{"$f":"'B. SOW'!S110","v":"Fourth Reporting Period"}]
["Deliverables",{"$f":"'B. SOW'!A129","v":"1) "}]
[null,{"$f":"'B. SOW'!A130","v":"2) "}]
[null,{"$f":"'B. SOW'!A131","v":"3) "}]
[null,{"$f":"'B. SOW'!A132","v":"4) "}]
[null,{"$f":"'B. SOW'!A133","v":"5) "}]
[null,{"$f":"'B. SOW'!A134","v":"6) "}]
[null,{"$f":"'B. SOW'!A135","v":"7) "}]
[null,{"$f":"'B. SOW'!A136","v":"8) "}]
[null,{"$f":"'B. SOW'!A137","v":"9) "}]
[null,{"$f":"'B. SOW'!A138","v":"10) "}]
[null,{"$f":"'B. SOW'!A139","v":"11) "}]
[null,{"$f":"'B. SOW'!A140","v":"12) "}]
["Milestone 5",{"$f":"'B. SOW'!S143","v":"Fifth Reporting Period"}]
["Deliverables",{"$f":"'B. SOW'!A162","v":"1) "}]
[null,{"$f":"'B. SOW'!A163","v":"2) "}]
[null,{"$f":"'B. SOW'!A164","v":"3) "}]
[null,{"$f":"'B. SOW'!A165","v":"4) "}]
[null,{"$f":"'B. SOW'!A166","v":"5) "}]
[null,{"$f":"'B. SOW'!A167","v":"6) "}]
[null,{"$f":"'B. SOW'!A168","v":"7) "}]
[null,{"$f":"'B. SOW'!A169","v":"8) "}]
[null,{"$f":"'B. SOW'!A170","v":"9) "}]
[null,{"$f":"'B. SOW'!A171","v":"10) "}]
[null,{"$f":"'B. SOW'!A172","v":"11) "}]
[null,{"$f":"'B. SOW'!A173","v":"12) "}]
["Milestone 6",{"$f":"'B. SOW'!S176","v":"Sixth Reporting Period"}]
["Deliverables",{"$f":"'B. SOW'!A195","v":"1) "}]
[null,{"$f":"'B. SOW'!A196","v":"2) "}]
[null,{"$f":"'B. SOW'!A197","v":"3) "}]
[null,{"$f":"'B. SOW'!A198","v":"4) "}]
[null,{"$f":"'B. SOW'!A199","v":"5) "}]
[null,{"$f":"'B. SOW'!A200","v":"6) "}]
[null,{"$f":"'B. SOW'!A201","v":"7) "}]
[null,{"$f":"'B. SOW'!A202","v":"8) "}]
[null,{"$f":"'B. SOW'!A203","v":"9) "}]
[null,{"$f":"'B. SOW'!A204","v":"10) "}]
[null,{"$f":"'B. SOW'!A205","v":"11) "}]
[null,{"$f":"'B. SOW'!A206","v":"12) "}]
["Milestone 7",{"$f":"'B. SOW'!S209","v":"Seventh Reporting Period"}]
["Deliverables",{"$f":"'B. SOW'!A228","v":"1) "}]
[null,{"$f":"'B. SOW'!A229","v":"2) "}]
[null,{"$f":"'B. SOW'!A230","v":"3) "}]
[null,{"$f":"'B. SOW'!A231","v":"4) "}]
[null,{"$f":"'B. SOW'!A232","v":"5) "}]
[null,{"$f":"'B. SOW'!A233","v":"6) "}]
[null,{"$f":"'B. SOW'!A234","v":"7) "}]
[null,{"$f":"'B. SOW'!A235","v":"8) "}]
[null,{"$f":"'B. SOW'!A236","v":"9) "}]
[null,{"$f":"'B. SOW'!A237","v":"10) "}]
[null,{"$f":"'B. SOW'!A238","v":"11) "}]
[null,{"$f":"'B. SOW'!A239","v":"12) "}]
["Milestone 8",{"$f":"'B. SOW'!S242","v":"Eighth Reporting Period"}]
["Deliverables",{"$f":"'B. SOW'!A261","v":"1) "}]
[null,{"$f":"'B. SOW'!A262","v":"2) "}]
[null,{"$f":"'B. SOW'!A263","v":"3) "}]
[null,{"$f":"'B. SOW'!A264","v":"4) "}]
[null,{"$f":"'B. SOW'!A265","v":"5) "}]
[null,{"$f":"'B. SOW'!A266","v":"6) "}]
[null,{"$f":"'B. SOW'!A267","v":"7) "}]
[null,{"$f":"'B. SOW'!A268","v":"8) "}]
[null,{"$f":"'B. SOW'!A269","v":"9) "}]
[null,{"$f":"'B. SOW'!A270","v":"10) "}]
[null,{"$f":"'B. SOW'!A271","v":"11) "}]
[null,{"$f":"'B. SOW'!A272","v":"12) "}]
["Milestone 9",{"$f":"'B. SOW'!S275","v":"Nineth Reporting Period"}]
["Deliverables",{"$f":"'B. SOW'!A294","v":"1) "}]
[null,{"$f":"'B. SOW'!A295","v":"2) "}]
[null,{"$f":"'B. SOW'!A296","v":"3) "}]
[null,{"$f":"'B. SOW'!A297","v":"4) "}]
[null,{"$f":"'B. SOW'!A298","v":"5) "}]
[null,{"$f":"'B. SOW'!A299","v":"6) "}]
[null,{"$f":"'B. SOW'!A300","v":"7) "}]
[null,{"$f":"'B. SOW'!A301","v":"8) "}]
[null,{"$f":"'B. SOW'!A302","v":"9) "}]
[null,{"$f":"'B. SOW'!A303","v":"10) "}]
[null,{"$f":"'B. SOW'!A304","v":"11) "}]
[null,{"$f":"'B. SOW'!A305","v":"12) "}]
["Milestone 10",{"$f":"'B. SOW'!S308","v":"Tenth Reporting Period"}]
["Deliverables",{"$f":"'B. SOW'!A327","v":"1) "}]
[null,{"$f":"'B. SOW'!A328","v":"2) "}]
[null,{"$f":"'B. SOW'!A329","v":"3) "}]
[null,{"$f":"'B. SOW'!A330","v":"4) "}]
[null,{"$f":"'B. SOW'!A331","v":"5) "}]
[null,{"$f":"'B. SOW'!A332","v":"6) "}]
[null,{"$f":"'B. SOW'!A333","v":"7) "}]
[null,{"$f":"'B. SOW'!A334","v":"8) "}]
[null,{"$f":"'B. SOW'!A335","v":"9) "}]
[null,{"$f":"'B. SOW'!A336","v":"10) "}]
[null,{"$f":"'B. SOW'!A337","v":"11) "}]
[null,{"$f":"'B. SOW'!A338","v":"12) "}]
["Milestone 11",{"$f":"'B. SOW'!S341","v":"Eleventh Reporting Period"}]
["Deliverables",{"$f":"'B. SOW'!A360","v":"1) "}]
[null,{"$f":"'B. SOW'!A361","v":"2) "}]
[null,{"$f":"'B. SOW'!A362","v":"3) "}]
[null,{"$f":"'B. SOW'!A363","v":"4) "}]
[null,{"$f":"'B. SOW'!A364","v":"5) "}]
[null,{"$f":"'B. SOW'!A365","v":"6) "}]
[null,{"$f":"'B. SOW'!A366","v":"7) "}]
[null,{"$f":"'B. SOW'!A367","v":"8) "}]
[null,{"$f":"'B. SOW'!A368","v":"9) "}]
[null,{"$f":"'B. SOW'!A369","v":"10) "}]
[null,{"$f":"'B. SOW'!A370","v":"11) "}]
[null,{"$f":"'B. SOW'!A371","v":"12) "}]
["Milestone 12",{"$f":"'B. SOW'!S374","v":"Twelfth Reporting Period"}]
["Deliverables",{"$f":"'B. SOW'!A393","v":"1) "}]
[null,{"$f":"'B. SOW'!A394","v":"2) "}]
[null,{"$f":"'B. SOW'!A395","v":"3) "}]
[null,{"$f":"'B. SOW'!A396","v":"4) "}]
[null,{"$f":"'B. SOW'!A397","v":"5) "}]
[null,{"$f":"'B. SOW'!A398","v":"6) "}]
[null,{"$f":"'B. SOW'!A399","v":"7) "}]
[null,{"$f":"'B. SOW'!A400","v":"8) "}]
[null,{"$f":"'B. SOW'!A401","v":"9) "}]
[null,{"$f":"'B. SOW'!A402","v":"10) "}]
[null,{"$f":"'B. SOW'!A403","v":"11) "}]
[null,{"$f":"'B. SOW'!A404","v":"12) "}]
[]
[null,null,null,null,null,null,13,14,15,16,17,18,19,20,21,22,23,24]
["Milestone 1",{"$f":"'B. SOW'!S11","v":"First Reporting Period Anticipated Duration:"}]
["Deliverables",{"$f":"'B. SOW'!A30","v":"1) "}]
[null,{"$f":"'B. SOW'!A31","v":"2) "}]
[null,{"$f":"'B. SOW'!A32","v":"3) "}]
[null,{"$f":"'B. SOW'!A33","v":"4) "}]
[null,{"$f":"'B. SOW'!A34","v":"5) "}]
[null,{"$f":"'B. SOW'!A35","v":"6) "}]
[null,{"$f":"'B. SOW'!A36","v":"7) "}]
[null,{"$f":"'B. SOW'!A37","v":"8) "}]
[null,{"$f":"'B. SOW'!A38","v":"9) "}]
[null,{"$f":"'B. SOW'!A39","v":"10) "}]
[null,{"$f":"'B. SOW'!A40","v":"11) "}]
[null,{"$f":"'B. SOW'!A41","v":"12) "}]
["Milestone 2",{"$f":"'B. SOW'!S44","v":"Second Reporting Period Anticipated Duration:"}]
["Deliverables",{"$f":"'B. SOW'!A63","v":"1) "}]
[null,{"$f":"'B. SOW'!A64","v":0}]
[null,{"$f":"'B. SOW'!A65","v":"3) "}]
[null,{"$f":"'B. SOW'!A66","v":"4) "}]
[null,{"$f":"'B. SOW'!A67","v":"5) "}]
[null,{"$f":"'B. SOW'!A68","v":"6) "}]
[null,{"$f":"'B. SOW'!A69","v":"7) "}]
[null,{"$f":"'B. SOW'!A70","v":"8) "}]
[null,{"$f":"'B. SOW'!A71","v":"9) "}]
[null,{"$f":"'B. SOW'!A72","v":"10) "}]
[null,{"$f":"'B. SOW'!A73","v":"11) "}]
[null,{"$f":"'B. SOW'!A74","v":"12) "}]
["Milestone 3",{"$f":"'B. SOW'!S77","v":"Third Reporting Period Anticipated Duration:"}]
["Deliverables",{"$f":"'B. SOW'!A96","v":"1) "}]
[null,{"$f":"'B. SOW'!A97","v":"2) "}]
[null,{"$f":"'B. SOW'!A98","v":"3) "}]
[null,{"$f":"'B. SOW'!A99","v":"4) "}]
[null,{"$f":"'B. SOW'!A100","v":"5) "}]
[null,{"$f":"'B. SOW'!A101","v":"6) "}]
[null,{"$f":"'B. SOW'!A102","v":"7) "}]
[null,{"$f":"'B. SOW'!A103","v":"8) "}]
[null,{"$f":"'B. SOW'!A104","v":"9) "}]
[null,{"$f":"'B. SOW'!A105","v":"10) "}]
[null,{"$f":"'B. SOW'!A106","v":"11) "}]
[null,{"$f":"'B. SOW'!A107","v":"12) "}]
["Milestone 4",{"$f":"'B. SOW'!S110","v":"Fourth Reporting Period"}]
["Deliverables",{"$f":"'B. SOW'!A129","v":"1) "}]
[null,{"$f":"'B. SOW'!A130","v":"2) "}]
[null,{"$f":"'B. SOW'!A131","v":"3) "}]
[null,{"$f":"'B. SOW'!A132","v":"4) "}]
[null,{"$f":"'B. SOW'!A133","v":"5) "}]
[null,{"$f":"'B. SOW'!A134","v":"6) "}]
[null,{"$f":"'B. SOW'!A135","v":"7) "}]
[null,{"$f":"'B. SOW'!A136","v":"8) "}]
[null,{"$f":"'B. SOW'!A137","v":"9) "}]
[null,{"$f":"'B. SOW'!A138","v":"10) "}]
[null,{"$f":"'B. SOW'!A139","v":"11) "}]
[null,{"$f":"'B. SOW'!A140","v":"12) "}]
["Milestone 5",{"$f":"'B. SOW'!S143","v":"Fifth Reporting Period"}]
["Deliverables",{"$f":"'B. SOW'!A162","v":"1) "}]
[null,{"$f":"'B. SOW'!A163","v":"2) "}]
[null,{"$f":"'B. SOW'!A164","v":"3) "}]
[null,{"$f":"'B. SOW'!A165","v":"4) "}]
[null,{"$f":"'B. SOW'!A166","v":"5) "}]
[null,{"$f":"'B. SOW'!A167","v":"6) "}]
[null,{"$f":"'B. SOW'!A168","v":"7) "}]
[null,{"$f":"'B. SOW'!A169","v":"8) "}]
[null,{"$f":"'B. SOW'!A170","v":"9) "}]
[null,{"$f":"'B. SOW'!A171","v":"10) "}]
[null,{"$f":"'B. SOW'!A172","v":"11) "}]
[null,{"$f":"'B. SOW'!A173","v":"12) "}]
["Milestone 6",{"$f":"'B. SOW'!S176","v":"Sixth Reporting Period"}]
["Deliverables",{"$f":"'B. SOW'!A195","v":"1) "}]
[null,{"$f":"'B. SOW'!A196","v":"2) "}]
[null,{"$f":"'B. SOW'!A197","v":"3) "}]
[null,{"$f":"'B. SOW'!A198","v":"4) "}]
[null,{"$f":"'B. SOW'!A199","v":"5) "}]
[null,{"$f":"'B. SOW'!A200","v":"6) "}]
[null,{"$f":"'B. SOW'!A201","v":"7) "}]
[null,{"$f":"'B. SOW'!A202","v":"8) "}]
[null,{"$f":"'B. SOW'!A203","v":"9) "}]
[null,{"$f":"'B. SOW'!A204","v":"10) "}]
[null,{"$f":"'B. SOW'!A205","v":"11) "}]
[null,{"$f":"'B. SOW'!A206","v":"12) "}]
["Milestone 7",{"$f":"'B. SOW'!S209","v":"Seventh Reporting Period"}]
["Deliverables",{"$f":"'B. SOW'!A228","v":"1) "}]
[null,{"$f":"'B. SOW'!A229","v":"2) "}]
[null,{"$f":"'B. SOW'!A230","v":"3) "}]
[null,{"$f":"'B. SOW'!A231","v":"4) "}]
[null,{"$f":"'B. SOW'!A232","v":"5) "}]
[null,{"$f":"'B. SOW'!A233","v":"6) "}]
[null,{"$f":"'B. SOW'!A234","v":"7) "}]
[null,{"$f":"'B. SOW'!A235","v":"8) "}]
[null,{"$f":"'B. SOW'!A236","v":"9) "}]
[null,{"$f":"'B. SOW'!A237","v":"10) "}]
[null,{"$f":"'B. SOW'!A238","v":"11) "}]
[null,{"$f":"'B. SOW'!A239","v":"12) "}]
["Milestone 8",{"$f":"'B. SOW'!S242","v":"Eighth Reporting Period"}]
["Deliverables",{"$f":"'B. SOW'!A261","v":"1) "}]
[null,{"$f":"'B. SOW'!A262","v":"2) "}]
[null,{"$f":"'B. SOW'!A263","v":"3) "}]
[null,{"$f":"'B. SOW'!A264","v":"4) "}]
[null,{"$f":"'B. SOW'!A265","v":"5) "}]
[null,{"$f":"'B. SOW'!A266","v":"6) "}]
[null,{"$f":"'B. SOW'!A267","v":"7) "}]
[null,{"$f":"'B. SOW'!A268","v":"8) "}]
[null,{"$f":"'B. SOW'!A269","v":"9) "}]
[null,{"$f":"'B. SOW'!A270","v":"10) "}]
[null,{"$f":"'B. SOW'!A271","v":"11) "}]
[null,{"$f":"'B. SOW'!A272","v":"12) "}]
["Milestone 9",{"$f":"'B. SOW'!S275","v":"Nineth Reporting Period"}]
["Deliverables",{"$f":"'B. SOW'!A294","v":"1) "}]
[null,{"$f":"'B. SOW'!A295","v":"2) "}]
[null,{"$f":"'B. SOW'!A296","v":"3) "}]
[null,{"$f":"'B. SOW'!A297","v":"4) "}]
[null,{"$f":"'B. SOW'!A298","v":"5) "}]
[null,{"$f":"'B. SOW'!A299","v":"6) "}]
[null,{"$f":"'B. SOW'!A300","v":"7) "}]
[null,{"$f":"'B. SOW'!A301","v":"8) "}]
[null,{"$f":"'B. SOW'!A302","v":"9) "}]
[null,{"$f":"'B. SOW'!A303","v":"10) "}]
[null,{"$f":"'B. SOW'!A304","v":"11) "}]
[null,{"$f":"'B. SOW'!A305","v":"12) "}]
["Milestone 10",{"$f":"'B. SOW'!S341","v":"Eleventh Reporting Period"}]
["Deliverables",{"$f":"'B. SOW'!A360","v":"1) "}]
[null,{"$f":"'B. SOW'!A361","v":"2) "}]
[null,{"$f":"'B. SOW'!A362","v":"3) "}]
[null,{"$f":"'B. SOW'!A363","v":"4) "}]
[null,{"$f":"'B. SOW'!A364","v":"5) "}]
[null,{"$f":"'B. SOW'!A365","v":"6) "}]
[null,{"$f":"'B. SOW'!A366","v":"7) "}]
[null,{"$f":"'B. SOW'!A367","v":"8) "}]
[null,{"$f":"'B. SOW'!A368","v":"9) "}]
[null,{"$f":"'B. SOW'!A369","v":"10) "}]
[null,{"$f":"'B. SOW'!A370","v":"11) "}]
[null,{"$f":"'B. SOW'!A371","v":"12) "}]
["Milestone 11",{"$f":"'B. SOW'!S341","v":"Eleventh Reporting Period"}]
["Deliverables",{"$f":"'B. SOW'!A360","v":"1) "}]
[null,{"$f":"'B. SOW'!A361","v":"2) "}]
[null,{"$f":"'B. SOW'!A362","v":"3) "}]
[null,{"$f":"'B. SOW'!A363","v":"4) "}]
[null,{"$f":"'B. SOW'!A364","v":"5) "}]
[null,{"$f":"'B. SOW'!A365","v":"6) "}]
[null,{"$f":"'B. SOW'!A366","v":"7) "}]
[null,{"$f":"'B. SOW'!A367","v":"8) "}]
[null,{"$f":"'B. SOW'!A368","v":"9) "}]
[null,{"$f":"'B. SOW'!A369","v":"10) "}]
[null,{"$f":"'B. SOW'!A370","v":"11) "}]
[null,{"$f":"'B. SOW'!A371","v":"12) "}]
["Milestone 12",{"$f":"'B. SOW'!S374","v":"Twelfth Reporting Period"}]
["Deliverables",{"$f":"'B. SOW'!A393","v":"1) "}]
[null,{"$f":"'B. SOW'!A394","v":"2) "}]
[null,{"$f":"'B. SOW'!A395","v":"3) "}]
[null,{"$f":"'B. SOW'!A396","v":"4) "}]
[null,{"$f":"'B. SOW'!A397","v":"5) "}]
[null,{"$f":"'B. SOW'!A398","v":"6) "}]
[null,{"$f":"'B. SOW'!A399","v":"7) "}]
[null,{"$f":"'B. SOW'!A400","v":"8) "}]
[null,{"$f":"'B. SOW'!A401","v":"9) "}]
[null,{"$f":"'B. SOW'!A402","v":"10) "}]
[null,{"$f":"'B. SOW'!A403","v":"11) "}]
[null,{"$f":"'B. SOW'!A404","v":"12) "}]
[]
[null,null,null,null,null,null,25,26,27,28,29,30,31,32,33,34,35,36]
["Milestone 1",{"$f":"'B. SOW'!S11","v":"First Reporting Period Anticipated Duration:"}]
["Deliverables",{"$f":"'B. SOW'!A30","v":"1) "}]
[null,{"$f":"'B. SOW'!A31","v":"2) "}]
[null,{"$f":"'B. SOW'!A32","v":"3) "}]
[null,{"$f":"'B. SOW'!A33","v":"4) "}]
[null,{"$f":"'B. SOW'!A34","v":"5) "}]
[null,{"$f":"'B. SOW'!A35","v":"6) "}]
[null,{"$f":"'B. SOW'!A36","v":"7) "}]
[null,{"$f":"'B. SOW'!A37","v":"8) "}]
[null,{"$f":"'B. SOW'!A38","v":"9) "}]
[null,{"$f":"'B. SOW'!A39","v":"10) "}]
[null,{"$f":"'B. SOW'!A40","v":"11) "}]
[null,{"$f":"'B. SOW'!A41","v":"12) "}]
["Milestone 2",{"$f":"'B. SOW'!S44","v":"Second Reporting Period Anticipated Duration:"}]
["Deliverables",{"$f":"'B. SOW'!A63","v":"1) "}]
[null,{"$f":"'B. SOW'!A64","v":0}]
[null,{"$f":"'B. SOW'!A65","v":"3) "}]
[null,{"$f":"'B. SOW'!A66","v":"4) "}]
[null,{"$f":"'B. SOW'!A67","v":"5) "}]
[null,{"$f":"'B. SOW'!A68","v":"6) "}]
[null,{"$f":"'B. SOW'!A69","v":"7) "}]
[null,{"$f":"'B. SOW'!A70","v":"8) "}]
[null,{"$f":"'B. SOW'!A71","v":"9) "}]
[null,{"$f":"'B. SOW'!A72","v":"10) "}]
[null,{"$f":"'B. SOW'!A73","v":"11) "}]
[null,{"$f":"'B. SOW'!A74","v":"12) "}]
["Milestone 3",{"$f":"'B. SOW'!S77","v":"Third Reporting Period Anticipated Duration:"}]
["Deliverables",{"$f":"'B. SOW'!A96","v":"1) "}]
[null,{"$f":"'B. SOW'!A97","v":"2) "}]
[null,{"$f":"'B. SOW'!A98","v":"3) "}]
[null,{"$f":"'B. SOW'!A99","v":"4) "}]
[null,{"$f":"'B. SOW'!A100","v":"5) "}]
[null,{"$f":"'B. SOW'!A101","v":"6) "}]
[null,{"$f":"'B. SOW'!A102","v":"7) "}]
[null,{"$f":"'B. SOW'!A103","v":"8) "}]
[null,{"$f":"'B. SOW'!A104","v":"9) "}]
[null,{"$f":"'B. SOW'!A105","v":"10) "}]
[null,{"$f":"'B. SOW'!A106","v":"11) "}]
[null,{"$f":"'B. SOW'!A107","v":"12) "}]
["Milestone 4",{"$f":"'B. SOW'!S110","v":"Fourth Reporting Period"}]
["Deliverables",{"$f":"'B. SOW'!A129","v":"1) "}]
[null,{"$f":"'B. SOW'!A130","v":"2) "}]
[null,{"$f":"'B. SOW'!A131","v":"3) "}]
[null,{"$f":"'B. SOW'!A132","v":"4) "}]
[null,{"$f":"'B. SOW'!A133","v":"5) "}]
[null,{"$f":"'B. SOW'!A134","v":"6) "}]
[null,{"$f":"'B. SOW'!A135","v":"7) "}]
[null,{"$f":"'B. SOW'!A136","v":"8) "}]
[null,{"$f":"'B. SOW'!A137","v":"9) "}]
[null,{"$f":"'B. SOW'!A138","v":"10) "}]
[null,{"$f":"'B. SOW'!A139","v":"11) "}]
[null,{"$f":"'B. SOW'!A140","v":"12) "}]
["Milestone 5",{"$f":"'B. SOW'!S143","v":"Fifth Reporting Period"}]
["Deliverables",{"$f":"'B. SOW'!A162","v":"1) "}]
[null,{"$f":"'B. SOW'!A163","v":"2) "}]
[null,{"$f":"'B. SOW'!A164","v":"3) "}]
[null,{"$f":"'B. SOW'!A165","v":"4) "}]
[null,{"$f":"'B. SOW'!A166","v":"5) "}]
[null,{"$f":"'B. SOW'!A167","v":"6) "}]
[null,{"$f":"'B. SOW'!A168","v":"7) "}]
[null,{"$f":"'B. SOW'!A169","v":"8) "}]
[null,{"$f":"'B. SOW'!A170","v":"9) "}]
[null,{"$f":"'B. SOW'!A171","v":"10) "}]
[null,{"$f":"'B. SOW'!A172","v":"11) "}]
[null,{"$f":"'B. SOW'!A173","v":"12) "}]
["Milestone 6",{"$f":"'B. SOW'!S176","v":"Sixth Reporting Period"}]
["Deliverables",{"$f":"'B. SOW'!A195","v":"1) "}]
[null,{"$f":"'B. SOW'!A196","v":"2) "}]
[null,{"$f":"'B. SOW'!A197","v":"3) "}]
[null,{"$f":"'B. SOW'!A198","v":"4) "}]
[null,{"$f":"'B. SOW'!A199","v":"5) "}]
[null,{"$f":"'B. SOW'!A200","v":"6) "}]
[null,{"$f":"'B. SOW'!A201","v":"7) "}]
[null,{"$f":"'B. SOW'!A202","v":"8) "}]
[null,{"$f":"'B. SOW'!A203","v":"9) "}]
[null,{"$f":"'B. SOW'!A204","v":"10) "}]
[null,{"$f":"'B. SOW'!A205","v":"11) "}]
[null,{"$f":"'B. SOW'!A206","v":"12) "}]
["Milestone 7",{"$f":"'B. SOW'!S209","v":"Seventh Reporting Period"}]
["Deliverables",{"$f":"'B. SOW'!A228","v":"1) "}]
[null,{"$f":"'B. SOW'!A229","v":"2) "}]
[null,{"$f":"'B. SOW'!A230","v":"3) "}]
[null,{"$f":"'B. SOW'!A231","v":"4) "}]
[null,{"$f":"'B. SOW'!A232","v":"5) "}]
[null,{"$f":"'B. SOW'!A233","v":"6) "}]
[null,{"$f":"'B. SOW'!A234","v":"7) "}]
[null,{"$f":"'B. SOW'!A235","v":"8) "}]
[null,{"$f":"'B. SOW'!A236","v":"9) "}]
[null,{"$f":"'B. SOW'!A237","v":"10) "}]
[null,{"$f":"'B. SOW'!A238","v":"11) "}]
[null,{"$f":"'B. SOW'!A239","v":"12) "}]
["Milestone 8",{"$f":"'B. SOW'!S242","v":"Eighth Reporting Period"}]
["Deliverables",{"$f":"'B. SOW'!A261","v":"1) "}]
[null,{"$f":"'B. SOW'!A262","v":"2) "}]
[null,{"$f":"'B. SOW'!A263","v":"3) "}]
[null,{"$f":"'B. SOW'!A264","v":"4) "}]
[null,{"$f":"'B. SOW'!A265","v":"5) "}]
[null,{"$f":"'B. SOW'!A266","v":"6) "}]
[null,{"$f":"'B. SOW'!A267","v":"7) "}]
[null,{"$f":"'B. SOW'!A268","v":"8) "}]
[null,{"$f":"'B. SOW'!A269","v":"9) "}]
[null,{"$f":"'B. SOW'!A270","v":"10) "}]
[null,{"$f":"'B. SOW'!A271","v":"11) "}]
[null,{"$f":"'B. SOW'!A272","v":"12) "}]
["Milestone 9",{"$f":"'B. SOW'!S275","v":"Nineth Reporting Period"}]
["Deliverables",{"$f":"'B. SOW'!A294","v":"1) "}]
[null,{"$f":"'B. SOW'!A295","v":"2) "}]
[null,{"$f":"'B. SOW'!A296","v":"3) "}]
[null,{"$f":"'B. SOW'!A297","v":"4) "}]
[null,{"$f":"'B. SOW'!A298","v":"5) "}]
[null,{"$f":"'B. SOW'!A299","v":"6) "}]
[null,{"$f":"'B. SOW'!A300","v":"7) "}]
[null,{"$f":"'B. SOW'!A301","v":"8) "}]
[null,{"$f":"'B. SOW'!A302","v":"9) "}]
[null,{"$f":"'B. SOW'!A303","v":"10) "}]
[null,{"$f":"'B. SOW'!A304","v":"11) "}]
[null,{"$f":"'B. SOW'!A305","v":"12) "}]
["Milestone 10",{"$f":"'B. SOW'!S308","v":"Tenth Reporting Period"}]
["Deliverables",{"$f":"'B. SOW'!A327","v":"1) "}]
[null,{"$f":"'B. SOW'!A328","v":"2) "}]
[null,{"$f":"'B. SOW'!A329","v":"3) "}]
[null,{"$f":"'B. SOW'!A330","v":"4) "}]
[null,{"$f":"'B. SOW'!A331","v":"5) "}]
[null,{"$f":"'B. SOW'!A332","v":"6) "}]
[null,{"$f":"'B. SOW'!A333","v":"7) "}]
[null,{"$f":"'B. SOW'!A334","v":"8) "}]
[null,{"$f":"'B. SOW'!A335","v":"9) "}]
[null,{"$f":"'B. SOW'!A336","v":"10) "}]
[null,{"$f":"'B. SOW'!A337","v":"11) "}]
[null,{"$f":"'B. SOW'!A338","v":"12) "}]
["Milestone 11",{"$f":"'B. SOW'!S341","v":"Eleventh Reporting Period"}]
["Deliverables",{"$f":"'B. SOW'!A360","v":"1) "}]
[null,{"$f":"'B. SOW'!A361","v":"2) "}]
[null,{"$f":"'B. SOW'!A362","v":"3) "}]
[null,{"$f":"'B. SOW'!A363","v":"4) "}]
[null,{"$f":"'B. SOW'!A364","v":"5) "}]
[null,{"$f":"'B. SOW'!A365","v":"6) "}]
[null,{"$f":"'B. SOW'!A366","v":"7) "}]
[null,{"$f":"'B. SOW'!A367","v":"8) "}]
[null,{"$f":"'B. SOW'!A368","v":"9) "}]
[null,{"$f":"'B. SOW'!A369","v":"10) "}]
[null,{"$f":"'B. SOW'!A370","v":"11) "}]
[null,{"$f":"'B. SOW'!A371","v":"12) "}]
["Milestone 12",{"$f":"'B. SOW'!S374","v":"Twelfth Reporting Period"}]
["Deliverables",{"$f":"'B. SOW'!A393","v":"1) "}]
[null,{"$f":"'B. SOW'!A394","v":"2) "}]
[null,{"$f":"'B. SOW'!A395","v":"3) "}]
[null,{"$f":"'B. SOW'!A396","v":"4) "}]
[null,{"$f":"'B. SOW'!A397","v":"5) "}]
[null,{"$f":"'B. SOW'!A398","v":"6) "}]
[null,{"$f":"'B. SOW'!A399","v":"7) "}]
[null,{"$f":"'B. SOW'!A400","v":"8) "}]
[null,{"$f":"'B. SOW'!A401","v":"9) "}]
[null,{"$f":"'B. SOW'!A402","v":"10) "}]
[null,{"$f":"'B. SOW'!A403","v":"11) "}]
[null,{"$f":"'B. SOW'!A404","v":"12) "}]

{"sheet":"C. WP (C)","index":7,"n_rows":145,"n_cols":12,"rows_kept":145,"cut":false,"hidden":true,"merged":[[131,0,131,3],[131,4,131,8],[132,0,132,3],[132,4,132,8],[133,0,133,3],[133,4,133,8],[134,0,134,3],[134,4,134,8],[144,0,144,5],[144,6,144,8],[139,0,139,3],[139,4,139,8],[140,0,140,3],[140,4,140,8],[141,0,141,3],[141,4,141,8],[142,0,142,3],[142,4,142,8],[143,0,143,3],[143,4,143,8],[135,0,135,3],[135,4,135,8],[136,0,136,3],[136,4,136,8],[109,0,109,3],[109,4,109,8],[110,0,110,3],[110,4,110,8],[111,0,111,3],[111,4,111,8],[112,0,112,5],[112,6,112,8],[115,0,115,3],[115,4,115,8],[114,0,114,8],[104,0,104,3],[104,4,104,8],[105,0,105,3],[105,4,105,8],[106,0,106,3],[106,4,106,8],[107,0,107,3],[107,4,107,8],[108,0,108,3],[108,4,108,8],[62,0,62,3],[62,4,62,8],[63,0,63,3],[63,4,63,8],[64,0,64,3],[64,4,64,8],[67,0,67,8],[67,9,67,11],[68,0,68,3],[68,4,68,8],[48,0,48,3],[48,4,48,8],[51,0,51,8],[51,9,51,11],[52,0,52,3],[52,4,52,8],[53,0,53,3],[53,4,53,8],[49,0,49,5],[49,6,49,8],[43,0,43,3],[43,4,43,8],[44,0,44,3],[44,4,44,8],[45,0,45,3],[45,4,45,8],[46,0,46,3],[46,4,46,8],[47,0,47,3],[47,4,47,8],[38,0,38,3],[38,4,38,8],[39,0,39,3],[39,4,39,8],[40,0,40,3],[40,4,40,8],[41,0,41,3],[41,4,41,8],[42,0,42,3],[42,4,42,8],[26,0,26,3],[27,0,27,3],[28,0,28,3],[29,0,29,3],[30,0,30,3],[31,0,31,3],[32,0,32,3],[37,0,37,3],[37,4,37,8],[33,0,33,5],[33,6,33,8],[29,4,29,8],[30,4,30,8],[31,4,31,8],[32,4,32,8],[35,0,35,8],[22,0,22,3],[23,0,23,3],[22,4,22,8],[23,4,23,8],[9,0,9,1],[9,2,9,8],[10,2,10,8],[24,0,24,3],[25,0,25,3],[7,0,7,1],[7,2,7,8],[7,9,7,11],[8,0,8,1],[8,2,8,8],[8,9,8,11],[20,0,20,3],[20,4,20,8],[21,0,21,3],[21,4,21,8],[11,0,11,1],[11,2,11,8],[11,9,11,11],[0,0,0,11],[96,6,96,8],[98,0,98,8],[98,9,98,11],[96,0,96,5],[99,0,99,3],[99,4,99,8],[100,0,100,3],[100,4,100,8],[84,0,84,3],[84,4,84,8],[85,0,85,3],[85,4,85,8],[86,0,86,3],[86,4,86,8],[87,0,87,3],[87,4,87,8],[88,0,88,3],[88,4,88,8],[89,0,89,3],[89,4,89,8],[81,0,81,5],[81,6,81,8],[82,0,82,8],[101,0,101,3],[101,4,101,8],[102,0,102,3],[102,4,102,8],[103,0,103,3],[103,4,103,8],[90,0,90,3],[90,4,90,8],[91,0,91,3],[91,4,91,8],[92,0,92,3],[92,4,92,8],[93,0,93,3],[93,4,93,8],[94,0,94,3],[94,4,94,8],[95,0,95,3],[95,4,95,8],[82,9,82,11],[78,0,78,3],[78,4,78,8],[79,0,79,3],[79,4,79,8],[80,0,80,3],[80,4,80,8],[83,0,83,3],[83,4,83,8],[77,0,77,3],[77,4,77,8],[69,0,69,3],[69,4,69,8],[70,0,70,3],[70,4,70,8],[71,0,71,3],[71,4,71,8],[65,0,65,5],[65,6,65,8],[72,0,72,3],[72,4,72,8],[73,0,73,3],[73,4,73,8],[74,0,74,3],[74,4,74,8],[75,0,75,3],[75,4,75,8],[76,0,76,3],[76,4,76,8],[58,0,58,3],[58,4,58,8],[59,0,59,3],[59,4,59,8],[60,0,60,3],[60,4,60,8],[61,0,61,3],[61,4,61,8],[54,0,54,3],[54,4,54,8],[55,0,55,3],[55,4,55,8],[56,0,56,3],[56,4,56,8],[57,0,57,3],[57,4,57,8],[35,9,35,11],[36,0,36,3],[36,4,36,8],[19,9,19,11],[19,0,19,8],[1,0,1,11],[2,0,2,11],[16,0,16,11],[3,0,3,1],[3,2,3,8],[3,9,3,11],[4,0,4,1],[4,2,4,8],[4,9,4,11],[5,0,5,1],[5,2,5,8],[6,0,6,1],[6,2,6,8],[6,9,6,11],[5,9,5,11],[14,0,14,8],[9,9,9,11],[10,0,10,1],[10,9,10,11],[114,9,114,11],[116,0,116,3],[116,4,116,8],[117,0,117,3],[117,4,117,8],[118,0,118,3],[118,4,118,8],[119,0,119,3],[119,4,119,8],[130,9,130,11],[128,6,128,8],[124,0,124,3],[124,4,124,8],[125,0,125,3],[125,4,125,8],[126,0,126,3],[126,4,126,8],[127,0,127,3],[130,0,130,8],[127,4,127,8],[128,0,128,5],[137,0,137,3],[137,4,137,8],[138,0,138,3],[138,4,138,8],[15,0,15,8],[17,0,17,1],[17,2,17,5],[17,7,17,8],[18,0,18,1],[18,2,18,5],[18,7,18,8],[120,0,120,3],[120,4,120,8],[121,0,121,3],[121,4,121,8],[122,0,122,3],[122,4,122,8],[123,0,123,3],[123,4,123,8],[24,4,24,8],[25,4,25,8],[26,4,26,8],[27,4,27,8],[28,4,28,8]]}
["ATTACHMENT C"]
[" WORKPLAN (WP)"]
[]
["Abbreviated Grantee Name ",null,"Grantee Name",null,null,null,null,null,null,"Principal Invistigator"]
["xxx"]
["yyy"]
["zzz"]
[]
[]
[]
[]
[]
[]
[]
["Total Amount Requested",null,null,null,null,null,null,null,null,{"$f":"A5","v":"xxx"},{"$f":"A6","v":"yyy"},{"$f":"A7","v":"zzz"}]
[{"$f":"SUM(J16:L16)","v":0},null,null,null,null,null,null,null,null,{"$f":"J34+J50+J66+J82+J97+J113+J129+J145","v":0},{"$f":"K34+K50+K66+K82+K97+K113+K129+K145","v":0},{"$f":"L34+L50+L66+L82+L97+L113+L129+L145","v":0}]
[]
[null,null,"Duration of a Reporting Period is ",null,null,null,6,"months"]
[]
["Milestone 1: First Reporting Period",null,null,null,null,null,null,null,null,"Responsible Team "]
["Activity  Name",null,null,null,"Associated Deliverable(s):",null,null,null,null,{"$f":"J15","v":"xxx"},{"$f":"K15","v":"yyy"},{"$f":"L15","v":"zzz"}]
[{"$f":"'B. SOW'!S15","v":"1) "},null,null,null,{"$f":"'B. SOW'!S30","v":"1) "},null,null,null,null,"Select","Select","Select"]
[{"$f":"'B. SOW'!S16","v":"2) "},null,null,null,{"$f":"'B. SOW'!S31","v":"2) "},null,null,null,null,"Select","Select","Select"]
[{"$f":"'B. SOW'!S17","v":"3) "},null,null,null,{"$f":"'B. SOW'!S32","v":"3) "},null,null,null,null,"Select","Select","Select"]
[{"$f":"'B. SOW'!S18","v":"4) "},null,null,null,{"$f":"'B. SOW'!S33","v":"4) "},null,null,null,null,"Select","Select","Select"]
[{"$f":"'B. SOW'!S19","v":"5) "},null,null,null,{"$f":"'B. SOW'!S34","v":"5) "},null,null,null,null,"Select","Select","Select"]
[{"$f":"'B. SOW'!S20","v":"6) "},null,null,null,{"$f":"'B. SOW'!S35","v":"6) "},null,null,null,null,"Select","Select","Select"]
[{"$f":"'B. SOW'!S21","v":"7) "},null,null,null,{"$f":"'B. SOW'!S36","v":"7) "},null,null,null,null,"Select","Select","Select"]
[{"$f":"'B. SOW'!S22","v":"8) "},null,null,null,{"$f":"'B. SOW'!S37","v":"8) "},null,null,null,null,"Select","Select","Select"]
[{"$f":"'B. SOW'!S23","v":"9) "},null,null,null,{"$f":"'B. SOW'!S38","v":"9) "},null,null,null,null,"Select","Select","Select"]
[{"$f":"'B. SOW'!S24","v":"10) "},null,null,null,{"$f":"'B. SOW'!S39","v":"10) "},null,null,null,null,"Select","Select","Select"]
[{"$f":"'B. SOW'!S25","v":"11) "},null,null,null,{"$f":"'B. SOW'!S40","v":"11) "},null,null,null,null,"Select","Select","Select"]
[{"$f":"'B. SOW'!S26","v":"12) "},null,null,null,{"$f":"'B. SOW'!S41","v":"12) "},null,null,null,null,"Select","Select","Select"]
["Total Amount Requested for this\nReporting Period:",null,null,null,null,null,{"$f":"SUM(J34:L34)","v":0},null,null,0,0,0]
[]
["Milestone 2: Second Reporting Period",null,null,null,null,null,null,null,null,"Responsible Team "]
["Activity  Name",null,null,null,"Associated Deliverable(s):",null,null,null,null,{"$f":"$A$5","v":"xxx"},{"$f":"$A$6","v":"yyy"},{"$f":"$A$7","v":"zzz"}]
[{"$f":"'B. SOW'!S48","v":"1) "},null,null,null,{"$f":"'B. SOW'!S63","v":"1) "},null,null,null,null,"Select","Select","Select"]
[{"$f":"'B. SOW'!S49","v":"2) "},null,null,null,{"$f":"'B. SOW'!S64","v":0},null,null,null,null,"Select","Select","Select"]
[{"$f":"'B. SOW'!S50","v":"3) "},null,null,null,{"$f":"'B. SOW'!S65","v":"3) "},null,null,null,null,"Select","Select","Select"]
[{"$f":"'B. SOW'!S51","v":"4) "},null,null,null,{"$f":"'B. SOW'!S66","v":"4) "},null,null,null,null,"Select","Select","Select"]
[{"$f":"'B. SOW'!S52","v":"5) "},null,null,null,{"$f":"'B. SOW'!S67","v":"5) "},null,null,null,null,"Select","Select","Select"]
[{"$f":"'B. SOW'!S53","v":"6) "},null,null,null,{"$f":"'B. SOW'!S68","v":"6) "},null,null,null,null,"Select","Select","Select"]
[{"$f":"'B. SOW'!S54","v":"7) "},null,null,null,{"$f":"'B. SOW'!S69","v":"7) "},null,null,null,null,"Select","Select","Select"]
[{"$f":"'B. SOW'!S55","v":"8) "},null,null,null,{"$f":"'B. SOW'!S70","v":"8) "},null,null,null,null,"Select","Select","Select"]
[{"$f":"'B. SOW'!S56","v":"9) "},null,null,null,{"$f":"'B. SOW'!S71","v":"9) "},null,null,null,null,"Select","Select","Select"]
[{"$f":"'B. SOW'!S57","v":"10) "},null,null,null,{"$f":"'B. SOW'!S72","v":"10) "},null,null,null,null,"Select","Select","Select"]
[{"$f":"'B. SOW'!S58","v":"11) "},null,null,null,{"$f":"'B. SOW'!S73","v":"11) "},null,null,null,null,"Select","Select","Select"]
[{"$f":"'B. SOW'!S59","v":"12) "},null,null,null,{"$f":"'B. SOW'!S74","v":"12) "},null,null,null,null,"Select","Select","Select"]
["Total Amount Requested for this\nReporting Period:",null,null,null,null,null,{"$f":"SUM(J50:L50)","v":0},null,null,0,0,0]
[]
["Milestone 3: Third Reporting Period",null,null,null,null,null,null,null,null,"Responsible Team "]
["Activity  Name",null,null,null,"Associated Deliverable(s):",null,null,null,null,{"$f":"$A$5","v":"xxx"},{"$f":"$A$6","v":"yyy"},{"$f":"$A$7","v":"zzz"}]
[{"$f":"'B. SOW'!S81","v":"1) "},null,null,null,{"$f":"'B. SOW'!S96","v":"1) "},null,null,null,null,"Select","Select","Select"]
[{"$f":"'B. SOW'!S82","v":"2) "},null,null,null,{"$f":"'B. SOW'!S97","v":"2) "},null,null,null,null,"Select","Select","Select"]
[{"$f":"'B. SOW'!S83","v":"3) "},null,null,null,{"$f":"'B. SOW'!S98","v":"3) "},null,null,null,null,"Select","Select","Select"]
[{"$f":"'B. SOW'!S84","v":"4) "},null,null,null,{"$f":"'B. SOW'!S99","v":"4) "},null,null,null,null,"Select","Select","Select"]
[{"$f":"'B. SOW'!S85","v":"5) "},null,null,null,{"$f":"'B. SOW'!S100","v":"5) "},null,null,null,null,"Select","Select","Select"]
[{"$f":"'B. SOW'!S86","v":"6) "},null,null,null,{"$f":"'B. SOW'!S101","v":"6) "},null,null,null,null,"Select","Select","Select"]
[{"$f":"'B. SOW'!S87","v":"7) "},null,null,null,{"$f":"'B. SOW'!S102","v":"7) "},null,null,null,null,"Select","Select","Select"]
[{"$f":"'B. SOW'!S88","v":"8) "},null,null,null,{"$f":"'B. SOW'!S103","v":"8) "},null,null,null,null,"Select","Select","Select"]
[{"$f":"'B. SOW'!S89","v":"9) "},null,null,null,{"$f":"'B. SOW'!S104","v":"9) "},null,null,null,null,"Select","Select","Select"]
[{"$f":"'B. SOW'!S90","v":"10) "},null,null,null,{"$f":"'B. SOW'!S105","v":"10) "},null,null,null,null,"Select","Select","Select"]
[{"$f":"'B. SOW'!S91","v":"11) "},null,null,null,{"$f":"'B. SOW'!S106","v":"11) "},null,null,null,null,"Select","Select","Select"]
[{"$f":"'B. SOW'!S92","v":"12) "},null,null,null,{"$f":"'B. SOW'!S107","v":"12) "},null,null,null,null,"Select","Select","Select"]
["Total Amount Requested for this\nReporting Period:",null,null,null,null,null,{"$f":"SUM(J66:L66)","v":0},null,null,0,0,0]
[]
["Milestone 4: Fourth Reporting Period",null,null,null,null,null,null,null,null,"Responsible Team "]
["Activity  Name",null,null,null,"Associated Deliverable(s):",null,null,null,null,{"$f":"$A$5","v":"xxx"},{"$f":"$A$6","v":"yyy"},{"$f":"$A$7","v":"zzz"}]
[{"$f":"'B. SOW'!S114","v":"1) "},null,null,null,{"$f":"'B. SOW'!S129","v":"1) "},null,null,null,null,"Select","Select","Select"]
[{"$f":"'B. SOW'!S115","v":"2) "},null,null,null,{"$f":"'B. SOW'!S130","v":"2) "},null,null,null,null,"Select","Select","Select"]
[{"$f":"'B. SOW'!S116","v":"3) "},null,null,null,{"$f":"'B. SOW'!S131","v":"3) "},null,null,null,null,"Select","Select","Select"]
[{"$f":"'B. SOW'!S117","v":"4) "},null,null,null,{"$f":"'B. SOW'!S132","v":"4) "},null,null,null,null,"Select","Select","Select"]
[{"$f":"'B. SOW'!S118","v":"5) "},null,null,null,{"$f":"'B. SOW'!S133","v":"5) "},null,null,null,null,"Select","Select","Select"]
[{"$f":"'B. SOW'!S119","v":"6) "},null,null,null,{"$f":"'B. SOW'!S134","v":"6) "},null,null,null,null,"Select","Select","Select"]
[{"$f":"'B. SOW'!S120","v":"7) "},null,null,null,{"$f":"'B. SOW'!S135","v":"7) "},null,null,null,null,"Select","Select","Select"]
[{"$f":"'B. SOW'!S121","v":"8) "},null,null,null,{"$f":"'B. SOW'!S136","v":"8) "},null,null,null,null,"Select","Select","Select"]
[{"$f":"'B. SOW'!S122","v":"9) "},null,null,null,{"$f":"'B. SOW'!S137","v":"9) "},null,null,null,null,"Select","Select","Select"]
[{"$f":"'B. SOW'!S123","v":"10) "},null,null,null,{"$f":"'B. SOW'!S138","v":"10) "},null,null,null,null,"Select","Select","Select"]
[{"$f":"'B. SOW'!S124","v":"11) "},null,null,null,{"$f":"'B. SOW'!S139","v":"11) "},null,null,null,null,"Select","Select","Select"]
[{"$f":"'B. SOW'!S125","v":"12) "},null,null,null,{"$f":"'B. SOW'!S140","v":"12) "},null,null,null,null,"Select","Select","Select"]
["Total Amount Requested for this\nReporting Period:",null,null,null,null,null,{"$f":"SUM(J82:L82)","v":0},null,null,0,0,0]
["Milestone 5: Fifth Reporting Period",null,null,null,null,null,null,null,null,"Responsible Team "]
["Activity  Name",null,null,null,"Associated Deliverable(s):",null,null,null,null,{"$f":"$A$5","v":"xxx"},{"$f":"$A$6","v":"yyy"},{"$f":"$A$7","v":"zzz"}]
[{"$f":"'B. SOW'!S147","v":"1) "},null,null,null,{"$f":"'B. SOW'!S162","v":"1) "},null,null,null,null,"Select","Select","Select"]
[{"$f":"'B. SOW'!S148","v":"2) "},null,null,null,{"$f":"'B. SOW'!S163","v":"2) "},null,null,null,null,"Select","Select","Select"]
[{"$f":"'B. SOW'!S149","v":"3) "},null,null,null,{"$f":"'B. SOW'!S164","v":"3) "},null,null,null,null,"Select","Select","Select"]
[{"$f":"'B. SOW'!S150","v":"4) "},null,null,null,{"$f":"'B. SOW'!S165","v":"4) "},null,null,null,null,"Select","Select","Select"]
[{"$f":"'B. SOW'!S151","v":"5) "},null,null,null,{"$f":"'B. SOW'!S166","v":"5) "},null,null,null,null,"Select","Select","Select"]
[{"$f":"'B. SOW'!S152","v":"6) "},null,null,null,{"$f":"'B. SOW'!S167","v":"6) "},null,null,null,null,"Select","Select","Select"]
[{"$f":"'B. SOW'!S153","v":"7) "},null,null,null,{"$f":"'B. SOW'!S168","v":"7) "},null,null,null,null,"Select","Select","Select"]
[{"$f":"'B. SOW'!S154","v":"8) "},null,null,null,{"$f":"'B. SOW'!S169","v":"8) "},null,null,null,null,"Select","Select","Select"]
[{"$f":"'B. SOW'!S155","v":"9) "},null,null,null,{"$f":"'B. SOW'!S170","v":"9) "},null,null,null,null,"Select","Select","Select"]
[{"$f":"'B. SOW'!S156","v":"10) "},null,null,null,{"$f":"'B. SOW'!S171","v":"10) "},null,null,null,null,"Select","Select","Select"]
[{"$f":"'B. SOW'!S157","v":"11) "},null,null,null,{"$f":"'B. SOW'!S172","v":"11) "},null,null,null,null,"Select","Select","Select"]
[{"$f":"'B. SOW'!S158","v":"12) "},null,null,null,{"$f":"'B. SOW'!S173","v":"12) "},null,null,null,null,"Select","Select","Select"]
["Total Amount Requested for this\nReporting Period:",null,null,null,null,null,{"$f":"SUM(J97:L97)","v":0},null,null,0,0,0]
[]
["Milestone 6: Sixth Reporting Period",null,null,null,null,null,null,null,null,"Responsible Team "]
["Activity  Name",null,null,null,"Associated Deliverable(s):",null,null,null,null,{"$f":"$A$5","v":"xxx"},{"$f":"$A$6","v":"yyy"},{"$f":"$A$7","v":"zzz"}]
[{"$f":"'B. SOW'!S180","v":"1) "},null,null,null,{"$f":"'B. SOW'!S195","v":"1) "},null,null,null,null,"Select","Select","Select"]
[{"$f":"'B. SOW'!S181","v":"2) "},null,null,null,{"$f":"'B. SOW'!S196","v":"2) "},null,null,null,null,"Select","Select","Select"]
[{"$f":"'B. SOW'!S182","v":"3) "},null,null,null,{"$f":"'B. SOW'!S197","v":"3) "},null,null,null,null,"Select","Select","Select"]
[{"$f":"'B. SOW'!S183","v":"4) "},null,null,null,{"$f":"'B. SOW'!S198","v":"4) "},null,null,null,null,"Select","Select","Select"]
[{"$f":"'B. SOW'!S184","v":"5) "},null,null,null,{"$f":"'B. SOW'!S199","v":"5) "},null,null,null,null,"Select","Select","Select"]
[{"$f":"'B. SOW'!S185","v":"6) "},null,null,null,{"$f":"'B. SOW'!S200","v":"6) "},null,null,null,null,"Select","Select","Select"]
[{"$f":"'B. SOW'!S186","v":"7) "},null,null,null,{"$f":"'B. SOW'!S201","v":"7) "},null,null,null,null,"Select","Select","Select"]
[{"$f":"'B. SOW'!S187","v":"8) "},null,null,null,{"$f":"'B. SOW'!S202","v":"8) "},null,null,null,null,"Select","Select","Select"]
[{"$f":"'B. SOW'!S188","v":"9) "},null,null,null,{"$f":"'B. SOW'!S203","v":"9) "},null,null,null,null,"Select","Select","Select"]
[{"$f":"'B. SOW'!S189","v":"10) "},null,null,null,{"$f":"'B. SOW'!S204","v":"10) "},null,null,null,null,"Select","Select","Select"]
[{"$f":"'B. SOW'!S190","v":"11) "},null,null,null,{"$f":"'B. SOW'!S205","v":"11) "},null,null,null,null,"Select","Select","Select"]
[{"$f":"'B. SOW'!S191","v":"12) "},null,null,null,{"$f":"'B. SOW'!S206","v":"12) "},null,null,null,null,"Select","Select","Select"]
["Total Amount Requested for this\nReporting Period:",null,null,null,null,null,{"$f":"SUM(J113:L113)","v":0},null,null,0,0,0]
[]
["Milestone 7: Seventh Reporting Period",null,null,null,null,null,null,null,null,"Responsible Team "]
["Activity  Name",null,null,null,"Associated Deliverable(s):",null,null,null,null,{"$f":"$A$5","v":"xxx"},{"$f":"$A$6","v":"yyy"},{"$f":"$A$7","v":"zzz"}]
[{"$f":"'B. SOW'!S214","v":"1) "},null,null,null,{"$f":"'B. SOW'!S228","v":"1) "},null,null,null,null,"Select","Select","Select"]
[{"$f":"'B. SOW'!S215","v":"2) "},null,null,null,{"$f":"'B. SOW'!S229","v":"2) "},null,null,null,null,"Select","Select","Select"]
[{"$f":"'B. SOW'!S216","v":"3) "},null,null,null,{"$f":"'B. SOW'!S230","v":"3) "},null,null,null,null,"Select","Select","Select"]
[{"$f":"'B. SOW'!S217","v":"4) "},null,null,null,{"$f":"'B. SOW'!S231","v":"4) "},null,null,null,null,"Select","Select","Select"]
[{"$f":"'B. SOW'!S218","v":"5) "},null,null,null,{"$f":"'B. SOW'!S232","v":"5) "},null,null,null,null,"Select","Select","Select"]
[{"$f":"'B. SOW'!S219","v":"6) "},null,null,null,{"$f":"'B. SOW'!S233","v":"6) "},null,null,null,null,"Select","Select","Select"]
[{"$f":"'B. SOW'!S220","v":"7) "},null,null,null,{"$f":"'B. SOW'!S234","v":"7) "},null,null,null,null,"Select","Select","Select"]
[{"$f":"'B. SOW'!S221","v":"8) "},null,null,null,{"$f":"'B. SOW'!S235","v":"8) "},null,null,null,null,"Select","Select","Select"]
[{"$f":"'B. SOW'!S222","v":"9) "},null,null,null,{"$f":"'B. SOW'!S236","v":"9) "},null,null,null,null,"Select","Select","Select"]
[{"$f":"'B. SOW'!S223","v":"10) "},null,null,null,{"$f":"'B. SOW'!S237","v":"10) "},null,null,null,null,"Select","Select","Select"]
[{"$f":"'B. SOW'!S224","v":"11) "},null,null,null,{"$f":"'B. SOW'!S238","v":"11) "},null,null,null,null,"Select","Select","Select"]
[{"$f":"'B. SOW'!S225","v":"12) "},null,null,null,{"$f":"'B. SOW'!S239","v":"12) "},null,null,null,null,"Select","Select","Select"]
["Total Amount Requested for this\nReporting Period:",null,null,null,null,null,{"$f":"SUM(J129:L129)","v":0},null,null,0,0,0]
[]
["Milestone 8: Eighth Reporting Period",null,null,null,null,null,null,null,null,"Responsible Team "]
["Activity  Name",null,null,null,"Associated Deliverable(s):",null,null,null,null,{"$f":"$A$5","v":"xxx"},{"$f":"$A$6","v":"yyy"},{"$f":"$A$7","v":"zzz"}]
[{"$f":"'B. SOW'!S246","v":"1) "},null,null,null,{"$f":"'B. SOW'!S261","v":"1) "},null,null,null,null,"Select","Select","Select"]
[{"$f":"'B. SOW'!S247","v":"2) "},null,null,null,{"$f":"'B. SOW'!S262","v":"2) "},null,null,null,null,"Select","Select","Select"]
[{"$f":"'B. SOW'!S248","v":"3) "},null,null,null,{"$f":"'B. SOW'!S263","v":"3) "},null,null,null,null,"Select","Select","Select"]
[{"$f":"'B. SOW'!S249","v":"4) "},null,null,null,{"$f":"'B. SOW'!S264","v":"4) "},null,null,null,null,"Select","Select","Select"]
[{"$f":"'B. SOW'!S250","v":"5) "},null,null,null,{"$f":"'B. SOW'!S265","v":"5) "},null,null,null,null,"Select","Select","Select"]
[{"$f":"'B. SOW'!S251","v":"6) "},null,null,null,{"$f":"'B. SOW'!S266","v":"6) "},null,null,null,null,"Select","Select","Select"]
[{"$f":"'B. SOW'!S252","v":"7) "},null,null,null,{"$f":"'B. SOW'!S267","v":"7) "},null,null,null,null,"Select","Select","Select"]
[{"$f":"'B. SOW'!S253","v":"8) "},null,null,null,{"$f":"'B. SOW'!S268","v":"8) "},null,null,null,null,"Select","Select","Select"]
[{"$f":"'B. SOW'!S254","v":"9) "},null,null,null,{"$f":"'B. SOW'!S269","v":"9) "},null,null,null,null,"Select","Select","Select"]
[{"$f":"'B. SOW'!S255","v":"10) "},null,null,null,{"$f":"'B. SOW'!S270","v":"10) "},null,null,null,null,"Select","Select","Select"]
[{"$f":"'B. SOW'!S256","v":"11) "},null,null,null,{"$f":"'B. SOW'!S271","v":"11) "},null,null,null,null,"Select","Select","Select"]
[{"$f":"'B. SOW'!S257","v":"12) "},null,null,null,{"$f":"'B. SOW'!S272","v":"12) "},null,null,null,null,"Select","Select","Select"]
["Total Amount Requested for this\nReporting Period:",null,null,null,null,null,{"$f":"SUM(J145:L145)","v":0},null,null,0,0,0]

{"sheet":"D. Budget","index":8,"n_rows":160,"n_cols":27,"rows_kept":160,"cut":false,"hidden":false,"merged":[[160,0,160,10],[146,2,146,8],[152,2,152,10],[154,0,154,10],[147,2,147,8],[145,2,145,8],[144,2,144,8],[143,2,143,8],[128,2,128,6],[130,2,130,6],[129,2,129,6],[134,2,134,6],[135,2,135,6],[142,2,142,8],[11,4,11,5],[31,2,31,3],[30,2,30,3],[14,2,14,3],[13,2,13,3],[12,2,12,3],[119,4,119,5],[120,4,120,5],[121,4,121,5],[61,2,61,6],[116,4,116,5],[117,2,117,8],[115,4,115,5],[114,4,114,5],[113,4,113,5],[78,2,78,8],[50,2,50,6],[49,2,49,6],[15,2,15,3],[29,2,29,3],[28,2,28,3],[27,2,27,3],[26,2,26,3],[25,2,25,3],[12,4,12,5],[64,2,64,6],[41,2,41,6],[62,2,62,6],[124,4,124,5],[122,4,122,5],[123,4,123,5],[46,2,46,6],[45,2,45,6],[44,2,44,6],[43,2,43,6],[42,2,42,6],[60,2,60,6],[59,2,59,6],[58,2,58,6],[63,2,63,6],[48,2,48,6],[47,2,47,6],[102,2,102,6],[101,2,101,6],[100,2,100,6],[99,2,99,6],[98,2,98,6],[66,2,66,6],[21,2,21,3],[20,2,20,3],[19,2,19,3],[18,2,18,3],[17,2,17,3],[16,2,16,3],[0,0,0,11],[1,0,1,10],[112,4,112,5],[105,2,105,8],[4,3,4,9],[111,4,111,5],[104,2,104,6],[84,2,84,3],[85,2,85,6],[103,2,103,6],[87,2,87,6],[86,2,86,6],[77,2,77,6],[76,2,76,6],[4,1,4,2],[65,2,65,6],[13,4,13,5],[14,4,14,5],[67,2,67,6],[92,2,92,6],[91,2,91,6],[90,2,90,6],[89,2,89,6],[88,2,88,6],[24,2,24,3],[23,2,23,3],[22,2,22,3],[30,4,30,5],[31,4,31,5],[75,2,75,6],[74,2,74,6],[73,2,73,6],[72,2,72,6],[97,2,97,6],[96,2,96,6],[95,2,95,6],[94,2,94,6],[93,2,93,6],[71,2,71,6],[70,2,70,6],[69,2,69,6],[68,2,68,6]]}
["ATTACHMENT D"]
["BUDGET"]
[]
[]
[null,"Project Title",null,{"$f":"'B. SOW'!S4","v":"[enter here]"}]
[]
[]
[null,"A","Project Personnel Labor "]
[]
[]
[null,"A","Labor"]
[null,null,"Name",null,"Title",null,"Project Position","Please select","Please select","Total"]
[null,1,null,null,null,null,null,0,0,{"$f":"H13*I13","v":0},null,null,null,null,null,null,null,null,null,null,null,null,null,null,null,null,{"$f":"C13","v":0}]
[null,2,null,null,null,null,null,0,0,0,null,null,null,null,null,null,null,null,null,null,null,null,null,null,null,null,{"$f":"C14","v":0}]
[null,3,null,null,null,null,null,0,0,0,null,null,null,null,null,null,null,null,null,null,null,null,null,null,null,null,0]
[null,4,null,null,null,null,null,0,0,{"$f":"H16*I16","v":0},null,null,null,null,null,null,null,null,null,null,null,null,null,null,null,null,0]
[null,5,null,null,null,null,null,0,0,0,null,null,null,null,null,null,null,null,null,null,null,null,null,null,null,null,0]
[null,6,null,null,null,null,null,0,0,0,null,null,null,null,null,null,null,null,null,null,null,null,null,null,null,null,0]
[null,7,null,null,null,null,null,0,0,0,null,null,null,null,null,null,null,null,null,null,null,null,null,null,null,null,0]
[null,8,null,null,null,null,null,0,0,0,null,null,null,null,null,null,null,null,null,null,null,null,null,null,null,null,0]
[null,9,null,null,null,null,null,0,0,0,null,null,null,null,null,null,null,null,null,null,null,null,null,null,null,null,0]
[null,10,null,null,null,null,null,0,0,0,null,null,null,null,null,null,null,null,null,null,null,null,null,null,null,null,0]
[null,11,null,null,null,null,null,0,0,0,null,null,null,null,null,null,null,null,null,null,null,null,null,null,null,null,0]
[null,12,null,null,null,null,null,0,0,0,null,null,null,null,null,null,null,null,null,null,null,null,null,null,null,null,0]
[null,13,null,null,null,null,null,0,0,0,null,null,null,null,null,null,null,null,null,null,null,null,null,null,null,null,0]
[null,14,null,null,null,null,null,0,0,{"$f":"H26*I26","v":0},null,null,null,null,null,null,null,null,null,null,null,null,null,null,null,null,0]
[null,15,null,null,null,null,null,0,0,0,null,null,null,null,null,null,null,null,null,null,null,null,null,null,null,null,0]
[null,16,null,null,null,null,null,0,0,0,null,null,null,null,null,null,null,null,null,null,null,null,null,null,null,null,0]
[null,17,null,null,null,null,null,0,0,0,null,null,null,null,null,null,null,null,null,null,null,null,null,null,null,null,0]
[null,18,null,null,null,null,null,0,0,0,null,null,null,null,null,null,null,null,null,null,null,null,null,null,null,null,0]
[null,19,null,null,null,null,null,0,0,0,null,null,null,null,null,null,null,null,null,null,null,null,null,null,null,null,0]
[null,20,null,null,null,null,null,0,0,0,null,null,null,null,null,null,null,null,null,null,null,null,null,null,null,null,0]
[null,null,"Subtotal - Labor",null,null,null,null,null,null,{"$f":"SUM(J13:J32)","v":0}]
[]
[]
[null,"B","Equipment, Supplies, Services & Other direct costs"]
[]
[]
[null,"B1","Equipment"]
[]
[null,null,"Item Description",null,null,null,null,"# of units","Unit cost","Total"]
[null,1,null,null,null,null,null,0,0,{"$f":"H42*I42","v":0},null,null,null,null,null,null,null,null,null,null,null,null,null,null,null,null,{"$f":"C42","v":0}]
[null,2,null,null,null,null,null,0,0,0,null,null,null,null,null,null,null,null,null,null,null,null,null,null,null,null,{"$f":"C43","v":0}]
[null,3,null,null,null,null,null,0,0,0,null,null,null,null,null,null,null,null,null,null,null,null,null,null,null,null,0]
[null,4,null,null,null,null,null,0,0,0,null,null,null,null,null,null,null,null,null,null,null,null,null,null,null,null,0]
[null,5,null,null,null,null,null,0,0,0,null,null,null,null,null,null,null,null,null,null,null,null,null,null,null,null,0]
[null,6,null,null,null,null,null,0,0,0,null,null,null,null,null,null,null,null,null,null,null,null,null,null,null,null,0]
[null,7,null,null,null,null,null,0,0,0,null,null,null,null,null,null,null,null,null,null,null,null,null,null,null,null,0]
[null,8,null,null,null,null,null,0,0,0,null,null,null,null,null,null,null,null,null,null,null,null,null,null,null,null,0]
[null,9,null,null,null,null,null,0,0,0,null,null,null,null,null,null,null,null,null,null,null,null,null,null,null,null,0]
[null,10,null,null,null,null,null,0,0,0,null,null,null,null,null,null,null,null,null,null,null,null,null,null,null,null,0]
[null,null,"Subtotal - Equipment",null,null,null,null,null,null,{"$f":"SUM(J42:J51)","v":0}]
[]
[]
[]
[null,"B2","Supplies"]
[]
[null,null,"Item Description",null,null,null,null,"# of units","Unit cost","Total"]
[null,1,null,null,null,null,null,0,0,{"$f":"H59*I59","v":0},null,null,null,null,null,null,null,null,null,null,null,null,null,null,null,null,{"$f":"C59","v":0}]
[null,2,null,null,null,null,null,0,0,0,null,null,null,null,null,null,null,null,null,null,null,null,null,null,null,null,{"$f":"C60","v":0}]
[null,3,null,null,null,null,null,0,0,0,null,null,null,null,null,null,null,null,null,null,null,null,null,null,null,null,0]
[null,4,null,null,null,null,null,0,0,0,null,null,null,null,null,null,null,null,null,null,null,null,null,null,null,null,0]
[null,5,null,null,null,null,null,0,0,0,null,null,null,null,null,null,null,null,null,null,null,null,null,null,null,null,0]
[null,6,null,null,null,null,null,0,0,0,null,null,null,null,null,null,null,null,null,null,null,null,null,null,null,null,0]
[null,7,null,null,null,null,null,0,0,0,null,null,null,null,null,null,null,null,null,null,null,null,null,null,null,null,0]
[null,8,null,null,null,null,null,0,0,0,null,null,null,null,null,null,null,null,null,null,null,null,null,null,null,null,0]
[null,9,null,null,null,null,null,0,0,{"$f":"H67*I67","v":0},null,null,null,null,null,null,null,null,null,null,null,null,null,null,null,null,0]
[null,10,null,null,null,null,null,0,0,0,null,null,null,null,null,null,null,null,null,null,null,null,null,null,null,null,0]
[null,11,null,null,null,null,null,0,0,0,null,null,null,null,null,null,null,null,null,null,null,null,null,null,null,null,0]
[null,12,null,null,null,null,null,0,0,0,null,null,null,null,null,null,null,null,null,null,null,null,null,null,null,null,0]
[null,13,null,null,null,null,null,0,0,0,null,null,null,null,null,null,null,null,null,null,null,null,null,null,null,null,0]
[null,14,null,null,null,null,null,0,0,0,null,null,null,null,null,null,null,null,null,null,null,null,null,null,null,null,0]
[null,15,null,null,null,null,null,0,0,0,null,null,null,null,null,null,null,null,null,null,null,null,null,null,null,null,0]
[null,16,null,null,null,null,null,0,0,0,null,null,null,null,null,null,null,null,null,null,null,null,null,null,null,null,0]
[null,17,null,null,null,null,null,0,0,0,null,null,null,null,null,null,null,null,null,null,null,null,null,null,null,null,0]
[null,18,null,null,null,null,null,0,0,0,null,null,null,null,null,null,null,null,null,null,null,null,null,null,null,null,0]
[null,19,null,null,null,null,null,0,0,0,null,null,null,null,null,null,null,null,null,null,null,null,null,null,null,null,0]
[null,20,null,null,null,null,null,0,0,0,null,null,null,null,null,null,null,null,null,null,null,null,null,null,null,null,0]
[null,null,"Subtotal - Supplies",null,null,null,null,null,null,{"$f":"SUM(J59:J78)","v":0}]
[]
[]
[]
[null,"B3","Services & Other Direct Costs"]
[]
[null,null,"Item Description",null,null,null,null,"# of units","Unit cost","Total"]
[null,1,null,null,null,null,null,0,0,{"$f":"H86*I86","v":0},null,null,null,null,null,null,null,null,null,null,null,null,null,null,null,null,{"$f":"C86","v":0}]
[null,2,null,null,null,null,null,0,0,{"$f":"H87*I87","v":0},null,null,null,null,null,null,null,null,null,null,null,null,null,null,null,null,{"$f":"C87","v":0}]
[null,3,null,null,null,null,null,0,0,{"$f":"H88*I88","v":0},null,null,null,null,null,null,null,null,null,null,null,null,null,null,null,null,0]
[null,4,null,null,null,null,null,0,0,{"$f":"H89*I89","v":0},null,null,null,null,null,null,null,null,null,null,null,null,null,null,null,null,0]
[null,5,null,null,null,null,null,0,0,0,null,null,null,null,null,null,null,null,null,null,null,null,null,null,null,null,0]
[null,6,null,null,null,null,null,0,0,0,null,null,null,null,null,null,null,null,null,null,null,null,null,null,null,null,0]
[null,7,null,null,null,null,null,0,0,0,null,null,null,null,null,null,null,null,null,null,null,null,null,null,null,null,0]
[null,8,null,null,null,null,null,0,0,0,null,null,null,null,null,null,null,null,null,null,null,null,null,null,null,null,0]
[null,9,null,null,null,null,null,0,0,0,null,null,null,null,null,null,null,null,null,null,null,null,null,null,null,null,0]
[null,10,null,null,null,null,null,0,0,0,null,null,null,null,null,null,null,null,null,null,null,null,null,null,null,null,0]
[null,11,null,null,null,null,null,0,0,0,null,null,null,null,null,null,null,null,null,null,null,null,null,null,null,null,0]
[null,12,null,null,null,null,null,0,0,0,null,null,null,null,null,null,null,null,null,null,null,null,null,null,null,null,0]
[null,13,null,null,null,null,null,0,0,0,null,null,null,null,null,null,null,null,null,null,null,null,null,null,null,null,0]
[null,14,null,null,null,null,null,0,0,0,null,null,null,null,null,null,null,null,null,null,null,null,null,null,null,null,0]
[null,15,null,null,null,null,null,0,0,0,null,null,null,null,null,null,null,null,null,null,null,null,null,null,null,null,0]
[null,16,null,null,null,null,null,0,0,0,null,null,null,null,null,null,null,null,null,null,null,null,null,null,null,null,0]
[null,17,null,null,null,null,null,0,0,0,null,null,null,null,null,null,null,null,null,null,null,null,null,null,null,null,0]
[null,18,null,null,null,null,null,0,0,0,null,null,null,null,null,null,null,null,null,null,null,null,null,null,null,null,{"$f":"C103","v":0}]
[null,19,null,null,null,null,null,0,0,{"$f":"H104*I104","v":0},null,null,null,null,null,null,null,null,null,null,null,null,null,null,null,null,0]
[null,20,null,null,null,null,null,0,0,{"$f":"H105*I105","v":0},null,null,null,null,null,null,null,null,null,null,null,null,null,null,null,null,{"$f":"C105","v":0}]
[null,null,"Subtotal - Services & other direct costs",null,null,null,null,null,null,{"$f":"SUM(J86:J105)","v":0}]
[]
[]
[null,"C","Travel"]
[]
[null,null,"Travel "]
[null,null,"Mean of Transportation","Origin City, Country","Destination City, Country",null,"Roundtrip Cost","#  of Travelers","# of Trips","Total"]
[null,1,"Please select",null,null,null,0,0,0,{"$f":"G113*H113*I113","v":0}]
[null,2,"Please select",null,null,null,0,0,0,{"$f":"G114*H114*I114","v":0}]
[null,3,"Please select",null,null,null,0,0,0,{"$f":"G115*H115*I115","v":0}]
[null,4,"Please select",null,null,null,0,0,0,{"$f":"G116*H116*I116","v":0}]
[null,5,"Please select",null,null,null,0,0,0,{"$f":"G117*H117*I117","v":0}]
[null,null,"Subtotal - Travel",null,null,null,null,null,null,{"$f":"SUM(J113:J117)","v":0}]
[null,null,"Per Diem"]
[null,null,"Destination City, Country","Meals & Incidentals Rate","# of travel days including travel ",null,"Lodging Rate","# of Nights","# of Travelers","Total"]
[null,1,null,0,0,null,0,0,0,{"$f":"((D121*E121)+(G121*H121)-(D121/2))*I121","v":0}]
[null,null,"Destination City, Country","Meals & Incidentals Rate","# of travel days including travel ",null,"Lodging Rate","# of Nights","# of Travelers","Total"]
[null,2,null,0,0,null,0,0,0,{"$f":"((D123*E123)+(G123*H123)-(D123/2))*I123","v":0}]
[null,null,"Destination City, Country","Meals & Incidentals Rate","# of travel days including travel ",null,"Lodging Rate","# of Nights","# of Travelers","Total"]
[null,3,null,0,0,null,0,0,0,{"$f":"((D125*E125)+(G125*H125)-(D125/2))*I125","v":0}]
[null,null,"Subtotal - Perdiem",null,null,null,null,null,null,{"$f":"J121+J123+J125","v":0}]
[null,null,"Others"]
[null,null,"Description",null,null,null,null,"Rate/Fee","# Units","Total"]
[null,1,null,null,null,null,null,0,0,{"$f":"H129*I129","v":0}]
[null,2,null,null,null,null,null,0,0,{"$f":"H130*I130","v":0}]
[null,3,null,null,null,null,null,0,0,{"$f":"H131*I131","v":0}]
[null,null,"Subtotal - Miscellaneous",null,null,null,null,null,null,{"$f":"SUM(J129:J131)","v":0}]
[null,null,"Registrations"]
[null,null,"Description",null,null,null,null,"Fee","# Units","Total"]
[null,1,null,null,null,null,null,0,0,{"$f":"H135*I135","v":0}]
[null,2,null,null,null,null,null,0,0,{"$f":"H136*I136","v":0}]
[null,null,"Subtotal - Registrations",null,null,null,null,null,null,{"$f":"SUM(J135:J136)","v":0}]
[]
[]
[null,null,"Budget Summay"]
[]
[null,null,"Direct Costs"]
[null,"A","Labor",null,null,null,null,null,null,{"$f":"J33","v":0}]
[null,"B1","Equipment",null,null,null,null,null,null,{"$f":"J52","v":0}]
[null,"B2&B3","Supplies, Services & Other direct costs",null,null,null,null,null,null,{"$f":"J79+J106","v":0}]
[null,"C","Travel",null,null,null,null,null,null,{"$f":"J137+J132+J126+J118","v":0}]
[]
[]
[null,null,"Total Direct Costs",null,null,null,null,null,null,{"$f":"SUM(J143:J148)","v":0}]
[null,null,"Modified Total Direct Costs",null,null,null,null,null,null,{"$f":"J149-J52","v":0}]
[null,null,"Indirect Rate %",null,null,null,null,0,null,{"$f":"H151","v":0}]
[null,null,"Indirect Costs",null,null,null,null,null,null,{"$f":"H151*J150","v":0}]
[]
[]
[]
[null,"Subtotal - Direct Costs",null,null,null,null,null,null,null,{"$f":"J143+J144+J145+J146","v":0}]
[]
[null,"Subtotal - Indirect Costs",null,null,null,null,null,null,null,{"$f":"J152","v":0}]
[]
[null,"Total Award Cost",null,null,null,null,null,null,null,{"$f":"J156+J158","v":0}]

{"sheet":"E. Budget Narrative","index":9,"n_rows":331,"n_cols":12,"rows_kept":331,"cut":false,"hidden":false,"merged":[[253,4,253,9],[263,3,263,9],[264,4,264,9],[265,4,265,9],[266,3,266,9],[267,4,267,9],[268,4,268,9],[254,3,254,9],[255,4,255,9],[256,4,256,9],[257,3,257,9],[258,4,258,9],[259,4,259,9],[260,3,260,9],[261,4,261,9],[262,4,262,9],[244,4,244,9],[245,3,245,9],[246,4,246,9],[247,4,247,9],[248,3,248,9],[249,4,249,9],[250,4,250,9],[251,3,251,9],[252,4,252,9],[204,4,204,9],[211,4,211,9],[209,3,209,9],[210,4,210,9],[236,3,236,9],[237,4,237,9],[238,4,238,9],[239,3,239,9],[240,4,240,9],[225,4,225,9],[227,3,227,9],[228,4,228,9],[212,3,212,9],[195,4,195,9],[196,3,196,9],[197,4,197,9],[198,4,198,9],[199,3,199,9],[200,4,200,9],[201,4,201,9],[202,3,202,9],[203,4,203,9],[186,4,186,9],[187,3,187,9],[188,4,188,9],[189,4,189,9],[190,3,190,9],[191,4,191,9],[192,4,192,9],[193,3,193,9],[194,4,194,9],[180,4,180,9],[181,3,181,9],[182,4,182,9],[147,4,147,9],[150,4,150,9],[153,4,153,9],[156,4,156,9],[159,4,159,9],[162,4,162,9],[165,4,165,9],[166,3,166,9],[164,4,164,9],[158,4,158,9],[160,3,160,9],[161,4,161,9],[163,3,163,9],[152,4,152,9],[154,3,154,9],[174,4,174,9],[175,3,175,9],[176,4,176,9],[141,4,141,9],[146,4,146,9],[148,3,148,9],[149,4,149,9],[151,3,151,9],[145,3,145,9],[179,4,179,9],[177,4,177,9],[178,3,178,9],[93,4,93,9],[112,3,112,9],[113,4,113,9],[115,3,115,9],[96,3,96,9],[97,4,97,9],[130,3,130,9],[131,4,131,9],[114,4,114,9],[117,4,117,9],[120,4,120,9],[123,4,123,9],[126,4,126,9],[129,4,129,9],[116,4,116,9],[118,3,118,9],[119,4,119,9],[121,3,121,9],[122,4,122,9],[124,3,124,9],[125,4,125,9],[127,3,127,9],[128,4,128,9],[81,3,81,9],[83,4,83,9],[82,4,82,9],[77,4,77,9],[86,3,86,9],[87,4,87,9],[88,4,88,9],[91,3,91,9],[92,4,92,9],[330,3,330,9],[322,4,322,9],[329,3,329,9],[318,4,318,9],[319,3,319,9],[320,4,320,9],[321,3,321,9],[314,4,314,9],[315,3,315,9],[316,4,316,9],[317,3,317,9],[310,4,310,9],[311,3,311,9],[312,4,312,9],[313,3,313,9],[309,3,309,9],[305,4,305,9],[304,3,304,9],[288,4,288,9],[300,3,300,9],[301,4,301,9],[302,3,302,9],[303,4,303,9],[284,4,284,9],[285,3,285,9],[286,4,286,9],[287,3,287,9],[280,4,280,9],[281,3,281,9],[282,4,282,9],[283,3,283,9],[276,4,276,9],[277,3,277,9],[278,4,278,9],[279,3,279,9],[275,3,275,9],[219,4,219,9],[221,3,221,9],[222,4,222,9],[224,3,224,9],[213,4,213,9],[215,3,215,9],[216,4,216,9],[218,3,218,9],[214,4,214,9],[217,4,217,9],[220,4,220,9],[223,4,223,9],[226,4,226,9],[229,4,229,9],[230,3,230,9],[231,4,231,9],[232,4,232,9],[233,3,233,9],[234,4,234,9],[235,4,235,9],[241,4,241,9],[242,3,242,9],[243,4,243,9],[183,4,183,9],[184,3,184,9],[185,4,185,9],[98,4,98,9],[101,3,101,9],[103,4,103,9],[155,4,155,9],[157,3,157,9],[167,4,167,9],[168,4,168,9],[169,3,169,9],[170,4,170,9],[171,4,171,9],[172,3,172,9],[173,4,173,9],[132,4,132,9],[133,3,133,9],[134,4,134,9],[135,4,135,9],[136,3,136,9],[137,4,137,9],[138,4,138,9],[139,3,139,9],[140,4,140,9],[37,4,37,9],[102,4,102,9],[38,4,38,9],[78,4,78,9],[41,3,41,9],[42,4,42,9],[43,4,43,9],[46,3,46,9],[47,4,47,9],[48,4,48,9],[51,3,51,9],[52,4,52,9],[53,4,53,9],[56,3,56,9],[57,4,57,9],[58,4,58,9],[61,3,61,9],[62,4,62,9],[63,4,63,9],[66,3,66,9],[67,4,67,9],[68,4,68,9],[71,3,71,9],[72,4,72,9],[0,4,0,6],[1,1,1,10],[2,3,2,5],[6,3,6,9],[7,4,7,9],[11,3,11,9],[22,4,22,9],[73,4,73,9],[76,3,76,9],[8,4,8,9],[13,4,13,9],[18,4,18,9],[23,4,23,9],[28,4,28,9],[33,4,33,9],[32,4,32,9],[36,3,36,9],[26,3,26,9],[27,4,27,9],[31,3,31,9],[12,4,12,9],[16,3,16,9],[17,4,17,9],[21,3,21,9]]}
[null,null,null,null,"ATTACHMENT E"]
[null,"BUDGET NARRATIVE"]
[]
[]
[null,null,null,"A. Project Personnel Labor "]
[]
[null,null,1,{"$f":"'D. Budget'!AA13","v":0}]
[null,null,null,"Role in Project","[enter here]"]
[null,null,null,"Cost justification","[enter here]"]
[null,null,null,"Key Personnel","Select an option"]
[null,null,"       ","E-mail","[for Key Personnel only]"]
[null,null,2,{"$f":"'D. Budget'!AA14","v":0}]
[null,null,null,"Role in Project","[enter here]"]
[null,null,null,"Cost justification","[enter here]"]
[null,null,null,"Key Personnel","Select an option"]
[null,null,"       ","E-mail","[for Key Personnel only]"]
[null,null,3,{"$f":"'D. Budget'!AA15","v":0}]
[null,null,null,"Role in Project","[enter here]"]
[null,null,null,"Cost justification","[enter here]"]
[null,null,null,"Key Personnel","Select an option"]
[null,null,"       ","E-mail","[for Key Personnel only]"]
[null,null,4,{"$f":"'D. Budget'!AA16","v":0}]
[null,null,null,"Role in Project","[enter here]"]
[null,null,null,"Cost justification","[enter here]"]
[null,null,null,"Key Personnel","Select an option"]
[null,null,"       ","E-mail","[for Key Personnel only]"]
[null,null,5,{"$f":"'D. Budget'!AA17","v":0}]
[null,null,null,"Role in Project","[enter here]"]
[null,null,null,"Cost justification","[enter here]"]
[null,null,null,"Key Personnel","Select an option"]
[null,null,"       ","E-mail","[for Key Personnel only]",null,null,null,null,null,null,"Please, unhide rows between 31-107 if more space for Labor is needed."]
[null,null,6,{"$f":"'D. Budget'!AA18","v":0}]
[null,null,null,"Role in Project","[enter here]"]
[null,null,null,"Cost justification","[enter here]"]
[null,null,null,"Key Personnel","Select an option"]
[null,null,"       ","E-mail","[for Key Personnel only]"]
[null,null,7,{"$f":"'D. Budget'!AA19","v":0}]
[null,null,null,"Role in Project","[enter here]"]
[null,null,null,"Cost justification","[enter here]"]
[null,null,null,"Key Personnel","Select an option"]
[null,null,"       ","E-mail","[for Key Personnel only]"]
[null,null,8,{"$f":"'D. Budget'!AA20","v":0}]
[null,null,null,"Role in Project","[enter here]"]
[null,null,null,"Cost justification","[enter here]"]
[null,null,null,"Key Personnel","Select an option"]
[null,null,"       ","E-mail","[for Key Personnel only]"]
[null,null,9,{"$f":"'D. Budget'!AA21","v":0}]
[null,null,null,"Role in Project","[enter here]"]
[null,null,null,"Cost justification","[enter here]"]
[null,null,null,"Key Personnel","Select an option"]
[null,null,"       ","E-mail","[for Key Personnel only]"]
[null,null,10,{"$f":"'D. Budget'!AA22","v":0}]
[null,null,null,"Role in Project","[enter here]"]
[null,null,null,"Cost justification","[enter here]"]
[null,null,null,"Key Personnel","Select an option"]
[null,null,"       ","E-mail","[for Key Personnel only]"]
[null,null,11,{"$f":"'D. Budget'!AA23","v":0}]
[null,null,null,"Role in Project","[enter here]"]
[null,null,null,"Cost justification","[enter here]"]
[null,null,null,"Key Personnel","Select an option"]
[null,null,"       ","E-mail","[for Key Personnel only]"]
[null,null,12,{"$f":"'D. Budget'!AA24","v":0}]
[null,null,null,"Role in Project","[enter here]"]
[null,null,null,"Cost justification","[enter here]"]
[null,null,null,"Key Personnel","Select an option"]
[null,null,"       ","E-mail","[for Key Personnel only]"]
[null,null,13,{"$f":"'D. Budget'!AA25","v":0}]
[null,null,null,"Role in Project","[enter here]"]
[null,null,null,"Cost justification","[enter here]"]
[null,null,null,"Key Personnel","Select an option"]
[null,null,"       ","E-mail","[for Key Personnel only]"]
[null,null,14,{"$f":"'D. Budget'!AA26","v":0}]
[null,null,null,"Role in Project","[enter here]"]
[null,null,null,"Cost justification","[enter here]"]
[null,null,null,"Key Personnel","Select an option"]
[null,null,"       ","E-mail","[for Key Personnel only]"]
[null,null,15,{"$f":"'D. Budget'!AA27","v":0}]
[null,null,null,"Role in Project","[enter here]"]
[null,null,null,"Cost justification","[enter here]"]
[null,null,null,"Key Personnel","Select an option"]
[null,null,"       ","E-mail","[for Key Personnel only]"]
[null,null,16,{"$f":"'D. Budget'!AA28","v":0}]
[null,null,null,"Role in Project","[enter here]"]
[null,null,null,"Cost justification","[enter here]"]
[null,null,null,"Key Personnel","Select an option"]
[null,null,"       ","E-mail","[for Key Personnel only]"]
[null,null,17,{"$f":"'D. Budget'!AA29","v":0}]
[null,null,null,"Role in Project","[enter here]"]
[null,null,null,"Cost justification","[enter here]"]
[null,null,null,"Key Personnel","Select an option"]
[null,null,"       ","E-mail","[for Key Personnel only]"]
[null,null,18,{"$f":"'D. Budget'!AA30","v":0}]
[null,null,null,"Role in Project","[enter here]"]
[null,null,null,"Cost justification","[enter here]"]
[null,null,null,"Key Personnel","Select an option"]
[null,null,"       ","E-mail","[for Key Personnel only]"]
[null,null,19,{"$f":"'D. Budget'!AA31","v":0}]
[null,null,null,"Role in Project","[enter here]"]
[null,null,null,"Cost justification","[enter here]"]
[null,null,null,"Key Personnel","Select an option"]
[null,null,"       ","E-mail","[for Key Personnel only]"]
[null,null,20,{"$f":"'D. Budget'!AA32","v":0}]
[null,null,null,"Role in Project","[enter here]"]
[null,null,null,"Cost justification","[enter here]"]
[null,null,null,"Key Personnel","Select an option"]
[null,null,"       ","E-mail","[for Key Personnel only]"]
[]
[]
[]
[]
[null,null,null,"B. Equipment, Supplies, Services & Other direct costs"]
[null,null,null,"Equipment"]
[null,null,1,{"$f":"'D. Budget'!AA42","v":0}]
[null,null,null,"Purpose ","[enter here]"]
[null,null,null,"Cost justification"]
[null,null,2,{"$f":"'D. Budget'!AA43","v":0}]
[null,null,null,"Purpose ","[enter here]"]
[null,null,null,"Cost justification"]
[null,null,3,{"$f":"'D. Budget'!AA44","v":0}]
[null,null,null,"Purpose ","[enter here]"]
[null,null,null,"Cost justification",null,null,null,null,null,null,null,"Please, unhide rows between 121-143 if more space for Equipment is needed."]
[null,null,4,{"$f":"'D. Budget'!AA45","v":0}]
[null,null,null,"Purpose ","[enter here]"]
[null,null,null,"Cost justification"]
[null,null,5,{"$f":"'D. Budget'!AA46","v":0}]
[null,null,null,"Purpose ","[enter here]"]
[null,null,null,"Cost justification"]
[null,null,6,{"$f":"'D. Budget'!AA47","v":0}]
[null,null,null,"Purpose ","[enter here]"]
[null,null,null,"Cost justification"]
[null,null,7,{"$f":"'D. Budget'!AA48","v":0}]
[null,null,null,"Purpose ","[enter here]"]
[null,null,null,"Cost justification"]
[null,null,8,{"$f":"'D. Budget'!AA49","v":0}]
[null,null,null,"Purpose ","[enter here]"]
[null,null,null,"Cost justification"]
[null,null,9,{"$f":"'D. Budget'!AA50","v":0}]
[null,null,null,"Purpose ","[enter here]"]
[null,null,null,"Cost justification"]
[null,null,10,{"$f":"'D. Budget'!AA51","v":0}]
[null,null,null,"Purpose ","[enter here]"]
[null,null,null,"Cost justification"]
[]
[]
[null,null,null,"Supplies"]
[null,null,1,{"$f":"'D. Budget'!AA59","v":0}]
[null,null,null,"Purpose ","[enter here]"]
[null,null,null,"Cost justification"]
[null,null,2,{"$f":"'D. Budget'!AA60","v":0}]
[null,null,null,"Purpose ","[enter here]"]
[null,null,null,"Cost justification"]
[null,null,3,{"$f":"'D. Budget'!AA61","v":0}]
[null,null,null,"Purpose ","[enter here]"]
[null,null,null,"Cost justification"]
[null,null,4,{"$f":"'D. Budget'!AA62","v":0}]
[null,null,null,"Purpose ","[enter here]"]
[null,null,null,"Cost justification"]
[null,null,5,{"$f":"'D. Budget'!AA63","v":0}]
[null,null,null,"Purpose ","[enter here]"]
[null,null,null,"Cost justification",null,null,null,null,null,null,null,"Please, unhide rows between 160-206 if more space for Supplies is needed."]
[null,null,6,{"$f":"'D. Budget'!AA64","v":0}]
[null,null,null,"Purpose ","[enter here]"]
[null,null,null,"Cost justification"]
[null,null,7,{"$f":"'D. Budget'!AA65","v":0}]
[null,null,null,"Purpose ","[enter here]"]
[null,null,null,"Cost justification"]
[null,null,8,{"$f":"'D. Budget'!AA66","v":0}]
[null,null,null,"Purpose ","[enter here]"]
[null,null,null,"Cost justification"]
[null,null,9,{"$f":"'D. Budget'!AA67","v":0}]
[null,null,null,"Purpose ","[enter here]"]
[null,null,null,"Cost justification"]
[null,null,10,{"$f":"'D. Budget'!AA68","v":0}]
[null,null,null,"Purpose ","[enter here]"]
[null,null,null,"Cost justification"]
[null,null,11,{"$f":"'D. Budget'!AA69","v":0}]
[null,null,null,"Purpose ","[enter here]"]
[null,null,null,"Cost justification"]
[null,null,12,{"$f":"'D. Budget'!AA70","v":0}]
[null,null,null,"Purpose ","[enter here]"]
[null,null,null,"Cost justification"]
[null,null,13,{"$f":"'D. Budget'!AA71","v":0}]
[null,null,null,"Purpose ","[enter here]"]
[null,null,null,"Cost justification"]
[null,null,14,{"$f":"'D. Budget'!AA72","v":0}]
[null,null,null,"Purpose ","[enter here]"]
[null,null,null,"Cost justification"]
[null,null,15,{"$f":"'D. Budget'!AA73","v":0}]
[null,null,null,"Purpose ","[enter here]"]
[null,null,null,"Cost justification"]
[null,null,16,{"$f":"'D. Budget'!AA74","v":0}]
[null,null,null,"Purpose ","[enter here]"]
[null,null,null,"Cost justification"]
[null,null,17,{"$f":"'D. Budget'!AA75","v":0}]
[null,null,null,"Purpose ","[enter here]"]
[null,null,null,"Cost justification"]
[null,null,18,{"$f":"'D. Budget'!AA76","v":0}]
[null,null,null,"Purpose ","[enter here]"]
[null,null,null,"Cost justification"]
[null,null,19,{"$f":"'D. Budget'!AA77","v":0}]
[null,null,null,"Purpose ","[enter here]"]
[null,null,null,"Cost justification"]
[null,null,20,{"$f":"'D. Budget'!AA78","v":0}]
[null,null,null,"Purpose ","[enter here]"]
[null,null,null,"Cost justification"]
[]
[]
[]
[null,null,null,"Services & Other Direct Costs"]
[null,null,1,{"$f":"'D. Budget'!AA86","v":0}]
[null,null,null,"Purpose ","[enter here]"]
[null,null,null,"Cost justification"]
[null,null,2,{"$f":"'D. Budget'!AA87","v":0}]
[null,null,null,"Purpose ","[enter here]"]
[null,null,null,"Cost justification"]
[null,null,3,{"$f":"'D. Budget'!AA88","v":0}]
[null,null,null,"Purpose ","[enter here]"]
[null,null,null,"Cost justification"]
[null,null,4,{"$f":"'D. Budget'!AA89","v":0}]
[null,null,null,"Purpose ","[enter here]"]
[null,null,null,"Cost justification"]
[null,null,5,{"$f":"'D. Budget'!AA90","v":0}]
[null,null,null,"Purpose ","[enter here]"]
[null,null,null,"Cost justification",null,null,null,null,null,null,null,"Please, unhide rows between 224-270 if more space for Services & Other Direct Costs is needed."]
[null,null,6,{"$f":"'D. Budget'!AA91","v":0}]
[null,null,null,"Purpose ","[enter here]"]
[null,null,null,"Cost justification"]
[null,null,7,{"$f":"'D. Budget'!AA92","v":0}]
[null,null,null,"Purpose ","[enter here]"]
[null,null,null,"Cost justification"]
[null,null,8,{"$f":"'D. Budget'!AA93","v":0}]
[null,null,null,"Purpose ","[enter here]"]
[null,null,null,"Cost justification"]
[null,null,9,{"$f":"'D. Budget'!AA94","v":0}]
[null,null,null,"Purpose ","[enter here]"]
[null,null,null,"Cost justification"]
[null,null,10,{"$f":"'D. Budget'!AA95","v":0}]
[null,null,null,"Purpose ","[enter here]"]
[null,null,null,"Cost justification"]
[null,null,11,{"$f":"'D. Budget'!AA96","v":0}]
[null,null,null,"Purpose ","[enter here]"]
[null,null,null,"Cost justification"]
[null,null,12,{"$f":"'D. Budget'!AA97","v":0}]
[null,null,null,"Purpose ","[enter here]"]
[null,null,null,"Cost justification"]
[null,null,13,{"$f":"'D. Budget'!AA98","v":0}]
[null,null,null,"Purpose ","[enter here]"]
[null,null,null,"Cost justification"]
[null,null,14,{"$f":"'D. Budget'!AA99","v":0}]
[null,null,null,"Purpose ","[enter here]"]
[null,null,null,"Cost justification"]
[null,null,15,{"$f":"'D. Budget'!AA100","v":0}]
[null,null,null,"Purpose ","[enter here]"]
[null,null,null,"Cost justification"]
[null,null,16,{"$f":"'D. Budget'!AA101","v":0}]
[null,null,null,"Purpose ","[enter here]"]
[null,null,null,"Cost justification"]
[null,null,17,{"$f":"'D. Budget'!AA102","v":0}]
[null,null,null,"Purpose ","[enter here]"]
[null,null,null,"Cost justification"]
[null,null,18,{"$f":"'D. Budget'!AA103","v":0}]
[null,null,null,"Purpose ","[enter here]"]
[null,null,null,"Cost justification"]
[null,null,19,{"$f":"'D. Budget'!AA104","v":0}]
[null,null,null,"Purpose ","[enter here]"]
[null,null,null,"Cost justification"]
[null,null,20,{"$f":"'D. Budget'!AA105","v":0}]
[null,null,null,"Purpose ","[enter here]"]
[null,null,null,"Cost justification"]
[]
[]
[]
[]
[null,null,null,"C. Travel"]
[]
[null,null,1,"[Origin City, Country - Destination City, Country]"]
[null,null,null,"Purpose ","[enter here]"]
[null,null,2,"[Origin City, Country - Destination City, Country]"]
[null,null,null,"Purpose ","[enter here]"]
[null,null,3,"[Origin City, Country - Destination City, Country]"]
[null,null,null,"Purpose ","[enter here]",null,null,null,null,null,null,"Please, unhide rows between 281-290 if more space for Travel is needed."]
[null,null,4,"[Origin City, Country - Destination City, Country]"]
[null,null,null,"Purpose ","[enter here]"]
[null,null,5,"[Origin City, Country - Destination City, Country]"]
[null,null,null,"Purpose ","[enter here]"]
[null,null,6,"[Origin City, Country - Destination City, Country]"]
[null,null,null,"Purpose ","[enter here]"]
[null,null,7,"[Origin City, Country - Destination City, Country]"]
[null,null,null,"Purpose ","[enter here]"]
[]
[]
[null,null,null,"Per Diem Lodging rates"]
[null,null,1,"[insert name of destination city]"]
[null,null,null,"Lodging option ","[enter here]"]
[null,null,2,"[insert name of destination city]"]
[null,null,null,"Lodging option ","[enter here]"]
[null,null,3,"[insert name of destination city]"]
[null,null,null,"Lodging option ","[enter here]",null,null,null,null,null,null,"Please, unhide rows between 298-307 if more space for Per Diem Lodging rates is needed."]
[null,null,4,"[insert name of destination city]"]
[null,null,null,"Lodging option ","[enter here]"]
[null,null,5,"[insert name of destination city]"]
[null,null,null,"Lodging option ","[enter here]"]
[null,null,6,"[insert name of destination city]"]
[null,null,null,"Lodging option ","[enter here]"]
[null,null,7,"[insert name of the item]"]
[null,null,null,"Lodging option ","[enter here]"]
[]
[]
[null,null,null,"Registrations"]
[null,null,1,"[insert name of the item]"]
[null,null,null,"Purpose ","[enter here]"]
[null,null,2,"[insert name of the item]"]
[null,null,null,"Purpose ","[enter here]"]
[null,null,3,"[insert name of the item]"]
[null,null,null,"Purpose ","[enter here]",null,null,null,null,null,null,"Please, unhide rows between 315-324 if more space for Registrations is needed."]
[null,null,4,"[insert name of the item]"]
[null,null,null,"Purpose ","[enter here]"]
[null,null,5,"[insert name of the item]"]
[null,null,null,"Purpose ","[enter here]"]
[null,null,6,"[insert name of the item]"]
[null,null,null,"Purpose ","[enter here]"]
[null,null,7,"[insert name of the item]"]
[null,null,null,"Purpose ","[enter here]"]
[]
[]
[]
[]
[null,null,null,"Indirect rate"]
[]
[null,null,null,"Please indicate document that specifies applicable indirect rate"]
[null,null,null," [enter here]"]

{"sheet":"F. Payments Schedule","index":10,"n_rows":47,"n_cols":39,"rows_kept":47,"cut":false,"hidden":false,"merged":[[1,1,1,27],[0,1,0,27],[36,2,36,3],[18,1,18,27],[29,1,29,27],[15,1,15,3],[20,2,20,3],[20,4,20,5],[22,4,22,5],[26,2,26,27],[24,2,24,10],[13,1,13,3],[13,4,13,27],[44,2,44,27],[46,2,46,27],[3,1,3,3],[40,2,40,27],[38,2,38,12]]}
[null,"ATTACHMENT F"]
[null,"PAYMENTS AND REPORTING SCHEDULE",null,null,null,null,null,null,null,null,null,null,null,null,null,null,null,null,null,null,null,null,null,null,null,null,null,null,null,null,null,null,null,null,null,null,null,null,"Select an option"]
[null,null,null,null,null,null,null,null,null,null,null,null,null,null,null,null,null,null,null,null,null,null,null,null,null,null,null,null,null,null,null,null,null,null,null,null,null,null,"Monthly"]
[null,"Expenditures Forecast",null,null,"Quarterly",null,null,null,null,null,null,null,null,null,null,null,null,null,null,null,null,null,null,null,null,null,null,null,null,null,null,null,null,null,null,null,null,null,"Quarterly"]
[null,"Costs","Advance",{"$f":"_xlfn.IFS($E$4=\"Monthly\",\"Month1\",$E$4=\"Quarterly\",\"Quarter1\",$E$4=\"Bi-annually\",\"BA1\")","v":"Quarter1"},{"$f":"_xlfn.IFS($E$4=\"Monthly\",\"Month2\",$E$4=\"Quarterly\",\"Quarter2\",$E$4=\"Bi-annually\",\"BA2\")","v":"Quarter2"},{"$f":"_xlfn.IFS($E$4=\"Monthly\",\"Month3\",$E$4=\"Quarterly\",\"Quarter3\",$E$4=\"Bi-annually\",\"BA3\")","v":"Quarter3"},{"$f":"_xlfn.IFS($E$4=\"Monthly\",\"Month4\",$E$4=\"Quarterly\",\"Quarter4\",$E$4=\"Bi-annually\",\"BA4\")","v":"Quarter4"},{"$f":"_xlfn.IFS($E$4=\"Monthly\",\"Month5\",$E$4=\"Quarterly\",\"Quarter5\",$E$4=\"Bi-annually\",\"BA5\")","v":"Quarter5"},{"$f":"_xlfn.IFS($E$4=\"Monthly\",\"Month6\",$E$4=\"Quarterly\",\"Quarter6\",$E$4=\"Bi-annually\",\"BA6\")","v":"Quarter6"},{"$f":"_xlfn.IFS($E$4=\"Monthly\",\"Month7\",$E$4=\"Quarterly\",\"Quarter7\",$E$4=\"Bi-annually\",\"BA7\")","v":"Quarter7"},{"$f":"_xlfn.IFS($E$4=\"Monthly\",\"Month8\",$E$4=\"Quarterly\",\"Quarter8\",$E$4=\"Bi-annually\",\"BA8\")","v":"Quarter8"},{"$f":"_xlfn.IFS($E$4=\"Monthly\",\"Month9\",$E$4=\"Quarterly\",\"Quarter9\",$E$4=\"Bi-annually\",\"BA9\")","v":"Quarter9"},{"$f":"_xlfn.IFS($E$4=\"Monthly\",\"Month10\",$E$4=\"Quarterly\",\"Quarter10\",$E$4=\"Bi-annually\",\"BA10\")","v":"Quarter10"},{"$f":"_xlfn.IFS($E$4=\"Monthly\",\"Month11\",$E$4=\"Quarterly\",\"Quarter11\",$E$4=\"Bi-annually\",\"BA11\")","v":"Quarter11"},{"$f":"_xlfn.IFS($E$4=\"Monthly\",\"Month12\",$E$4=\"Quarterly\",\"Quarter12\",$E$4=\"Bi-annually\",\"BA12\")","v":"Quarter12"},{"$f":"_xlfn.IFS($E$4=\"Monthly\",\"Month13\",$E$4=\"Quarterly\",\"Quarter13\")","v":"Quarter13"},{"$f":"_xlfn.IFS($E$4=\"Monthly\",\"Month14\",$E$4=\"Quarterly\",\"Quarter14\")","v":"Quarter14"},{"$f":"_xlfn.IFS($E$4=\"Monthly\",\"Month15\",$E$4=\"Quarterly\",\"Quarter15\")","v":"Quarter15"},{"$f":"_xlfn.IFS($E$4=\"Monthly\",\"Month16\",$E$4=\"Quarterly\",\"Quarter16\")","v":"Quarter16"},{"$f":"_xlfn.IFS($E$4=\"Monthly\",\"Month17\",$E$4=\"Quarterly\",\"Quarter17\")","v":"Quarter17"},{"$f":"_xlfn.IFS($E$4=\"Monthly\",\"Month18\",$E$4=\"Quarterly\",\"Quarter18\")","v":"Quarter18"},{"$f":"_xlfn.IFS($E$4=\"Monthly\",\"Month19\",$E$4=\"Quarterly\",\"Quarter19\")","v":"Quarter19"},{"$f":"_xlfn.IFS($E$4=\"Monthly\",\"Month20\",$E$4=\"Quarterly\",\"Quarter20\")","v":"Quarter20"},{"$f":"_xlfn.IFS($E$4=\"Monthly\",\"Month21\",$E$4=\"Quarterly\",\"Quarter21\")","v":"Quarter21"},{"$f":"_xlfn.IFS($E$4=\"Monthly\",\"Month22\",$E$4=\"Quarterly\",\"Quarter22\")","v":"Quarter22"},{"$f":"_xlfn.IFS($E$4=\"Monthly\",\"Month23\",$E$4=\"Quarterly\",\"Quarter23\")","v":"Quarter23"},{"$f":"_xlfn.IFS($E$4=\"Monthly\",\"Month24\",$E$4=\"Quarterly\",\"Quarter24\")","v":"Quarter24"},"TOTAL",null,null,null,null,null,null,null,null,null,null,"Bi-annually"]
[null,"Labor",0,0,0,0,0,0,0,0,0,0,0,0,0,0,0,0,0,0,0,0,0,0,0,0,0,{"$f":"SUM(C6:AA6)","v":0}]
[null,"Equipment",0,0,0,0,0,0,0,0,0,0,0,0,0,0,0,0,0,0,0,0,0,0,0,0,0,{"$f":"SUM(C7:AA7)","v":0}]
[null,"Supplies",0,0,0,0,0,0,0,0,0,0,0,0,0,0,0,0,0,0,0,0,0,0,0,0,0,{"$f":"SUM(C8:AA8)","v":0}]
[null,"Services & ODC",0,0,0,0,0,0,0,0,0,0,0,0,0,0,0,0,0,0,0,0,0,0,0,0,0,0]
[null,"Travel",0,0,0,0,0,0,0,0,0,0,0,0,0,0,0,0,0,0,0,0,0,0,0,0,0,0]
[null,"Indirect costs",0,0,0,0,0,0,0,0,0,0,0,0,0,null,null,null,null,null,null,null,null,null,null,null,null,0]
[null,"Total ",{"$f":"SUM(C6:C11)","v":0},{"$f":"SUM(D6:D11)","v":0},{"$f":"SUM(E6:E11)","v":0},{"$f":"SUM(F6:F11)+D12+E12","v":0},0,0,{"$f":"SUM(I6:I11)+G12+H12","v":0},0,0,{"$f":"SUM(L6:L11)+J12+K12","v":0},0,0,{"$f":"SUM(O6:O11)+M12+N12","v":0},{"$f":"SUM(P6:P10)","v":0},0,0,0,0,0,0,0,0,0,0,0,{"$f":"SUM(AB6:AB11)","v":0}]
[]
[null,"Advance Payment Justification",null,null,"[if advance payment is requested, please provide justification as to why such payment is needed and how it will be utilized for the grant project implementation]"]
[]
[null,"Technical & Financial Reporting",null,null,"Filled in by CRDF Global"]
[]
[]
[null,"Technical Progress Reporting"]
[]
[null,"Reporting Frequency:","Select an option",null,"CRDF Global's \ntemplate:",null,"Select an option"]
[]
[null,"Report is sent to:","Select an option",null,"Funder approval:",null,"Select an option"]
[]
[null,"Report due date:","within 30 days of the end of the reporting period"]
[]
[null,"NOTE:","[enter here]"]
[]
[]
[null,"Financial Reporting"]
[]
[null,"Reporting documents: [select all that apply from the list below]"]
[null,"GEAR Form"]
[null,"Receipts on expenses"]
[null,"Grantee's Invoice"]
[]
[null,"Reporting Frequency:","Select an option"]
[]
[null,"Report due date:","within 30 days of the end of the reporting period"]
[]
[null,"NOTE:","Supporting documentation (invoices, bills, agreements of services, itemized receipts, bank payment confirmations) should not be enclosed with the Invoice but must be stored by the grantee according to the terms and conditions of the grant agreement and presented per CRDF Global request."]
[]
[]
[]
[null,"Complete Invoice Date:","The date when the Invoice has been received, corrected, if necessary, and the relevant deliverables are provided by the grantee according to the Grant Agreement, and there is sufficient funding per Grant agreement budget."]
[]
[null,"NOTE:","The Payment Terms (measured in calendar days) that are specified in the Cover Page start countdown from the Complete Invoice Date."]

{"sheet":"Grant Agreement","index":11,"n_rows":72,"n_cols":7,"rows_kept":72,"cut":false,"hidden":true,"merged":[[56,4,56,7],[57,4,57,7],[52,1,52,2],[53,4,53,7],[52,4,52,7],[54,4,54,7],[55,4,55,7],[48,1,48,2],[47,3,47,7],[45,1,45,2],[41,1,43,2],[44,3,44,7],[46,1,46,2],[45,3,45,7],[47,1,47,2],[46,3,46,7],[44,1,44,2],[39,1,40,2],[38,1,38,2],[38,3,38,7],[34,1,34,2],[34,3,34,7],[39,4,39,7],[40,4,40,7],[9,1,9,2],[36,1,36,2],[37,1,37,2],[37,3,37,7],[31,1,31,2],[31,3,31,7],[32,1,32,2],[32,3,32,7],[33,1,33,2],[33,3,33,7],[28,1,28,2],[29,1,29,2],[29,3,29,7],[30,1,30,2],[30,3,30,7],[24,1,24,2],[24,3,24,7],[25,1,25,2],[25,3,25,7],[26,1,26,2],[26,3,26,7],[20,3,20,7],[21,3,21,7],[22,1,22,2],[22,3,22,7],[23,1,23,2],[23,3,23,7],[17,1,17,2],[18,1,18,2],[19,1,19,2],[10,3,10,7],[11,3,11,7],[12,3,12,7],[13,3,13,7],[14,3,14,7],[16,3,16,7],[17,3,17,7],[18,3,18,7],[5,1,5,2],[5,3,5,7],[7,1,7,2],[7,3,7,7],[50,1,50,7],[19,3,19,7],[20,1,20,2],[21,1,21,2],[10,1,10,2],[11,1,11,2],[12,1,12,2],[13,1,13,2],[14,1,14,2],[15,1,15,2],[15,3,15,7],[16,1,16,2],[61,1,61,7],[65,1,65,2],[64,3,64,4],[64,5,64,7],[65,3,65,4],[65,5,65,7],[70,3,70,4],[70,5,70,7],[71,1,71,2],[71,3,71,4],[71,5,71,7],[58,1,58,2],[53,1,53,2],[54,1,54,2],[55,1,55,2],[56,1,56,2],[57,1,57,2]]}
[null,null,null,null,null,"GRANT AGREEMENT"]
[]
[]
[]
[]
[null,"GRANT NUMBER"]
[]
[null,"Project Title",null,{"$f":"'B. SOW'!S4","v":"[enter here]"}]
[]
[null,"GRANTEE INFORMATION"]
[null,"Grantee Organization",null,{"$f":"IDF!T8","v":0}]
[null,"Address Line 1",null,{"$f":"IDF!R11","v":0}]
[null,"Address Line 2",null,{"$f":"IDF!R12","v":0}]
[null,"City",null,{"$f":"IDF!R13","v":0}]
[null,"Grantee Country",null,{"$f":"IDF!R16","v":0}]
[null,"Unique Entity Identifier ",null,{"$f":"IDF!R35","v":0}]
[null,"Local registration number",null,{"$f":"IDF!R36","v":0}]
[null,"Grantee Phone",null,{"$f":"IDF!R19","v":0}]
[null,"Grantee E-mail",null,{"$f":"IDF!R22","v":0}]
[null,"Principal Investigator (PI) Name",null,{"$f":"IDF!R40","v":0}]
[null,"Principal Investigator Position",null,{"$f":"IDF!R41","v":0}]
[null,"Principal Investigator E-mail",null,{"$f":"IDF!R43","v":0}]
[null,"Principal Investigator \nPhone Number",null,{"$f":"IDF!R42","v":0}]
[null,"Authorized Signatory Name",null,{"$f":"IDF!R46","v":0}]
[null,"Authorized Signatory Position",null,{"$f":"IDF!R47","v":0}]
[null,"Authorized Signatory Email",null,{"$f":"IDF!R49","v":0}]
[null,"Authorized Signatory Phone Number",null,{"$f":"IDF!R48","v":0}]
[]
[null,"CRDF GLOBAL INFORMATION"]
[null,"Address",null,"1776 Wilson Boulevard, Third Floor, Arlington, VA 22209"]
[null,"Unique Entity Identifier ",null,"MR7ZQXJSQKA5"]
[null,"Grant Officer Name",null,"Please select"]
[null,"Grant Officer Title",null,"Please select"]
[null,"Grant Officer Phone"]
[null,"Grant Officer E-Mail",null,"Please select"]
[]
[null,"GRANT INFORMATION"]
[null,"Project Duration",null,{"$f":"'B. SOW'!S6","v":"[enter here]"}]
[null,"Grant Ceiling",null,{"$f":"'D. Budget'!J160","v":0}]
[null,"Agreement Type",null,null,"Cost-reimbursable"]
[null,null,null,null,"Fixed Amount Award"]
[null,"Payment Modality",null,null,"Advance"]
[null,null,null,null,"Arrears"]
[null,null,null,null,"As per milestone completion (FAA)"]
[null,"Payment Terms",null,"NET 30"]
[null,"Competition"]
[null,"Prime Agreement Number"]
[null,"Authorization"]
[null,"Special Terms and Conditions",null,null,"Yes",null,"No"]
[]
[null,"Funding for this Grant has been provided by the National Institutes of Health via National Science Foundation Cooperative Agreement #"]
[null,"ATTACHMENTS:"]
[null,"A. Project Overview",null,null,"H. Bioethics Compliance"]
[null,"B. Scope of Work",null,null,"I. Bioethics Compliance - DNA"]
[null,"C. Workplan",null,null,"J. Equipment Compliance"]
[null,"D. Budget",null,null,"K. Financial Reporting"]
[null,"E. Budget Narrative",null,null,"L. Other Terms and Conditions"]
[null,"F. Payments and Reporting Schedule",null,null,"M. Special Terms and Conditions"]
[null,"G. Standard Terms and Conditions"]
[]
[null,"EXECUTION"]
[null,"This Agreement is entered into by CRDF Global and [organization_name] (hereafter “Grantee”) for the purposes set forth in Attachment B: Scope of Work (SOW). This Grant Agreement (with all attachments, hereafter the \"Agreement\"), constitutes the complete understanding between CRDF Global and the Grantee and supplants all representations of the Parties, whether oral or written, made prior to the execution of this Agreement. No subsequent modification, extension, or amendment to any part of this Agreement will be valid unless in writing and signed both by CRDF Global and the Grantee. By signature of their authorized representatives below, CRDF Global and Grantee (hereafter the “Parties”) make and enter into this Agreement as of the date of CRDF Global execution."]
[null,"For",{"$f":"IDF!R8","v":0}]
[]
[null,null,null,{"$f":"IDF!R46","v":0},null,{"$f":"IDF!R47","v":0}]
[null,"Sigature",null,"Name",null,"Title"]
[]
[]
[null,"For","CRDF Global"]
[]
[null,null,null,{"$f":"D32","v":"Please select"},null,{"$f":"D33","v":"Please select"}]
[null,"Sigature",null,"Name",null,"Title"]

{"sheet":"G. Standard TCs ","index":12,"n_rows":120,"n_cols":19,"rows_kept":120,"cut":false,"hidden":false,"merged":[[79,0,79,8],[80,0,80,8],[81,0,81,8],[82,0,82,8],[2,0,2,8],[72,0,72,8],[74,0,74,8],[75,0,75,8],[76,0,76,8],[77,0,77,8],[78,0,78,8],[63,0,63,8],[65,0,65,8],[66,0,66,8],[68,0,68,8],[69,0,69,8],[71,0,71,8],[54,0,54,8],[56,0,56,8],[57,0,57,8],[59,0,59,8],[60,0,60,8],[62,0,62,8],[53,0,53,8],[37,0,37,8],[38,0,38,8],[39,0,39,8],[41,0,41,8],[42,0,42,8],[44,0,44,8],[45,0,45,8],[47,0,47,8],[48,0,48,8],[50,0,50,8],[51,0,51,8],[36,0,36,8],[22,0,22,8],[23,0,23,8],[25,0,25,8],[26,0,26,8],[28,0,28,8],[29,0,29,8],[31,0,31,8],[32,0,32,8],[33,0,33,8],[34,0,34,8],[35,0,35,8],[20,0,20,8],[8,0,8,8],[9,0,9,8],[10,0,10,8],[11,0,11,8],[12,0,12,8],[13,0,13,8],[14,0,14,8],[15,0,15,8],[16,0,16,8],[17,0,17,8],[19,0,19,8],[4,9,4,17],[5,0,5,8],[7,0,7,8],[0,3,0,5],[1,0,1,8],[3,0,3,8],[4,0,4,8],[6,0,6,8]]}
[null,null,null,"ATTACHMENT G"]
["STANDARD TERMS AND CONDITIONS"]
[]
["1. Statutory Requirements: "]
["Grantee agrees to comply with all applicable requirements of 2 CFR 200 (Prime Grants or Cooperative Agreements)  "]
["https://www.ecfr.gov/current/title-2/subtitle-A/chapter-II/part-200?toc=1 "]
[]
["2. Purpose:"]
["Funds provided under this Agreement shall be used solely for the objectives outlined herein and in accordance with Grantee’s proposal to the National Institutes of Health (NIH), hereby incorporated by reference. "]
[]
["3. Personnel:"]
["The Principal Investigator (PI) is responsible for overseeing the technical work to be performed under this Agreement and for submission of all required Technical Reports. The Principal Investigator may not be replaced without the prior written notice to, and subsequent approval of, CRDF Global. "]
[]
["4. Reporting & Performance:"]
["Grantee shall submit technical and financial reports in accordance with the schedule set forth herein and in such detail and format as requested by CRDF Global.  Grantee is expected to make best efforts to accomplish the technical objectives in accordance with the established milestones and schedule and to report to CRDF Global any circumstances that may result in significant delays. CRDF Global will monitor Grantee technical and financial progress and may request additional information from the Grantee during the course of the project. Grantee agrees to cooperate with all such reasonable requests. "]
[]
["5. Record-Keeping & Access:"]
["Grantee shall maintain detailed financial and other records related to this Agreement, including records associated with any subawards issued by the Grantee hereunder, and shall retain such records for a period of no less than three (3) years from the expiration date of this Agreement.   Grantee agrees to provide timely, unrestricted access to such records throughout the duration of the grant period and for the three-year retention period. Grantee further agrees to provide CRDF Global or its authorized representatives access to Grantee’s facilities and personnel performing work under this Agreement.  Grantee shall ensure similar provisions are incorporated into any subaward issued hereunder. "]
[]
["6. Liability:"]
["Neither Party shall be liable to the other for any claim related to their performance of this agreement, except for claims arising from negligent or intentional tortious conduct. "]
[]
["7. Suspension & Termination:",null,null,null,null,null,null,null,null,null,null,null,null,null,null,null,null,null,{"$f":"C23","v":0}]
["Either Party may terminate this Agreement for convenience at any time by providing thirty (30) days written notice to the other Party.  In the event of such suspension or termination, the Grantee will submit claim for final eligible costs with fifteen (15) days of the date of termination. \nCRDF Global may suspend this Agreement at any time and for any reason by providing fifteen (15) written notice to the Grantee.   "]
[]
["8. Force Majeure:"]
["Neither Party shall be liable for any failure to perform its obligations under this Agreement, if such failure results from any Acts of God, pandemics, Acts of War, riot, civil unrest, flood, earthquake or other similar cause beyond such party’s reasonable control (including any sustained mechanical, electronic or communications failure, but excluding failure caused by a party’s financial condition or negligence). A party experiencing a Force Majeure circumstance shall notify the other Party, in writing, as soon as possible describing the situation and its impact on the performance of this Agreement."]
[]
["9. Disputes:"]
["In the event of any disagreement regarding performance under or interpretation of this Agreement, the Parties shall use their best efforts to reach a negotiated resolution that is equitable and mutually satisfactory. Until final resolution of any dispute, the Grantee shall diligently proceed with the performance of this Agreement as directed by CRDF Global. Nothing contained in this Agreement or in any other document related hereto is intended to or shall have the effect of requiring either party to consider, resort to participate in, or abide by any arbitration process or mechanism, or any device or arrangement of a nature or intent similar to arbitration."]
[]
["10. Compliance:",null,null,null,null,null,null,null,null,null,null,null,null,null,null,null,null,null,{"$f":"C32","v":0}]
["Grantee agrees to observe and conform to, in all material respects, all laws, rules, regulations, codes, orders and requirements of governmental authorities relating to this Agreement, and certifies that it is in compliance with and will comply in the course of the period of performance with other generally applicable requirements, including, but not limited to, those relating to corporate operations, taxation, employment and the environment. \n\nThe Grantee further understands and certifies to the following: "]
["a. Suspension & Debarment: Neither Grantee nor any individual Project Personnel are presently debarred, suspended, proposed for debarment, declared ineligible, or voluntarily excluded from participation in this Agreement by any U.S. Government department or agency or any international organization. "]
["b. Prohibition Against Lobbying: That funds provided under this Agreement or will be paid, by or on behalf of the Grantee, to any person for influencing or attempting to influence an officer or employee of a federal agency, a Member of Congress, and officer or employee of Congress, or an employee of a Member of Congress in connection with the awarding, issuance, extension, modification, or renewal of any Federal contract, grant, loan, or other transaction. "]
["c. Combatting Terrorism: As a material condition of receiving the Agreement, Grantee accepts the obligation to take all reasonable steps to prevent financing or any other form of material support being provided to terrorists, individuals, and entities that provide support or services to, are owned, or controlled by, act for or on behalf of, or are otherwise associated with terrorists. With prejudice to the generality of the foregoing, Grantee agrees to ensure that it does not engage in any transaction with or otherwise provide any financing or other material support to an individual or entity on the Specially Designated National (SDN) list issued by the Office of Foreign Assets Control of the US Treasury Department. "]
["d. Prohibition Against Human Trafficking: During the Agreement Period, Grantee certifies that it will not engage in human trafficking, procure a commercial sex act, or use forced labor in performance of the Agreement. Grantee further agrees to ensure that its employees and subgrantees observe the same requirement, and to disclose any information or allegations of violations that come to its attention; failure to comply with this requirement may result in unilateral termination of the Agreement by CRDF Global without penalty or further payment. "]
["e. Nondiscrimination: As applicable, Grantee will comply with Executive Order 11246, as amended (Equal Employment Opportunity); Section 503 of the Rehabilitation Act of 1973; the Vietnam Era Veterans Readjustment Act of 1974, 38 U.S.C. § 4212; the Jobs for Veterans Act of 2002, and Executive Order 13496, and all implementing regulations, including but not limited to 41 CFR §§ 60-1.4, 60-300.5, 60-741.5. This Agreement is subject to the provisions of Title VI of the Civil Rights Act of 1964 [42 U.S.C. § 2000d], Title IX of the Education Amendments of 1972 [20 USC § 1681 et seq.], the Rehabilitation Act of 1973 [29 U.S.C. § 794], the Age Discrimination Act of 1975 [42 U.S.C. § 6101 et seq], and all regulations and policies issued pursuant to these statutes. Specifically, in accordance with these statutes, regulations, and policies, no person based on race, color, national origin, sex, disability, or age shall be excluded from participation in, be denied the benefits of, or otherwise be subjected to discrimination under this Agreement. "]
["f. Prohibition on Certain Telecommunications and Video Surveillance Services or Equipment: Grantee will abide by the restrictions set forth in 2 CFR § 200.216, also defined in Public Law 115-232, section 889 "]
["g. Bioethics:  For research projects involving human and/or animal subjects or recombinant or synthetic nucleic acid molecules, Grantee agrees to comply with all U.S. and national laws and regulations associated with the conduct of such research. "]
[]
["11. Relationship and Authority:"]
["The Parties are separate organizations operating independently in connection with the Agreement. Neither Party has the authority to create obligations on behalf of the other. Each shall make this fact clear to all third parties with which it deals.    \nGrantee certifies that it possesses the legal authority to enter into this Agreement, and that is has satisfied all requirements of its governing body authorizing the acceptance of this award including all understandings and assurances contained therein directing and authorizing the person identified as the official representative of the Grantee to act in connection with the Agreement. "]
[]
["12. Integrity & Ethics:"]
["At all times during the Agreement Period, Grantee shall adhere to the highest standards of integrity and ethics. Without prejudice to the generality of the foregoing, Grantee shall ensure that it has not provided or offered, and will not provide or offer, any corrupt, prohibited, unethical or even unseemly payment or other benefit directly or indirectly to CRDF Global, any government official(s), or any agent or representative of either of the foregoing. \n\nGrantee further confirms that it has, and will maintain throughout the duration of this Agreement, a conflict-of-interest policy compliant with the provisions of 2 CFR 200. ",null,null,null,null,null,null,null,null,null,null,null,null,null,null,null,null,null,{"$f":"C46","v":0}]
[]
["13. Data Protection:"]
["Grantee acknowledges that it may be required to collect personal data for the purposes set forth in this Agreement. If Grantee collects personal data pursuant to this Agreement, Grantee will not store, copy, analyze, monitor, or otherwise use such personal data except for the purposes set forth in this Agreement and with the individual’s informed, prior consent. Grantee will comply fully with all applicable laws, regulations, and government orders relating to the personal data that Grantee receives, or has access to, under this Agreement. Grantee will otherwise protect personal data and will not use, disclose, or transfer the personal data across national borders, except as necessary to perform under this Agreement or as consented to by the individual in accordance with applicable law. Under no circumstances will Grantee sell, share, or otherwise exchange personal data collected pursuant to this Agreement for commercial purposes."]
[]
["14. Intellectual Property:"]
["For the purposes of this Agreement, the parties agree to the following: \n\n- CRDF Global makes no claim to any IP conceived or developed in the performance of this Agreement; \n\n- Grantee shall take all necessary steps to protect its pre-existing IP that may be used in the performance of this Agreement; \n\n- Grantee shall accept and flow down all federal government requirements; and \n\n- Any IP conceived or developed in the performance of this Agreement shall be subject to the requirements of the Bayh-Dole Act, 35 U.S. C. §§ 200 et. seq., and implementing regulations, 37 CFR Part 401. "]
[]
["15. Publications: ",null,null,null,null,null,null,null,null,null,"Do we need Project indicators?"]
["All publications produced in performance of this Agreement must contain the following acknowledgment: “This publication is based on work supported by funding provided by the National Institutes of Health (NIH) and administered by CRDF Global. Any opinions, findings and conclusions or recommendations expressed in this material are those of the author(s) and do not necessarily reflect the views of NIH or CRDF Global.” Copies of publications based on or developed under this Agreement shall be provided to CRDF Global or its authorized representatives upon request.",null,null,null,null,null,null,null,null,null,null,null,null,null,null,null,null,null,{"$f":"C55","v":0}]
[]
["16. Assignment:"]
["Grantee may not assign, subcontract, grant, subgrant or otherwise transfer any rights (including, but not limited to, claims and rights to receive payment) or obligations under the Agreement to any other person or entity without prior, written approval from CRDF Global. "]
[]
["17. Travel:"]
["All travel funded under this Agreement shall be subject to the provision of the Fly America Act (49 U.S.C. 40018) and the provisions of 2 CFR 200."]
[]
["18. Invoicing & Payment:"]
["Grantee will submit invoices and financial reports in accordance with the schedule contained herein and containing such information, or in such format, as provided by CRDF Global. \n\nCRDF Global reserves the right to request additional documentation or information to conduct appropriate review of reported expenditures and to disallow any cost found to be unallowable or not in accordance with the approved Grant budget. \n\nIf Grantee becomes aware of an overpayment, an erroneous payment, or a duplicate payment, Grantee shall immediately notify CRDF Global in writing and request instructions for managing the matter. CRDF Global may deduct from any payment all or part of any amount, whether in connection with the Agreement or any other agreement, owed to it by Grantee.",null,null,null,null,null,null,null,null,null,null,null,null,null,null,null,null,null,{"$f":"C64","v":0}]
[]
["19. Modification & Amendment:"]
["The Agreement may only be modified by a written amendment signed by both Parties except in the following circumstances wherein CRDF Global may issue a unilateral modification or formal written approval: \n\na. Approval of a no-cost extension requested in writing by the Grantee. \nb. Administrative updates of the CRDF Global PO or GO. \nc. Budget reallocations among direct cost budget categories requested by the Grantee that are less than 10% of the total grant amount. "]
[]
["20. Severability:"]
["Any Agreement provision(s) determined by a court or other competent authority to contravene applicable law or mandatory public policy will be rendered void or unenforceable only to the extent of such contravention; remaining provisions shall continue in full force and effect and be construed to implement the Parties’ intent to the maximum extent practicable. "]
[]
["21. Issuance in Multiple Languages:"]
["For explanatory purposes or for the sake of clarification, this Agreement and associated documents may be translated into one or more languages other than English. In the event of the existence of such translations, the English-language version shall serve as the definitive version determining the interpretation of any provision contained herein. ",null,null,null,null,null,null,null,null,null,null,null,null,null,null,null,null,null,{"$f":"C73","v":0}]
[]
["22. Closeout:"]
["To facilitate timely closeout of the Agreement, Grantee agrees to perform all its agreement obligations in a timely manner and to take all necessary and appropriate steps to assist CRDF Global in the closeout process."]
["Closeout shall, in addition to such other steps as CRDF Global may reasonably request, follow standard CRDF Global procedures which include the following Grantee actions: "]
["[a] liquidation of unliquidated obligations,  \n[b] submission of a Final Invoice not later than 30 days from the Agreement end date, \n[c] refund of unobligated balances,  \n[d] accounting for and if instructed by CRDF Global disposing of goods and other items procured with Grant support; and  \n[e] execution of an acceptable release."]
["Upon Grantee’s successful completion of all its obligations under the Agreement, including closeout, CRDF Global will make final payment. Grantee agrees to complete all required closeout actions within forty-five (45) days after the Expiration Date. "]
[]
[]
[]
[]
[]
[]
[]
[]
[]
[]
[null,null,null,null,null,null,null,null,null,null,null,null,null,null,null,null,null,null,{"$f":"C90","v":0}]
[]
[]
[]
[]
[]
[]
[]
[]
[]
[]
[]
[null,null,null,null,null,null,null,null,null,null,null,null,null,null,null,null,null,null,{"$f":"C102","v":0}]
[]
[]
[]
[]
[]
[]
[]
[]
[null,null,null,null,null,null,null,null,null,null,null,null,null,null,null,null,null,null,{"$f":"C111","v":0}]
[]
[]
[]
[]
[]
[]
[]
[]
[null,null,null,null,null,null,null,null,null,null,null,null,null,null,null,null,null,null,{"$f":"C120","v":0}]

{"sheet":"H. Bioethics compliance","index":13,"n_rows":116,"n_cols":19,"rows_kept":116,"cut":false,"hidden":true,"merged":[[76,0,76,8],[67,0,67,8],[69,0,69,8],[70,0,70,8],[72,0,72,8],[73,0,73,8],[75,0,75,8],[66,0,66,8],[49,0,49,8],[51,0,51,8],[52,0,52,8],[54,0,54,8],[55,0,55,8],[57,0,57,8],[58,0,58,8],[60,0,60,8],[61,0,61,8],[63,0,63,8],[64,0,64,8],[48,0,48,8],[35,0,35,8],[36,0,36,8],[37,0,37,8],[38,0,38,8],[39,0,39,8],[40,0,40,8],[41,0,41,8],[42,0,42,8],[43,0,43,8],[45,0,45,8],[46,0,46,8],[33,0,33,8],[19,0,19,8],[21,0,21,8],[23,0,23,8],[24,0,24,8],[26,0,26,8],[27,0,27,8],[29,0,29,8],[30,0,30,8],[32,0,32,8],[5,0,5,8],[0,3,0,5],[1,0,1,8],[3,0,3,8],[22,0,22,8],[17,0,17,8],[6,0,6,8],[7,0,7,8],[9,0,9,8],[10,0,10,8],[11,0,11,8],[13,0,13,8],[14,0,14,8],[15,0,15,8],[16,0,16,8],[2,0,2,8]]}
[null,null,null,"ATTACHMENT H"]
["BIOETHICS COMPLIANCE "]
[]
["CRDF Global is committed to ensuring that projects involving Human Subjects Activity and/or Animal Subjects Activity are conducted in compliance with all applicable regulations and ethical guidelines. To this end:"]
[]
["1. For projects involving Human Subjects Activity, each performing institution must meet both of the following requirements:"]
["a. Provide documentation of Institutional Review Board (IRB) registration and evidence of active Federal-wide Assurance (FWA) registration with the Office of Human Research Protections (OHRP) of the U.S. Department of Health and Human Services."]
["b. Provide written approval of each responsible IRB or equivalent ethics committee of the proposed research activity OR written documentation of exemption.  Such approval or exemption must be submitted on institutional letterhead and clearly indicate the name of the project and the period for which the approval or exemption is valid. Such approval or exemption must be signed by the authorized institutional authority."]
[]
["2. For projects involving clinical trials, performing institutions must meet the following additional requirements:"]
["a. Provide documentation of study registration with clinicaltrials.gov registry to remain in accordance with U.S. Governmental regulations."]
["b. If the study is conducted in a country with additional clinical trial registration requirements, registration documentation must be provided by the appropriate regulatory authority(ies) as set forth by national requirements."]
[]
["3. For projects involving Animal Subjects Activity, each performing institution must meet the following requirements:"]
["a. Provide documentation of certification by the Association for Assessment and Accreditation of Laboratory Animal Care International (AAALAC International) "]
["OR"]
["a. Provide a completed CRDF Global Protocol Summary Form detailing the specifics of the proposed Animal Subjects Activity, AND"]
["b. Provide written approval or certification of exemption from each responsible Institutional Animal Care and Use Committee (IACUC) or equivalent ethics committee submitted on institutional letterhead and signed by the authorized institutional authority."]
[]
["The Grantee shall have in place established policies and procedures for the misconduct that, if valid, would cast significant doubt on the validity of the research results resulting under the CRDF Global award, shall be reported promptly, in writing, to CRDF Global"]
[]
["4. Grantee shall notify CRDF Global, in writing and within two business days of the occurrence of any of the following events: "]
["a. Any significant change in the methodology or procedures being used in the Project; "]
["b. Any significant or major findings, breakthroughs, or events of unusual interest; "]
["c. Any problems, delays or adverse conditions that will materially affect the Project, its objectives or time schedules and actions being taken to address them; "]
[]
["Unless otherwise approved by CRDF Global, all notices in connection with the Agreement shall be made in writing to the CRDF Global-designated representatives specified on the Cover Sheet."]
[]
[]
[]
[]
[]
[]
[]
[]
[]
[]
[]
[]
[]
[]
[]
[]
[]
[]
[]
[]
[]
[]
[]
[]
[]
[]
[]
[]
[]
[]
[]
[]
[]
[]
[]
[]
[]
[]
[]
[]
[]
[]
[]
[]
[]
[]
[]
[]
[]
[]
[]
[]
[]
[]
[]
[]
[]
[]
[null,null,null,null,null,null,null,null,null,null,null,null,null,null,null,null,null,null,{"$f":"C86","v":0}]
[]
[]
[]
[]
[]
[]
[]
[]
[]
[]
[]
[null,null,null,null,null,null,null,null,null,null,null,null,null,null,null,null,null,null,{"$f":"C98","v":0}]
[]
[]
[]
[]
[]
[]
[]
[]
[null,null,null,null,null,null,null,null,null,null,null,null,null,null,null,null,null,null,{"$f":"C107","v":0}]
[]
[]
[]
[]
[]
[]
[]
[]
[null,null,null,null,null,null,null,null,null,null,null,null,null,null,null,null,null,null,{"$f":"C116","v":0}]

{"sheet":"I. Bioethics compliance_DNA ","index":14,"n_rows":114,"n_cols":19,"rows_kept":114,"cut":false,"hidden":true,"merged":[[64,0,64,8],[47,0,47,8],[49,0,49,8],[50,0,50,8],[52,0,52,8],[53,0,53,8],[55,0,55,8],[56,0,56,8],[74,0,74,8],[65,0,65,8],[67,0,67,8],[68,0,68,8],[70,0,70,8],[71,0,71,8],[73,0,73,8],[37,0,37,8],[58,0,58,8],[59,0,59,8],[61,0,61,8],[62,0,62,8],[46,0,46,8],[44,0,44,8],[38,0,38,8],[39,0,39,8],[40,0,40,8],[41,0,41,8],[43,0,43,8],[34,0,34,8],[35,0,35,8],[36,0,36,8],[23,0,23,8],[26,0,26,8],[29,0,29,8],[25,0,25,8],[27,0,27,8],[28,0,28,8],[30,0,30,8],[32,0,32,8],[31,0,31,8],[19,0,19,8],[21,0,21,8],[22,0,22,8],[24,0,24,8],[33,0,33,8],[0,3,0,5],[1,0,1,8],[3,0,3,8],[20,0,20,8],[15,0,15,8],[5,0,5,8],[6,0,6,8],[7,0,7,8],[8,0,8,8],[9,0,9,8],[11,0,11,8],[13,0,13,8],[14,0,14,8],[16,0,16,8],[2,0,2,8],[18,0,18,8]]}
[null,null,null,"ATTACHMENT I"]
["BIOETHICS COMPLIANCE_DNA "]
[]
["CRDF Global is committed to ensuring that projects involving Recombinant or Synthetic Nucleic Acid Molecules Activity are conducted in compliance with all applicable regulations and ethical guidelines. "]
[]
["1. Projects involving Research Involving Recombinant or Synthetic Nucleic Acid Molecules performing institutions must meet the following additional requirements:"]
["- The performing institutions certifies that it will comply with all applicable federal requirements, including but not limited to National Institute of Health (NIH) Guidelines for Research Involving Recombinant or Synthetic Nucleic Acid Molecules (NIH Guidelines), as amended. "]
["- Research within the scope of the NIH Guidelines that is performed outside of the U.S. using funds for transportation, salaries or direct research expenses must comply with the U.S. or host country standards. "]
["- If the research is to be conducted in a country that has adopted guidelines comparable to those of the NIH Guidelines, a document with information and endorsements assuring compliance to the host organization standards must be submitted to CRDF Global. "]
["- CRDF Global funds may not be used to conduct research using recombinant or synthetic nucleic acid molecules in a country that has not adopted national guidelines unless the research is in full compliance with the NIH Guidelines and the procedures required for NIH-supported research within the U.S"]
[]
["The Grantee shall have in place established policies and procedures for the misconduct that, if valid, would cast significant doubt on the validity of the research results resulting under the CRDF Global award, shall be reported promptly, in writing, to CRDF Global"]
[]
["2. Grantee shall notify CRDF Global, in writing and within two business days of the occurrence of any of the following events: "]
["a. Any significant change in the methodology or procedures being used in the Project; "]
["b. Any significant or major findings, breakthroughs, or events of unusual interest; "]
["c. Any problems, delays or adverse conditions that will materially affect the Project, its objectives or time schedules and actions being taken to address them; "]
[]
["Unless otherwise approved by CRDF Global, all notices in connection with the Agreement shall be made in writing to the CRDF Global-designated representatives specified on the Cover Sheet. "]
[]
[]
[]
[]
[]
[null,null,null,null,null,null,null,null,null,null,null,null,null,null,null,null,null,null,{"$f":"C25","v":0}]
[]
[]
[]
[]
[]
[]
[]
[]
[null,null,null,null,null,null,null,null,null,null,null,null,null,null,null,null,null,null,{"$f":"C34","v":0}]
[]
[]
[]
[]
[]
[]
[]
[]
[]
[]
[]
[]
[]
[null,null,null,null,null,null,null,null,null,null,null,null,null,null,null,null,null,null,{"$f":"C48","v":0}]
[]
[]
[]
[]
[]
[]
[]
[null,null,null,null,null,null,null,null,null,null,"Do we need Project indicators?"]
[null,null,null,null,null,null,null,null,null,null,null,null,null,null,null,null,null,null,{"$f":"C57","v":0}]
[]
[]
[]
[]
[]
[]
[]
[]
[null,null,null,null,null,null,null,null,null,null,null,null,null,null,null,null,null,null,{"$f":"C66","v":0}]
[]
[]
[]
[]
[]
[]
[]
[]
[null,null,null,null,null,null,null,null,null,null,null,null,null,null,null,null,null,null,{"$f":"C75","v":0}]
[]
[]
[]
[]
[]
[]
[]
[]
[null,null,null,null,null,null,null,null,null,null,null,null,null,null,null,null,null,null,{"$f":"C84","v":0}]
[]
[]
[]
[]
[]
[]
[]
[]
[]
[]
[]
[null,null,null,null,null,null,null,null,null,null,null,null,null,null,null,null,null,null,{"$f":"C96","v":0}]
[]
[]
[]
[]
[]
[]
[]
[]
[null,null,null,null,null,null,null,null,null,null,null,null,null,null,null,null,null,null,{"$f":"C105","v":0}]
[]
[]
[]
[]
[]
[]
[]
[]
[null,null,null,null,null,null,null,null,null,null,null,null,null,null,null,null,null,null,{"$f":"C114","v":0}]

{"sheet":"J. Equipment Compliance","index":15,"n_rows":119,"n_cols":19,"rows_kept":119,"cut":false,"hidden":true,"merged":[[5,0,5,8],[6,0,6,8],[7,0,7,8],[0,3,0,5],[1,0,1,8],[3,0,3,8],[2,0,2,8],[19,0,19,8],[9,0,9,8],[11,0,11,8],[12,0,12,8],[13,0,13,8],[14,0,14,8],[15,0,15,8],[16,0,16,8],[17,0,17,8],[18,0,18,8],[35,0,35,8],[20,0,20,8],[21,0,21,8],[22,0,22,8],[24,0,24,8],[25,0,25,8],[26,0,26,8],[28,0,28,8],[30,0,30,8],[31,0,31,8],[33,0,33,8],[49,0,49,8],[36,0,36,8],[38,0,38,8],[39,0,39,8],[40,0,40,8],[41,0,41,8],[42,0,42,8],[43,0,43,8],[44,0,44,8],[45,0,45,8],[46,0,46,8],[48,0,48,8],[52,0,52,8],[54,0,54,8],[55,0,55,8],[57,0,57,8],[58,0,58,8],[78,0,78,8],[79,0,79,8],[29,0,29,8],[69,0,69,8],[70,0,70,8],[72,0,72,8],[73,0,73,8],[75,0,75,8],[76,0,76,8],[60,0,60,8],[61,0,61,8],[63,0,63,8],[64,0,64,8],[66,0,66,8],[67,0,67,8],[51,0,51,8]]}
[null,null,null,"ATTACHMENT J"]
["EQUIPMENT COMPLIANCE "]
[]
["Goods & services and Equipment purchased by the Grantee with Agreement funds must be procured competitively to the extent practicable, at reasonable prices, from responsible sources selected fairly in a manner unimpaired by conflicts of interest or other malpractices. Receipt and proper use for activities within the scope of Project must be fully documented. Grantee may hold title to goods that it purchases pursuant to this section or that are donated by CRDF Global, but it shall use them only for the purposes of the Project. "]
[]
["1. Goods and services procured under this Agreement are governed by the cost provisions of 2 CFR 200. The Grantee confirms that it has and will maintain, throughout the life of this Agreement, procurement policies compliant with the provisions of 2 CFR 200. "]
["All orders for goods and services that exceed $10,000 are subject to competitive selection requirements. Documentation of vendor selection must be maintained by the Grantee and submitted to the Grant Officer on request. "]
["Goods over $5,000 USD (or local currency equivalent) per unit acquisition cost, and with a usable life of longer than one year shall be defined as Equipment. "]
[]
["2. Equipment items identified in the approved proposal may be acquired under this Agreement without the approval of the Grant Officer, however, any other equipment items that are not identified in the approved proposal require express written approval of the Grant Offices prior to purchasing."]
[]
["The Purchase of Equipment is subject to the following provisions:"]
["a. Equipment must be procured competitively to the extent practicable. All equipment purchases that exceed $10,000 are subject to competitive selection requirements. "]
["b. All Equipment must be clearly and prominently marked as provided or financed by CRDF Global. "]
["c. All equipment and other property acquired under this Agreement must remain available to and be used for the Project, and may not be sold, leased, mortgaged or otherwise transferred, or used for any non-Project purpose, be located and maintained at the premises of the Grantee or an authorized Collaborator, as appropriate, and remain accessible for viewing, examination or audit unless CRDF Global agrees otherwise in writing. "]
["d. Unless otherwise stipulated, Equipment and other physical property received by the Grantee or Collaborator under this Agreement is supplied in the capacity of technical assistance and is transferred to the Grantee or Collaborator as authorized by CRDF Global. "]
["e. Title to Equipment and other property acquired under this Agreement will vest in the Grantee or Collaborator, as appropriate, unless otherwise directed by CRDF Global in writing. "]
["f. Use of any Equipment or other property acquired under this Agreement by military end-users or for military purposes is expressly prohibited. "]
["g. The Grantee shall ensure that all Equipment and other property provided under this Agreement is maintained in a manner consistent with its specifications and reasonable care, security, and maintenance. "]
["h. In the event this Agreement is terminated for default, or the Grantee is in material breach thereof, CRDF Global may, at its sole discretion, require that any Equipment and property acquired under this Agreement be returned to CRDF Global or transferred to a third party. The shipping costs related to the return or transfer of the Equipment and property will be borne by CRDF Global."]
["i. Within thirty (30) days of receipt of Equipment, Grantee will prepare and return an itemized receiving report, signed by an authorized representative, confirming receipt in apparent good order, and working condition and registration of the Equipment on the Grantee’s balance sheet. The report will be in a form to be provided by CRDF Global."]
["j. Items over $5,000 or local currency equivalent per unit acquisition cost shall be reported to CRDF Global and disposition instructions requested when the items are no longer needed for such purposes."]
["k. The Grantee shall, to the greatest extent practicable, provide a preference for the purchase, acquisition, or use of goods, products, or materials produced in the United States (including but not limited to iron, aluminum, steel, cement, and other manufactured products). The requirements of this section must be included in all sub agreements, including all contracts and purchase orders for work or products under this Agreement."]
[]
["3. Conflicts of Interest. It is CRDF Global’s policy that all grantees have a robust conflicts of interest policy that conforms with applicable U.S. Government requirements. The Grantee confirms that it has and will maintain, throughout the life of this Agreement, a conflict-of-interest policy compliant with the provisions of 2 CFR 200 and that it shall adhere to it in performance of this Agreement."]
["Should Grantee not have such a policy, Grantee agrees to the following: \nGrantee shall adhere to the highest ethical standards in all matters related to this Agreement and shall assure that the Project Personnel adhere to those standards. For purposes of this section, “Conflict of Interest” means a family or other personal relationship, a business or financial interest, or any other relationship, interest or activity that:  a) impairs (or might impair) his/her objectivity in performing his/her obligations under this Agreement; b) makes him/her unable to render impartial assistance or advice under this Agreement; or c) gives him/her an unfair competitive advantage."]
["“Interest” means a relationship of any kind from which a person or organization derives (or might derive) pecuniary or in-kind benefits. No Grantee or Project Personnel may participate in any decision involving the obligation of Grant funds or the use or disposition of Grant funds if he/she knows, or reasonably should know, that such participation involves an actual or potential Conflict of Interest, or the appearance of such a Conflict of Interest. "]
[]
["To implement this requirement the Grantee will:"]
["a. Disclose promptly to CRDF Global any close family relationship or interest that may constitute or create a Conflict of Interest or the appearance of a Conflict of Interest; "]
["b. Refrain from participating in, and from using his/her personal influence in connection with, decisions where such participation may involve a Conflict of Interest or the appearance of a Conflict of Interest except:\n- To provide information when requested, or\n- To provide information known to him/her indicating that a proposed or existing transaction could be contrary to this policy."]
["c. Refrain from dealing on behalf of CRDF Global with organizations or persons on transactions involving the obligation of Project funds or the use or disposition of Project Resources except after full disclosure and with the express written authorization of CRDF Global Grant Officer. "]
["d. Assure that Project Personnel comply with the requirements of this section."]
["The Grantee will monitor its relationships and interests, and those of the Project Personnel, on an ongoing basis and will report any relationships or interests that might violate the provisions of this section."]
[]
[]
[]
[]
[]
[]
[]
[]
[]
[]
[]
[]
[]
[]
[]
[]
[]
[]
[]
[]
[]
[]
[]
[]
[]
[]
[]
[]
[]
[]
[]
[]
[]
[]
[]
[]
[]
[]
[]
[]
[]
[]
[]
[]
[]
[]
[]
[]
[]
[]
[]
[]
[]
[]
[null,null,null,null,null,null,null,null,null,null,null,null,null,null,null,null,null,null,{"$f":"C89","v":0}]
[]
[]
[]
[]
[]
[]
[]
[]
[]
[]
[]
[null,null,null,null,null,null,null,null,null,null,null,null,null,null,null,null,null,null,{"$f":"C101","v":0}]
[]
[]
[]
[]
[]
[]
[]
[]
[null,null,null,null,null,null,null,null,null,null,null,null,null,null,null,null,null,null,{"$f":"C110","v":0}]
[]
[]
[]
[]
[]
[]
[]
[]
[null,null,null,null,null,null,null,null,null,null,null,null,null,null,null,null,null,null,{"$f":"C119","v":0}]

{"sheet":"K. Financial Reporting","index":16,"n_rows":128,"n_cols":19,"rows_kept":128,"cut":false,"hidden":true,"merged":[[59,0,59,8],[62,0,62,8],[65,0,65,8],[12,0,12,8],[8,0,8,8],[9,0,9,8],[10,0,10,8],[11,0,11,8],[13,0,13,8],[14,0,14,8],[15,0,15,8],[17,0,17,8],[18,0,18,8],[40,0,40,8],[21,0,21,8],[20,0,20,8],[0,3,0,5],[1,0,1,8],[3,0,3,8],[5,0,5,8],[7,0,7,8],[2,0,2,8],[23,0,23,8],[26,0,26,8],[28,0,28,8],[29,0,29,8],[30,0,30,8],[24,0,24,8],[31,0,31,8],[34,0,34,8],[35,0,35,8],[37,0,37,8],[38,0,38,8],[58,0,58,8],[41,0,41,8],[43,0,43,8],[44,0,44,8],[45,0,45,8],[46,0,46,8],[47,0,47,8],[54,0,54,8],[49,0,49,8],[50,0,50,8],[52,0,52,8],[53,0,53,8],[56,0,56,8],[75,0,75,8],[76,0,76,8],[60,0,60,8],[61,0,61,8],[63,0,63,8],[64,0,64,8],[66,0,66,8],[67,0,67,8],[87,0,87,8],[88,0,88,8],[33,0,33,8],[36,0,36,8],[39,0,39,8],[42,0,42,8],[78,0,78,8],[79,0,79,8],[81,0,81,8],[82,0,82,8],[84,0,84,8],[85,0,85,8],[69,0,69,8],[70,0,70,8],[72,0,72,8],[73,0,73,8]]}
[null,null,null,"ATTACHMENT K"]
["FINANCIAL REPORTING"]
[]
["The Grantee agrees to comply strictly with the Grant Budget set forth in the Grant Agreement (hereafter referred to as the “Grant Budget”). The Grant Budget includes line items for all types of Grant support, whether expenditures will be by CRDF Global or Grantee or third party. Costs of Grant support not expressly specified in the Grant Budget, or more than line items therein, are not eligible costs and may not be charged to the Grant or included in the Grantee Contribution unless approved in writing by the Grant Officer. CRDF Global’s aggregate liability arising out of or relating to the Agreement, regardless of the type(s) and mix of Grant support involved, may not under any circumstances exceed the Grant Amount. Grantee is solely responsible for any overruns."]
[]
["It is CRDF Global’s policy that all grantees have a compliant financial management system that conforms with applicable U.S. Government requirements. The Grantee confirms that it has and will maintain, throughout the life of this Agreement, a financial management system compliant with the provisions of 2 CFR 200."]
[]
["Should Grantee not have such a system, Grantee agrees to maintain a financial management system that will enable it to comply with all applicable Agreement requirements, including, but not limited to, the following minimum standards:"]
["a. Provides accurate, current, and complete financial information about Agreement-funded activities."]
["b. Maintains records that identify Grant funds and the purposes for which they are used; supports accounting records with source documentation such as cancelled checks, paid bills, payrolls, and time and attendance records."]
["c. Applies internal controls that yield effective control over and accountability for all cash, property, and other assets under the Agreement, safeguards such assets, and ensures that the assets are used only for authorized purposes."]
["d. Enables Grantee to compare actual expenditures with the Budget."]
["e. Screens out costs that are not eligible for reimbursement under the Agreement."]
["f. Includes procedures to ensure that invoices and requests for Grant support are issued only when the funds/support are needed for Project purposes."]
["g. Enables financial information such as expenditures in comparison to Budget figures to be related to performance data."]
["Grantee agrees that CRDF Global or its representatives may review Grantee’s financial management system at any time to determine whether it complies with the above requirements."]
[]
["1. Reports. Grantee shall be required to submit financial reports according to the schedule specified in the Grant Agreement. Reports shall be submitted electronically to the attention of the Grant Officer."]
["Financial Report(s) shall include the following:\na. Detailed and full list of all expenditures incurred by the Project.\nb. Accurate and proper supporting documents which prove the incurred expenses (such as fiscal receipts, bank statement, copies of purchase/supply agreements, etc.)\nc. Projections (forecast) for planned expenditures for the next reporting period and/or remainder of the Project\nd. Other [specify]"]
[]
["2. Payments. Grantee will be reimbursed for Eligible Costs incurred based on the Grantee’s submission of the financial report including all supported documentations or other payment request format provided by CRDF Global. All requests for payment are to be submitted directly to and approved by the Grant Officer. Advance payments may be authorized by the Grant Officer in accordance with the Grantee’s actual, immediate needs for funding to conduct the purpose of the Project, and program guidelines. When advance payments are authorized, the Grantee agrees to minimize the time elapsing between the Grantee’s receipt of funds and the outlays of the funds for Project purposes."]
["On Agreement termination, the Grantee will refund the balance of Grant funds not already expended or irrevocably obligated."]
[]
["3. Method of Payment. CRDF Global reserves the right, in its sole discretion, to determine the method of payment, payee, and to decline any request received that is inconsistent with the terms of this Agreement or in violation of CRDF Global procedures or program guidelines. CRDF Global will make best efforts to minimize transfer fees applied by financial institutions involved in the funds transfer process. However, CRDF Global is not liable for transfer fees applied by intermediary financial institutions; such costs must be borne by Grantee."]
["To the extent possible, CRDF Global attempts to make payment directly to Project Personnel and the individuals, organizations and vendors that support the Agreement; any such payments are credited against the Budget and are subject to the terms of this Agreement."]
[]
["4. Labour. Unless prohibited by the Grantee, payments to individual Project Personnel will be made, to the extent possible, directly to bank accounts designated to CRDF Global for the benefit of the individual in accordance with current CRDF Global procedures."]
[]
["5. Timekeeping. It is CRDF Global’s policy that all grantees have a compliant timekeeping system that conforms with applicable U.S. Government requirements. The Grantee confirms that it has and will maintain, throughout the life of this Agreement, a timekeeping system compliant with the provisions of 2 CFR 200."]
["Should Grantee not have such a system, Grantee recognizes that eligible labour costs must be based on actual level of effort of Project Personnel and will document such level of effort with individual timesheets subject to the following provisions:"]
["a. Individual timesheets, signed by both the requesting Project Personnel and the responsible Principal Investigator. Timesheets are to be maintained daily and submitted to the Principal Investigator monthly for review and approval. \nb. Project Personnel must use a CRDF Global-provided timesheet template, unless an alternative template has been approved, in writing, by the CRDF Global Grant Officer. Timesheets will be completed based on actual time worked on CRDF Global-funded activities, with working hours being recorded on the provided timesheet template. \nc. Project Personnel engaged in more than one concurrent CRDF Global project must complete one single timesheet recording hours spent for each project separately. "]
["The Grantee is responsible for monitoring and documenting Project Personnel’s compliance with timekeeping and reporting requirements; ensuring that Project Personnel are trained and informed on the timekeeping and reporting requirements; ensuring the timely collection of timesheets from all Project Personnel on the project each month; reviewing of timesheets for accuracy; certifying the accuracy of the timesheets collected; ensuring that payment requests are submitted to CRDF Global in a timely manner; and maintaining timesheet records for the Project."]
[]
["6. Goods & Services and Equipment purchased by the Grantee with Agreement funds must be procured competitively to the extent practicable, at reasonable prices, from responsible sources selected fairly in a manner unimpaired by conflicts of interest or other malpractices. Receipt and proper use for activities within the scope of Project must be fully documented. Grantee may hold title to goods that it purchases pursuant to this section or that are donated by CRDF Global, but it shall use them only for the purposes of the Project. "]
["a. Goods and services procured under this Agreement are governed by the cost provisions of 2 CFR 200. The Grantee confirms that it has and will maintain, throughout the life of this Agreement, procurement policies compliant with the provisions of 2 CFR 200. \nAll orders for goods and services that exceed $10,000 are subject to competitive selection requirements. Documentation of vendor selection must be maintained by the Grantee and submitted to the Grant Officer on request. Goods over $5,000 USD (or local currency equivalent) per unit acquisition cost, and with a usable life of longer than one year shall be defined as Equipment. "]
["b. Equipment items identified in the approved proposal may be acquired under this Agreement without the approval of the Grant Officer, however, any other equipment items that are not identified in the approved proposal require express written approval of the Grant Offices prior to purchasing. "]
["The Purchase of Equipment is subject to the following provisions:"]
["i. Equipment must be procured competitively to the extent practicable. All equipment purchases that exceed $10,000 are subject to competitive selection requirements. "]
["ii. All Equipment must be clearly and prominently marked as provided or financed by CRDF Global."]
["iii. All equipment and other property acquired under this Agreement must remain available to and be used for the Project, and may not be sold, leased, mortgaged or otherwise transferred, or used for any non-Project purpose, be located and maintained at the premises of the Grantee or an authorized Collaborator, as appropriate, and remain accessible for viewing, examination or audit unless CRDF Global agrees otherwise in writing. "]
["iv. Unless otherwise stipulated, Equipment and other physical property received by the Grantee or Collaborator under this Agreement is supplied in the capacity of technical assistance and is transferred to the Grantee or Collaborator as authorized by CRDF Global. "]
["v. Title to Equipment and other property acquired under this Agreement will vest in the Grantee or Collaborator, as appropriate, unless otherwise directed by CRDF Global in writing. "]
["vi. Use of any Equipment or other property acquired under this Agreement by military end-users or for military purposes is expressly prohibited. "]
["vii. The Grantee shall ensure that all Equipment and other property provided under this Agreement is maintained in a manner consistent with its specifications and reasonable care, security, and maintenance. "]
["viii. In the event this Agreement is terminated for default, or the Grantee is in material breach thereof, CRDF Global may, at its sole discretion, require that any Equipment and property acquired under this Agreement be returned to CRDF Global or transferred to a third party. The shipping costs related to the return or transfer of the Equipment and property will be borne by CRDF Global."]
["ix. Within thirty (30) days of receipt of Equipment, Grantee will prepare and return an itemized receiving report, signed by an authorized representative, confirming receipt in apparent good order, and working condition and registration of the Equipment on the Grantee’s balance sheet. The report will be in a form to be provided by CRDF Global."]
["x. Items over $5,000 or local currency equivalent per unit acquisition cost shall be reported to CRDF Global and disposition instructions requested when the items are no longer needed for such purposes."]
["xi. The Grantee shall, to the greatest extent practicable, provide a preference for the purchase, acquisition, or use of goods, products, or materials produced in the United States (including but not limited to iron, aluminum, steel, cement, and other manufactured products). The requirements of this section must be included in all sub agreements, including all contracts and purchase orders for work or products under this Agreement."]
[]
["7. Indirect Costs. Indirect costs are those that have been incurred for common or joint objectives and cannot be readily identified with a particular final cost objective. The provision of indirect costs under this Agreement are governed by the provisions of 2 CFR 200.414. Indirect expenses may only be applied to modified total direct costs (MTDC). MTDC includes all direct salaries and wages, applicable fringe benefits, materials and supplies, services, travel, and up to the first $25,000 of each subaward (regardless of the period of performance of the subawards under the award). MTDC excludes equipment, capital expenditures, charges for patient care, rental costs, tuition remission, scholarships and fellowships, participant support costs and the portion of each subaward more than $25,000. "]
["Participant support costs are defined as direct costs for items such as stipends or subsistence allowances, travel allowances, and registration fees paid to or on behalf of participants or trainees (but not employees, subcontractors, or consultants) in connection with conferences or training projects."]
[]
["8. Eligible Costs. All expenses under this Agreement are governed by the cost provisions of 2 CFR. The Grantee confirms that it has and will maintain, throughout the life of this Agreement, expense policies compliant with the provisions of 2 CFR."]
["Grantee may use Grant funds and any Contributions only for Grantee’s verifiable, reasonable, allocable, and allowable direct costs necessary for performance of the activities specified in the Project. All such costs must comply with the terms and conditions of the Agreement and must be incurred and expended during the Grant Period. In incurring costs, as in other matters relating to implementation, Grantee is expected to exercise prudent management and to make sound administrative judgments under the circumstances prevailing at the time a decision is made. Documentation supporting expenditures and other actions in implementing the Agreement must be made in advance of the action, be consistent with the Grantee’s established policies and procedures, comply with the terms of this Agreement, and reflect appropriate approvals within the organization."]
["CRDF Global Grant support may include any one or more of the following types of assistance, without limitation, as set forth in the Grant Budget or as otherwise subsequently agreed: [a] labour paid directly to Project Personnel, [b] equipment, materials, supplies and/or services purchased on behalf of the grantee, [c] travel-related direct payments to individual Project Personnel or to vendors on their behalf; and [d] direct transfers of funds to institutional accounts for project-related expenses."]
[]
["9. Overpayments and Offsets. If Grantee becomes aware of an overpayment, an erroneous payment, or a duplicate payment, Grantee shall immediately notify CRDF Global in writing and request instructions for managing the matter. CRDF Global may deduct from any payment all or part of any amount, whether in connection with the Agreement or any other agreement, owed to it by Grantee."]
[]
["10. Conflicts of Interest. It is CRDF Global’s policy that all grantees have a robust conflicts of interest policy that conforms with applicable U.S. Government requirements. The Grantee confirms that it has and will maintain, throughout the life of this Agreement, a conflict-of-interest policy compliant with the provisions of 2 CFR 200 and that it shall adhere to it in performance of this Agreement."]
["Should Grantee not have such a policy, Grantee agrees to the following: \nGrantee shall adhere to the highest ethical standards in all matters related to this Agreement and shall assure that the Project Personnel adhere to those standards. For purposes of this section, “Conflict of Interest” means a family or other personal relationship, a business or financial interest, or any other relationship, interest or activity that:  a) impairs (or might impair) his/her objectivity in performing his/her obligations under this Agreement; b) makes him/her unable to render impartial assistance or advice under this Agreement; or c) gives him/her an unfair competitive advantage."]
["“Interest” means a relationship of any kind from which a person or organization derives (or might derive) pecuniary or in-kind benefits. No Grantee or Project Personnel may participate in any decision involving the obligation of Grant funds or the use or disposition of Grant funds if he/she knows, or reasonably should know, that such participation involves an actual or potential Conflict of Interest, or the appearance of such a Conflict of Interest."]
["To implement this requirement the Grantee will:\na. Disclose promptly to CRDF Global any close family relationship or interest that may constitute or create a Conflict of Interest or the appearance of a Conflict of Interest; \nb. Refrain from participating in, and from using his/her personal influence in connection with, decisions where such participation may involve a Conflict of Interest or the appearance of a Conflict of Interest except:\na. To provide information when requested, or\nb. To provide information known to him/her indicating that a proposed or existing transaction could be contrary to this policy.\nc. Refrain from dealing on behalf of CRDF Global with organizations or persons on transactions involving the obligation of Project funds or the use or disposition of Project Resources except after full disclosure and with the express written authorization of CRDF Global Grant Officer. \nd. Assure that Project Personnel comply with the requirements of this section."]
["The Grantee will monitor its relationships and interests, and those of the Project Personnel, on an ongoing basis and will report any relationships or interests that might violate the provisions of this section."]
[]
[]
[]
[]
[]
[]
[]
[]
[]
[]
[]
[]
[]
[]
[]
[]
[]
[]
[]
[]
[]
[]
[]
[]
[]
[]
[]
[]
[]
[]
[]
[]
[]
[]
[null,null,null,null,null,null,null,null,null,null,null,null,null,null,null,null,null,null,{"$f":"C98","v":0}]
[]
[]
[]
[]
[]
[]
[]
[]
[]
[]
[]
[null,null,null,null,null,null,null,null,null,null,null,null,null,null,null,null,null,null,{"$f":"C110","v":0}]
[]
[]
[]
[]
[]
[]
[]
[]
[null,null,null,null,null,null,null,null,null,null,null,null,null,null,null,null,null,null,{"$f":"C119","v":0}]
[]
[]
[]
[]
[]
[]
[]
[]
[null,null,null,null,null,null,null,null,null,null,null,null,null,null,null,null,null,null,{"$f":"C128","v":0}]

{"sheet":"L. Other Terms and Conditions","index":17,"n_rows":125,"n_cols":19,"rows_kept":125,"cut":false,"hidden":true,"merged":[[2,0,2,8],[5,9,5,17],[19,0,19,8],[21,0,21,8],[23,0,23,8],[24,0,24,8],[13,0,13,8],[14,0,14,8],[15,0,15,8],[17,0,17,8],[39,0,39,8],[0,3,0,5],[1,0,1,8],[3,0,3,8],[5,0,5,8],[12,0,12,8],[7,0,7,8],[32,0,32,8],[33,0,33,8],[35,0,35,8],[36,0,36,8],[38,0,38,8],[27,0,27,8],[28,0,28,8],[29,0,29,8],[30,0,30,8],[31,0,31,8],[26,0,26,8],[9,0,9,8],[10,0,10,8],[55,0,55,8],[42,0,42,8],[44,0,44,8],[45,0,45,8],[46,0,46,8],[47,0,47,8],[48,0,48,8],[49,0,49,8],[50,0,50,8],[51,0,51,8],[52,0,52,8],[54,0,54,8],[41,0,41,8],[73,0,73,8],[57,0,57,8],[58,0,58,8],[60,0,60,8],[61,0,61,8],[63,0,63,8],[64,0,64,8],[66,0,66,8],[67,0,67,8],[69,0,69,8],[70,0,70,8],[72,0,72,8],[84,0,84,8],[85,0,85,8],[75,0,75,8],[76,0,76,8],[78,0,78,8],[79,0,79,8],[81,0,81,8],[82,0,82,8]]}
[null,null,null,"ATTACHMENT L"]
["OTHER TERMS & CONDITIONS "]
[]
["1. Export Control. It is subject to export regulations of its home country regarding export of certain technical data. No party shall export, either directly or indirectly, its own or any information or data received from any other Party of the direct product thereof to any country in contravention of such export regulations if such would violate the laws of any of the home countries of the Parties. When applicable, the Grantee acknowledges that it has the responsibility to obtain export licenses, or other export authority as may be required, with respect to activities undertaken in connection with this Agreement."]
[]
["2. Grantee Contribution (Cost share). The Grantee Contribution, whether cash or in-kind, are subject to the provisions of 2 CFR 200 and shall be used for project-related costs as set forth in the Proposal and Budget, fully documented with written records, compliant with all applicable requirements of the Agreement, and is subject to verification and audit. Indirect costs may not be counted toward the Grantee Contribution unless specifically approved. Grantee Contributions must be comprised of Grantee or Third-Party funding and cannot be comprised of other U.S. Government grant funds. Shortfalls at the end of the Agreement Period may result in commensurate reduction of grant funds or other grant support."]
[]
["3. Monitoring and Evaluation (“M&E”). CRDF Global will appropriately monitor and evaluate the financial and technical progress of Agreement activities. Grantee agrees to cooperate with all reasonable requests for assistance in connection with such M&E, including but not limited to facilitating site visits, closely tracking the performance and impact of Grant activities, and maintaining and providing records or other information pertinent to such activities. "]
[]
["4. Foreign Taxes and Related Considerations. Grantee shall comply with all applicable local tax regulations and reporting requirements, and Grantee may choose to seek advice from appropriate tax authorities or other professionals to ensure compliance. Grantee shall inform CRDF Global immediately, in writing, of any tax or duty imposed on funds or materials provided by CRDF Global under this Agreement. Before paying any tax or duty imposed on funds or materials provided by CRDF Global under this Agreement, Grantee shall first obtain the consent from CRDF Global to do so in writing. Unless otherwise agreed to by CRDF Global in writing, Grantee may not use funds or materials provided under this Agreement to pay any customs, duties, taxes, fees or other such levies and costs incurred within the territory of the Grantee’s country. CRDF assumes no liability for the recipient’s failure to pay such taxes. "]
["At CRDF Global’s request, Grantee shall submit documentation to obtain additional certification of the Project’s tax-exempt status in the country (or countries) where the project is performed. Specific instructions on requirements will be provided by CRDF Global. Failure to submit the required documentation in a timely manner as requested by CRDF Global may result in delays or suspension of payments."]
[]
["5. General Privacy Statement CRDF Global appreciates the importance of safeguarding personal data received from our partners, such as subject matter experts, job applicants, and grantees. CRDF Global takes this responsibility seriously and strives to be transparent about why and how personal data is collected and processed."]
["Definition of Personal Data. CRDF Global considers personal data to be information in any format that relates to a living individual who can be directly or indirectly identified by that information (either on its own or when it is combined with other information). Such personal data is also commonly designated as personally identifiable information or “PII.”"]
["Purpose for Collection of Personal Data. CRDF Global gathers personal data for several reasons, for example, to comply with export control regulations, to verify identity for bank transfers, and to report (in the aggregate) to sponsors about the composition of applicant or grantee bases."]
["Handling of Personal Information. CRDF Global will only use personal data for lawful purposes and with the individual’s prior informed consent. CRDF Global does not share personal data with third parties unless required. Under no circumstances will CRDF Global sell, share, or otherwise exchange personal data for commercial purposes. To protect personal data, CRDF Global has established internal protocols to manage and store the information. CRDF Global also conducts periodic audits of its records to ensure compliance with its privacy policy and applicable legal requirements."]
[]
["6. Whistleblower Policy. It is the policy of CRDF Global that grantees, vendors, and contractors are encouraged and expected to report possible violations of laws, rules and regulations, as well as fraudulent or dishonest use or misuse of CRDF Global resources or property, violations of CRDF Global’s conflict of interest policy and other serious misconduct. Reports may be made directly to CRDF Global management (who can be contacted via the main CRDF Global website www.crdfglobal.org or via the Global Compliance hotline available at https://crdfglobal.alertline.com/gcs/welcome?locale=en ). All information will be treated confidentially, and all complaints will be investigated by CRDF Global management and regularly reported to the Audit Committee of the Board of Directors. CRDF Global will not retaliate, nor will CRDF Global tolerate retaliation by any of its employees, against any grantee, vendor or contractor who makes a good faith report pursuant to this policy; even if an investigation shows that there has not been a violation."]
[]
["7. No Third-Party Beneficiary. Except as specifically set forth in this Agreement, this Agreement is not intended to create and does not create any rights in or benefits to any third party."]
[]
["8. Successors and Assigns. This Agreement shall inure to the benefit of and be binding on the Parties’ respective heirs, executors, administrators, successors, and approved assigns."]
[]
["9. Notification of Certain Events. Grantee shall notify CRDF Global, in writing and within two business days of the occurrence of any of the following events: \n• Any significant change in the methodology or procedures being used in the Project; \n• Any significant or major findings, breakthroughs, or events of unusual interest; \n• Any problems, delays or adverse conditions that will materially affect the Project, its objectives or time schedules and actions being taken to address them; \n• Any changes in key personnel or their status on the Project; and \n• Any change in a Principal Investigator’s contact information; \n• Any change in or absence of a Project Personnel for a period longer than thirty (30) days; \n• Any change in key personnel’s level of effort devoted to the Project; \n• Any significant change in the Project objectives or scope; and\n• Any reallocation between budget categories not previously approved that is equal to or exceeds $500.00. "]
["Unless otherwise approved by CRDF Global, all notices in connection with the Agreement shall be made in writing to the CRDF Global-designated representatives specified on the Cover Sheet."]
[]
["10. Reporting Requirements. Unless specifically instructed otherwise, all reports must be submitted to the Grant Officer within end of the reporting period and no later than the due dates stipulated in the Milestone/Payment Schedule/Reporting Schedule."]
["If relevant reports are not received within the set deadlines, Grantee shall provide a written explanation to CRDF Global within three business days after report’s due date. Where valid justification is not received, suspension of funding may result, and other and/or future funding to the Grantee may be jeopardized. "]
["Milestone / Project Progress Reports shall include the following:\n- Concise yet informative narrative description of the activities performed within the reporting period, a summary of implementation approach and challenges, immediate results, etc. \n- Description of progress towards achieving Project’s objectives, specified in this Agreement\n- Problems, difficulties and lessons learned\n- Any adjustments to the project implementation mode, including Project activities, or any other corrective actions\n- Information on number of beneficiaries who participated or benefited from the Project activities\n- Success stories and feedback from the participants (if applicable)\n- Photos from the activity (event), if and when applicable\n- Project activity (event) sign-in sheet to record attendance of the participants, if and when applicable (attached separately)\n- Planned activities for the next reporting period\n- Other [specify]"]
["Final Milestone / Progress Report shall include the following:\n- Short summary of all Project activities in relation to Project’s key results and achievements\n- Project-level summary of number of beneficiaries who participated or benefited from the Project activities \n- Overview and analysis of progress towards achieving Project’s goal and objectives, specified in this Agreement\n- Project-level lessons-learned, including difficulties and roadblocks that hinder Project’s implementation\n- Project-level recommendations as to future improvements in implementation approach\n- Other [specify]"]
[]
[]
[]
[]
[]
[]
[]
[]
[]
[]
[]
[]
[]
[]
[]
[]
[]
[]
[]
[]
[]
[]
[]
[]
[]
[]
[]
[]
[]
[]
[]
[]
[]
[]
[]
[]
[]
[]
[]
[]
[]
[]
[]
[]
[]
[]
[]
[]
[]
[]
[]
[]
[]
[]
[]
[]
[]
[]
[]
[]
[]
[]
[]
[]
[null,null,null,null,null,null,null,null,null,null,null,null,null,null,null,null,null,null,{"$f":"C95","v":0}]
[]
[]
[]
[]
[]
[]
[]
[]
[]
[]
[]
[null,null,null,null,null,null,null,null,null,null,null,null,null,null,null,null,null,null,{"$f":"C107","v":0}]
[]
[]
[]
[]
[]
[]
[]
[]
[null,null,null,null,null,null,null,null,null,null,null,null,null,null,null,null,null,null,{"$f":"C116","v":0}]
[]
[]
[]
[]
[]
[]
[]
[]
[null,null,null,null,null,null,null,null,null,null,null,null,null,null,null,null,null,null,{"$f":"C125","v":0}]

{"sheet":"M. Special Terms and Conditions","index":18,"n_rows":125,"n_cols":19,"rows_kept":125,"cut":false,"hidden":false,"merged":[[82,0,82,8],[84,0,84,8],[85,0,85,8],[73,0,73,8],[75,0,75,8],[76,0,76,8],[78,0,78,8],[79,0,79,8],[81,0,81,8],[72,0,72,8],[55,0,55,8],[57,0,57,8],[58,0,58,8],[60,0,60,8],[61,0,61,8],[63,0,63,8],[64,0,64,8],[66,0,66,8],[67,0,67,8],[69,0,69,8],[70,0,70,8],[54,0,54,8],[41,0,41,8],[42,0,42,8],[44,0,44,8],[45,0,45,8],[46,0,46,8],[47,0,47,8],[48,0,48,8],[49,0,49,8],[50,0,50,8],[51,0,51,8],[52,0,52,8],[39,0,39,8],[26,0,26,8],[27,0,27,8],[28,0,28,8],[29,0,29,8],[30,0,30,8],[31,0,31,8],[32,0,32,8],[33,0,33,8],[35,0,35,8],[36,0,36,8],[38,0,38,8],[24,0,24,8],[7,0,7,8],[9,0,9,8],[10,0,10,8],[12,0,12,8],[13,0,13,8],[14,0,14,8],[15,0,15,8],[17,0,17,8],[19,0,19,8],[21,0,21,8],[23,0,23,8],[5,9,5,17],[0,3,0,5],[1,0,1,8],[2,0,2,8],[3,0,3,8],[5,0,5,8]]}
[null,null,null,"ATTACHMENT M"]
["SPECIAL TERMS & CONDITIONS "]
[]
["1. The Grantee is not authorized to use funds from this Agreement to support human subjects research until the Grantee submits the IRB approval to CRDF Global. "]
[]
["2. Sub-granting. This Grant Agreement allows and contains sub-granting by the Grantee. "]
[]
["All sub-grants need to be specified, have a clear scope of work and workplan, and be budgeted by the Grantee and included in the grant project’s budget prior to signing this Grant Agreement.  \n\nNo sub-grant issued by the Grantee can exceed the agreed budget and/or duration of this Grant Agreement, unless approved by CRDF Global in writing.  \n\nIn accordance with 2 CFR 200 provisions or any other applicable regulation, Grantee must flow down all applicable regulations and terms and conditions of this grant agreement to the sub-grantees by including them as sub-grant agreement provisions. The Grantee is responsible for overseeing sub-grantees compliance with such provisions.  \n\nThe Grantee is responsible for technical and financial management of the sub-awards it issues. The Grantee must ensure that proper financial and technical reporting is established for all sub-grantees. The Grantee may use its own policies and procedures as per reporting, provided that such policies and procedures correspond to CRDF Global’s reporting standards as well as applicable regulations.  \n\nAt any time during this Grant Agreement implementation, CRDF Global may request the Grantee to provide records and documents provided by the sub-grantees within their technical and/or financial reporting. "]
[]
["3. Pre-award costs. The Grantee may incur pre-award costs up to Sixty (60) calendar days prior to Agreement execution. All pre-award costs are incurred at the Grantee’s risk. After incurring such costs, the Grantee shall reconcile them with CRDF Global within 30 days of Agreement execution by providing the latter with an invoice and relevant supporting documentation."]
[]
[]
[]
[]
[]
[]
[]
[]
[]
[]
[]
[]
[]
[]
[]
[]
[]
[]
[]
[]
[]
[]
[]
[]
[]
[]
[]
[]
[]
[]
[]
[]
[]
[]
[]
[]
[]
[]
[]
[]
[]
[]
[]
[]
[]
[]
[]
[]
[]
[]
[]
[]
[]
[]
[]
[]
[]
[]
[]
[]
[]
[]
[]
[]
[]
[]
[]
[]
[]
[]
[]
[]
[]
[]
[]
[]
[]
[]
[]
[]
[]
[]
[]
[]
[null,null,null,null,null,null,null,null,null,null,null,null,null,null,null,null,null,null,{"$f":"C95","v":0}]
[]
[]
[]
[]
[]
[]
[]
[]
[]
[]
[]
[null,null,null,null,null,null,null,null,null,null,null,null,null,null,null,null,null,null,{"$f":"C107","v":0}]
[]
[]
[]
[]
[]
[]
[]
[]
[null,null,null,null,null,null,null,null,null,null,null,null,null,null,null,null,null,null,{"$f":"C116","v":0}]
[]
[]
[]
[]
[]
[]
[]
[]
[null,null,null,null,null,null,null,null,null,null,null,null,null,null,null,null,null,null,{"$f":"C125","v":0}]

{"sheet":"Tecnical","index":19,"n_rows":292,"n_cols":18,"rows_kept":292,"cut":false,"hidden":false,"merged":[[10,7,10,8],[0,6,0,11],[2,11,10,11],[19,6,19,11]]}
["Institutional Data Form",null,"Payment Terms",null,null,null,"RISK ASSESSMENT BASED ON IDF"]
["Kerry McGowan",null,"NET 30",null,null,null,null,null,null,null,null,null,null,null,null,"Select an option"]
["Kevin Gates",null,"NET 15",null,null,null,null,"PROBABILITY","IMPACT","RISK DETERMINATION",null,{"$f":"_xlfn.IFS(AND(K14>=4,K14<=6),\"LOW\",AND(K14>=7,K14<=9),\"AVERAGE\",K14>=10,\"HIGH\")","v":{"$error":"#N/A"}},null,null,null,"Monthly"]
[null,null,null,null,null,null,null,null,null,null,null,null,null,null,null,"Quarterly"]
["Fouzilla Sebbak",null,"NET 10",null,null,null,"TECHNICAL CAPACITY",{"$f":"_xlfn.IFS(IDF!S63>=4,\"LOW\",AND(IDF!S63<=3,IDF!S63>2),\"AVERAGE\",IDF!S63<=2,\"HIGH\")","v":{"$error":"#N/A"}},"Select an option",{"$f":"_xlfn.IFS(AND(H5=\"HIGH\",I5=\"HIGH\"),\"HIGH\",AND(H5=\"HIGH\",I5=\"AVERAGE\"),\"AVERAGE\",AND(H5=\"HIGH\",I5=\"LOW\"),\"LOW\",AND(H5=\"AVERAGE\",I5=\"HIGH\"),\"HIGH\",AND(H5=\"AVERAGE\",I5=\"AVERAGE\"),\"AVERAGE\",AND(H5=\"AVERAGE\",I5=\"LOW\"),\"LOW\",AND(H5=\"LOW\",I5=\"HIGH\"),\"AVERAGE\",AND(H5=\"LOW\",I5=\"AVERAGE\"),\"LOW\",AND(H5=\"LOW\",I5=\"LOW\"),\"LOW\")","v":{"$error":"#N/A"}},{"$f":"_xlfn.IFS(J5=\"HIGH\",3,J5=\"AVERAGE\",2,J5=\"LOW\",1)","v":{"$error":"#N/A"}},null,null,null,null,"Biannually"]
["Nadine Zabaneh",null,null,null,null,null,null,null,null,null,null,null,null,null,null,"Yearly"]
["Salman Al-Darbisi",null,"Select an option",null,null,null,"ADMINISTRATIVE CAPACITY",{"$f":"_xlfn.IFS(IDF!T76>=7,\"LOW\",AND(IDF!T76<=6,IDF!T76>=4),\"AVERAGE\",IDF!T76<=3,\"HIGH\")","v":{"$error":"#N/A"}},"Select an option",{"$f":"_xlfn.IFS(AND(H7=\"HIGH\",I7=\"HIGH\"),\"HIGH\",AND(H7=\"HIGH\",I7=\"AVERAGE\"),\"AVERAGE\",AND(H7=\"HIGH\",I7=\"LOW\"),\"LOW\",AND(H7=\"AVERAGE\",I7=\"HIGH\"),\"HIGH\",AND(H7=\"AVERAGE\",I7=\"AVERAGE\"),\"AVERAGE\",AND(H7=\"AVERAGE\",I7=\"LOW\"),\"LOW\",AND(H7=\"LOW\",I7=\"HIGH\"),\"AVERAGE\",AND(H7=\"LOW\",I7=\"AVERAGE\"),\"LOW\",AND(H7=\"LOW\",I7=\"LOW\"),\"LOW\")","v":{"$error":"#N/A"}},{"$f":"_xlfn.IFS(J7=\"HIGH\",3,J7=\"AVERAGE\",2,J7=\"LOW\",1)","v":{"$error":"#N/A"}},null,null,null,null,"By the end of the project"]
["Sarah Haddad",null,"LOW",null,null,null,null,null,null,null,null,null,null,null,null,"Other (see note below)"]
["Huda AL-SHARIF",null,"AVERAGE",null,null,null,"FINANCIAL CAPACITY",{"$f":"_xlfn.IFS(IDF!T92>=3,\"LOW\",IDF!T92=2,\"AVERAGE\",IDF!T92<=1,\"HIGH\")","v":{"$error":"#N/A"}},"Select an option",{"$f":"_xlfn.IFS(AND(H9=\"HIGH\",I9=\"HIGH\"),\"HIGH\",AND(H9=\"HIGH\",I9=\"AVERAGE\"),\"AVERAGE\",AND(H9=\"HIGH\",I9=\"LOW\"),\"LOW\",AND(H9=\"AVERAGE\",I9=\"HIGH\"),\"HIGH\",AND(H9=\"AVERAGE\",I9=\"AVERAGE\"),\"AVERAGE\",AND(H9=\"AVERAGE\",I9=\"LOW\"),\"LOW\",AND(H9=\"LOW\",I9=\"HIGH\"),\"AVERAGE\",AND(H9=\"LOW\",I9=\"AVERAGE\"),\"LOW\",AND(H9=\"LOW\",I9=\"LOW\"),\"LOW\")","v":{"$error":"#N/A"}},{"$f":"_xlfn.IFS(J9=\"HIGH\",3,J9=\"AVERAGE\",2,J9=\"LOW\",1)","v":{"$error":"#N/A"}},null,null,null,null,"Select an option"]
["Lyubov Taranenko",null,"HIGH",null,null,null,null,null,null,null,null,null,null,null,null,"CRDF Global"]
["Vitaliy Vysochin",null,null,null,null,null,"GEOPOLITICAL PROFILE","Select an option",null,null,{"$f":"_xlfn.IFS(H11=\"HIGH\",3,H11=\"AVERAGE\",2,H11=\"LOW\",1)","v":{"$error":"#N/A"}},null,null,null,null,"Funder"]
["Yana Slyshchenko",null,null,null,null,null,null,null,null,null,null,null,null,null,null,"CRDF Global & Funder"]
["Dinmukhamed Zharylkassyn"]
["Svitlana Kutniuk",null,null,null,null,null,null,null,null,null,{"$f":"SUM(K5:K11)","v":{"$error":"#N/A"}}]
[null,null,"Select",null,null,null,null,null,null,null,null,null,null,null,null,"Select an option"]
[null,null,"G. Bioethics Compliance (DNA)",null,null,null,null,null,null,null,null,null,null,null,null,"Grantee's Invoice"]
["Alabama",null,"H. Bioethics Compliance",null,null,null,null,null,null,"`",null,null,null,null,null,"General Ledger Excerpt"]
["Alaska",null,"I. Equipment Compliance",null,null,null,null,null,null,null,null,null,null,null,null,"GEAR Form"]
["Arizona",null,"J. Financial Reporting",null,null,null,null,null,null,null,null,null,null,null,null,"Receipts on expenses"]
["Arkansas",null,"K. Other Terms and Conditions",null,null,null,"DOCUMENTS TO BE PROVIDED SEPARATELY (reminder for RFP preparation)",null,null,null,null,null,null,null,null,"Other (see note below)"]
["California"]
["Delaware",null,null,null,null,null,"Biosketches for Key Personnell",null,null,null,null,null,null,null,null,"Yes"]
[]
["Colorado",null,null,null,null,null,"Project Narrative and References Cited (if applicable)"]
["Connecticut",null,null,null,null,null,null,null,null,null,null,null,null,null,null,"Select an option"]
["Delaware",null,null,null,null,null,"Copy of Audit (if applicable)",null,null,null,null,null,null,null,null,"Yes"]
["Florida",null,null,null,null,null,null,null,null,null,null,null,null,null,null,"No"]
["Georgia",null,null,null,null,null,"Bioethics Form (if applicable)"]
["Hawaii",null,null,null,null,null,null,null,null,null,null,null,null,null,null,"Select"]
["Idaho",null,null,null,null,null,null,null,null,null,null,null,null,null,null,"YES"]
["Illinois",null,null,null,null,null,null,null,null,null,null,null,null,null,null,"NO"]
["Indiana"]
["Iowa",null,null,null,null,null,null,null,null,null,null,null,null,null,null,"Grant Officers"]
["Kansas",null,null,null,null,null,null,null,null,null,null,null,null,null,null,"Please select",null,"Please select"]
["Kentucky",null,null,null,null,null,null,null,null,null,null,null,null,null,null,"Fouzilla Sebbak",null,"fsebbak@crdfglobal.org"]
["Louisiana",null,null,null,null,null,null,null,null,null,null,null,null,null,null,"Huda Al-Sharif",null,"halsharif@crdfglobal.org"]
["Maine",null,null,null,null,null,null,null,null,null,null,null,null,null,null,"Kamel Al-Dajani",null,"kaldajani@crdfglobal.org"]
["Maryland",null,null,null,null,null,null,null,null,null,null,null,null,null,null,"Nadine Zabaneh",null,"nzabaneh@crdfglobal.org"]
["Massachusetts",null,null,null,null,null,null,null,null,null,null,null,null,null,null,"Salman Al-Darbisi",null,"saldarbisi@crdfglobal.org"]
["Michigan",null,null,null,null,null,null,null,null,null,null,null,null,null,null,"Sarah Haddad",null,"shaddad@crdfglobal.org"]
["Minnesota",null,null,null,null,null,null,null,null,null,null,null,null,null,null,"Sheliekhova Viktoriia",null,"vsheliekhova@crdfglobal.org"]
["Mississippi",null,null,null,null,null,null,null,null,null,null,null,null,null,null,"Svitlana Kutniuk",null,"skutniuk@crdfglobal.org"]
["Missouri",null,null,null,null,null,null,null,null,null,null,null,null,null,null,"Yana Zarakhovska",null,"yslyshchenko@crdfglobal.org"]
["Montana",null,null,null,null,null,null,null,null,null,null,null,null,null,null,"Dinmukhamed Zharylkassyn",null,"dzharylkassyn@crdfglobal.org"]
["Nebraska",null,null,null,null,null,null,null,null,null,null,null,null,null,null,"Defrim Dedej"]
["Nevada",null,null,null,null,null,null,null,null,null,null,null,null,null,null,"Vitaliy Vysochin",null,"vvysochin@crdfglobal.org"]
["New Hampshire",null,null,null,null,null,null,null,null,null,null,null,null,null,null,"Please select"]
["New Jersey",null,null,null,null,null,null,null,null,null,null,null,null,null,null,"Grant Specialist"]
["New Mexico",null,null,null,null,null,null,null,null,null,null,null,null,null,null,"Grant Coordinator"]
["New York",null,null,null,null,null,null,null,null,null,null,null,null,null,null,"Grant Manager"]
["North Carolina"]
["North Dakota"]
["Ohio"]
["Oklahoma"]
["Oregon"]
["Pennsylvania"]
["Rhode Island"]
["South Carolina"]
["South Dakota"]
["Tennessee"]
["Texas"]
["Utah"]
["Vermont"]
["Virginia"]
["Washington"]
["West Virginia"]
["Wisconsin"]
["Wyoming"]
[]
[]
[]
["Afghanistan"]
["Albania"]
["Algeria"]
["Andorra"]
["Angola"]
["Antigua and Barbuda"]
["Argentina"]
["Armenia"]
["Australia"]
["Austria"]
["Azerbaijan"]
["Bahamas"]
["Bahrain"]
["Bangladesh"]
["Barbados"]
["Belarus"]
["Belgium"]
["Belize"]
["Benin"]
["Bhutan"]
["Bolivia"]
["Bosnia and Herzegovina"]
["Botswana"]
["Brazil"]
["Brunei"]
["Bulgaria"]
["Burkina Faso"]
["Burundi"]
["Cabo Verde"]
["Cambodia"]
["Cameroon"]
["Canada"]
["Central African Republic"]
["Chad"]
["Chile"]
["China"]
["Colombia"]
["Comoros"]
["Congo, Democratic Republic of the"]
["Congo, Republic of the"]
["Costa Rica"]
["Cote d'Ivoire"]
["Croatia"]
["Cuba"]
["Cyprus"]
["Czechia"]
["Denmark"]
["Djibouti"]
["Dominica"]
["Dominican Republic"]
["Ecuador"]
["Egypt"]
["El Salvador"]
["Equatorial Guinea"]
["Eritrea"]
["Estonia"]
["Eswatini"]
["Ethiopia"]
["Fiji"]
["Finland"]
["France"]
["Gabon"]
["Gambia"]
["Georgia"]
["Germany"]
["Ghana"]
["Greece"]
["Grenada"]
["Guatemala"]
["Guinea"]
["Guinea-Bissau"]
["Guyana"]
["Haiti"]
["Honduras"]
["Hungary"]
["Iceland"]
["India"]
["Indonesia"]
["Iran"]
["Iraq"]
["Ireland"]
["Israel"]
["Italy"]
["Jamaica"]
["Japan"]
["Jordan"]
["Kazakhstan"]
["Kenya"]
["Kiribati"]
["Kosovo"]
["Kuwait"]
["Kyrgyzstan"]
["Laos"]
["Latvia"]
["Lebanon"]
["Lesotho"]
["Liberia"]
["Libya"]
["Liechtenstein"]
["Lithuania"]
["Luxembourg"]
["Madagascar"]
["Malawi"]
["Malaysia"]
["Maldives"]
["Mali"]
["Malta"]
["Marshall Islands"]
["Mauritania"]
["Mauritius"]
["Mexico"]
["Micronesia"]
["Moldova"]
["Monaco"]
["Mongolia"]
["Montenegro"]
["Morocco"]
["Mozambique"]
["Myanmar"]
["Namibia"]
["Nauru"]
["Nepal"]
["Netherlands"]
["New Zealand"]
["Nicaragua"]
["Niger"]
["Nigeria"]
["North Korea"]
["North Macedonia"]
["Norway"]
["Oman"]
["Pakistan"]
["Palau"]
["Palestine"]
["Panama"]
["Papua New Guinea"]
["Paraguay"]
["Peru"]
["Philippines"]
["Poland"]
["Portugal"]
["Qatar"]
["Romania"]
["Russia"]
["Rwanda"]
["Saint Kitts and Nevis"]
["Saint Lucia"]
["Saint Vincent and the Grenadines"]
["Samoa"]
["San Marino"]
["Sao Tome and Principe"]
["Saudi Arabia"]
["Senegal"]
["Serbia"]
["Seychelles"]
["Sierra Leone"]
["Singapore"]
["Slovakia"]
["Slovenia"]
["Solomon Islands"]
["Somalia"]
["South Africa"]
["South Korea"]
["South Sudan"]
["Spain"]
["Sri Lanka"]
["Sudan"]
["Suriname"]
["Sweden"]
["Switzerland"]
["Syria"]
["Taiwan"]
["Tajikistan"]
["Tanzania"]
["Thailand"]
["Timor-Leste"]
["Togo"]
["Tonga"]
["Trinidad and Tobago"]
["Tunisia"]
["Turkey"]
["Turkmenistan"]
["Tuvalu"]
["Uganda"]
["Ukraine"]
["United Arab Emirates (UAE)"]
["United Kingdom (UK)"]
["United States of America (USA)"]
["Uruguay"]
["Uzbekistan"]
["Vanuatu"]
["Vatican City (Holy See)"]
["Venezuela"]
["Vietnam"]
["Yemen"]
["Zambia"]
["Zimbabwe"]
[]
["Select an option"]
["Provided"]
["Not provided"]
[]
["Select an option"]
["University"]
["Corporation / Company"]
["Government "]
["International Organization"]
["Other"]
[]
["Select an option"]
["Yes"]
["No"]
[]
["Small Business"]
["WOSB"]
["SDB"]
["HUB-Zone"]
["VOSB"]
["SDVOSB"]
["N/A"]
["Select for US Orgs only"]